Workbook

Sheet Main
B10: 2021-06-02
B12: Sheet No. | C12: Template Name | D12: Summary
B13: 1 | C13: Future Intra | D13: For Intraday trading in F&O segment
B14: 2 | C14: Cash Intra | D14: For Intraday trading in cash market segment
B15: 3 | C15: Mid-cap Intra | D15: For Intraday trading in Mid-cap stocks
B16: 4 | C16: Bulk Deals | D16: Reveals Bulk Deals carried on NSE & BSE
B17: 5 | C17: Call Tracker
K27: `

Sheet Future Intra
M5: Back to Main Page
A6: FOR INTRA DAY TRADING | L6: =Main!B10 -> 2021-06-02
A9: Sr.no | B9: Sector | C9: Scrip | D9: Expiry Date | E9: CLOSE RATE | F9: Pivot Point | G9: Supports | J9: Resistances
B10: Sector | E10: Point | F10: Point | G10: S1 | H10: S2 | I10: S3 | J10: R1 | K10: R2 | L10: R3 | M10: HIGH | N10: LOW | O10: OI | P10: % Change in OI
A11: 1 | B11: Index | C11: BANKNIFTY | D11: 2021-06-24 | E11: 35454.10 | F11: 35521.83 | G11: 35246.22 | H11: 35038.33 | I11: 34762.72 | J11: 35729.72 | K11: 36005.33 | L11: 36213.22 | M11: 35797.45 | N11: 35313.95 | O11: 1811550 | P11: 1.14%
A12: 2 | B12: Index | C12: NIFTY | D12: 2021-06-24 | E12: 15618.15 | F12: 15608.08 | G12: 15556.17 | H12: 15494.18 | I12: 15442.27 | J12: 15670.07 | K12: 15721.98 | L12: 15783.97 | M12: 15660 | N12: 15546.1 | O12: 11584075 | P12: 1.72%
A13: 3 | B13: Index | C13: FINNIFTY | D13: 2021-06-24 | E13: 16697.55 | F13: 16712.63 | G13: 16614.27 | H13: 16530.98 | I13: 16432.62 | J13: 16795.92 | K13: 16894.28 | L13: 16977.57 | M13: 16811 | N13: 16629.35 | O13: 11840 | P13: -5.43%
A14: 4 | B14: Chemical | C14: AARTIIND | D14: 2021-06-24 | E14: 1720.05 | F14: 1715.67 | G14: 1681.33 | H14: 1642.62 | I14: 1608.28 | J14: 1754.38 | K14: 1788.72 | L14: 1827.43 | M14: 1750 | N14: 1676.95 | O14: 809625 | P14: 8.79%
A15: 5 | B15: Cement | C15: ACC | D15: 2021-06-24 | E15: 1981.35 | F15: 1984.82 | G15: 1961.63 | H15: 1941.92 | I15: 1918.73 | J15: 2004.53 | K15: 2027.72 | L15: 2047.43 | M15: 2008 | N15: 1965.1 | O15: 2135500 | P15: -0.72%
A16: 6 | B16: Others | C16: ADANIENT | D16: 2021-06-24 | E16: 1424.20 | F16: 1391.30 | G16: 1345.90 | H16: 1267.60 | I16: 1222.20 | J16: 1469.60 | K16: 1515.00 | L16: 1593.30 | M16: 1436.7 | N16: 1313 | O16: 18628000 | P16: -4.32%
A17: 7 | B17: Others | C17: ADANIPORTS | D17: 2021-06-24 | E17: 803.40 | F17: 792.47 | G17: 778.43 | H17: 753.47 | I17: 739.43 | J17: 817.43 | K17: 831.47 | L17: 856.43 | M17: 806.5 | N17: 767.5 | O17: 74398750 | P17: 0.77%
A18: 8 | B18: Pharma | C18: ALKEM | D18: 2021-06-24 | E18: 3122.45 | F18: 3070.75 | G18: 3004.15 | H18: 2885.85 | I18: 2819.25 | J18: 3189.05 | K18: 3255.65 | L18: 3373.95 | M18: 3137.35 | N18: 2952.45 | O18: 481800 | P18: 33.61%
A19: 9 | B19: Automobile | C19: AMARAJABAT | D19: 2021-06-24 | E19: 743.95 | F19: 746.08 | G19: 740.57 | H19: 737.18 | I19: 731.67 | J19: 749.47 | K19: 754.98 | L19: 758.37 | M19: 751.6 | N19: 742.7 | O19: 10191000 | P19: 4.34%
A20: 10 | B20: Cement | C20: AMBUJACEM | D20: 2021-06-24 | E20: 325.85 | F20: 326.15 | G20: 322.80 | H20: 319.75 | I20: 316.40 | J20: 329.20 | K20: 332.55 | L20: 335.60 | M20: 329.5 | N20: 323.1 | O20: 16839000 | P20: 3.87%
A21: 11 | B21: Pharma | C21: APLLTD | D21: 2021-06-24 | E21: 948.60 | F21: 946.52 | G21: 934.23 | H21: 919.87 | I21: 907.58 | J21: 960.88 | K21: 973.17 | L21: 987.53 | M21: 958.8 | N21: 932.15 | O21: 1343650 | P21: 2.99%
A22: 12 | B22: Others | C22: APOLLOHOSP | D22: 2021-06-24 | E22: 3252.25 | F22: 3228.70 | G22: 3195.65 | H22: 3139.05 | I22: 3106.00 | J22: 3285.30 | K22: 3318.35 | L22: 3374.95 | M22: 3261.75 | N22: 3172.1 | O22: 1835250 | P22: -0.81%
A23: 13 | B23: Automobile | C23: APOLLOTYRE | D23: 2021-06-24 | E23: 222.45 | F23: 224.02 | G23: 219.13 | H23: 215.82 | I23: 210.93 | J23: 227.33 | K23: 232.22 | L23: 235.53 | M23: 228.9 | N23: 220.7 | O23: 15552500 | P23: -0.35%
A24: 14 | B24: Automobile | C24: ASHOKLEY | D24: 2021-06-24 | E24: 122.05 | F24: 122.77 | G24: 120.68 | H24: 119.32 | I24: 117.23 | J24: 124.13 | K24: 126.22 | L24: 127.58 | M24: 124.85 | N24: 121.4 | O24: 37800000 | P24: 13.33%
A25: 15 | B25: FMCG | C25: ASIANPAINT | D25: 2021-06-24 | E25: 2931.00 | F25: 2941.30 | G25: 2907.65 | H25: 2884.30 | I25: 2850.65 | J25: 2964.65 | K25: 2998.30 | L25: 3021.65 | M25: 2974.95 | N25: 2917.95 | O25: 4900200 | P25: 4.77%
A26: 16 | B26: Banking | C26: AUBANK | D26: 2021-06-24 | E26: 994.45 | F26: 989.53 | G26: 982.12 | H26: 969.78 | I26: 962.37 | J26: 1001.87 | K26: 1009.28 | L26: 1021.62 | M26: 996.95 | N26: 977.2 | O26: 2518000 | P26: -5.03%
A27: 17 | B27: Pharma | C27: AUROPHARMA | D27: 2021-06-24 | E27: 975.95 | F27: 983.27 | G27: 954.53 | H27: 933.12 | I27: 904.38 | J27: 1004.68 | K27: 1033.42 | L27: 1054.83 | M27: 1012 | N27: 961.85 | O27: 9295650 | P27: -2.20%
A28: 18 | B28: Banking | C28: AXISBANK | D28: 2021-06-24 | E28: 747.70 | F28: 749.15 | G28: 742.30 | H28: 736.90 | I28: 730.05 | J28: 754.55 | K28: 761.40 | L28: 766.80 | M28: 756 | N28: 743.75 | O28: 37774800 | P28: -1.68%
A29: 19 | B29: Automobile | C29: BAJAJ-AUTO | D29: 2021-06-24 | E29: 4262.80 | F29: 4286.80 | G29: 4204.15 | H29: 4145.50 | I29: 4062.85 | J29: 4345.45 | K29: 4428.10 | L29: 4486.75 | M29: 4369.45 | N29: 4228.15 | O29: 1797000 | P29: 5.72%
A30: 20 | B30: Finance | C30: BAJAJFINSV | D30: 2021-06-24 | E30: 11858.95 | F30: 11834.25 | G30: 11678.50 | H30: 11498.05 | I30: 11342.30 | J30: 12014.70 | K30: 12170.45 | L30: 12350.90 | M30: 11990 | N30: 11653.8 | O30: 750675 | P30: 2.05%
A31: 21 | B31: Finance | C31: BAJFINANCE | D31: 2021-06-24 | E31: 5816.70 | F31: 5772.18 | G31: 5689.32 | H31: 5561.93 | I31: 5479.07 | J31: 5899.57 | K31: 5982.43 | L31: 6109.82 | M31: 5855.05 | N31: 5644.8 | O31: 4157125 | P31: -0.52%
A32: 22 | B32: Automobile | C32: BALKRISIND | D32: 2021-06-24 | E32: 2189.50 | F32: 2210.92 | G32: 2162.43 | H32: 2135.37 | I32: 2086.88 | J32: 2237.98 | K32: 2286.47 | L32: 2313.53 | M32: 2259.4 | N32: 2183.85 | O32: 1272800 | P32: 0.22%
A33: 23 | B33: Banking | C33: BANDHANBNK | D33: 2021-06-24 | E33: 304.65 | F33: 306.02 | G33: 300.58 | H33: 296.52 | I33: 291.08 | J33: 310.08 | K33: 315.52 | L33: 319.58 | M33: 311.45 | N33: 301.95 | O33: 21344400 | P33: -2.49%
A34: 24 | B34: Banking | C34: BANKBARODA | D34: 2021-06-24 | E34: 79.75 | F34: 80.02 | G34: 78.58 | H34: 77.42 | I34: 75.98 | J34: 81.18 | K34: 82.62 | L34: 83.78 | M34: 81.45 | N34: 78.85 | O34: 211992300 | P34: -6.89%
A35: 25 | B35: FMCG | C35: BATAINDIA | D35: 2021-06-24 | E35: 1549.95 | F35: 1548.55 | G35: 1535.45 | H35: 1520.95 | I35: 1507.85 | J35: 1563.05 | K35: 1576.15 | L35: 1590.65 | M35: 1561.65 | N35: 1534.05 | O35: 846450 | P35: -2.41%
A36: 26 | B36: Capital_Goods | C36: BEL | D36: 2021-06-24 | E36: 147.30 | F36: 148.82 | G36: 144.73 | H36: 142.17 | I36: 138.08 | J36: 151.38 | K36: 155.47 | L36: 158.03 | M36: 152.9 | N36: 146.25 | O36: 42062200 | P36: 5.27%
A37: 27 | B37: FMCG | C37: BERGEPAINT | D37: 2021-06-24 | E37: 803.15 | F37: 804.58 | G37: 799.02 | H37: 794.88 | I37: 789.32 | J37: 808.72 | K37: 814.28 | L37: 818.42 | M37: 810.15 | N37: 800.45 | O37: 3829100 | P37: -1.78%
A38: 28 | B38: Automobile | C38: BHARATFORG | D38: 2021-06-24 | E38: 670.95 | F38: 674.85 | G38: 659.95 | H38: 648.95 | I38: 634.05 | J38: 685.85 | K38: 700.75 | L38: 711.75 | M38: 689.75 | N38: 663.85 | O38: 6841500 | P38: 0.75%
A39: 29 | B39: Telecom | C39: BHARTIARTL | D39: 2021-06-24 | E39: 534.95 | F39: 535.68 | G39: 531.27 | H39: 527.58 | I39: 523.17 | J39: 539.37 | K39: 543.78 | L39: 547.47 | M39: 540.1 | N39: 532 | O39: 113860563 | P39: -0.31%
A40: 30 | B40: Capital_Goods | C40: BHEL | D40: 2021-06-24 | E40: 71.30 | F40: 72.27 | G40: 69.83 | H40: 68.37 | I40: 65.93 | J40: 73.73 | K40: 76.17 | L40: 77.63 | M40: 74.7 | N40: 70.8 | O40: 94920000 | P40: 7.93%
A41: 31 | B41: Pharma | C41: BIOCON | D41: 2021-06-24 | E41: 388.20 | F41: 389.28 | G41: 386.07 | H41: 383.93 | I41: 380.72 | J41: 391.42 | K41: 394.63 | L41: 396.77 | M41: 392.5 | N41: 387.15 | O41: 18153900 | P41: 2.71%
A42: 32 | B42: Automobile | C42: BOSCHLTD | D42: 2021-06-24 | E42: 15176.05 | F42: 15251.98 | G42: 15064.12 | H42: 14952.18 | I42: 14764.32 | J42: 15363.92 | K42: 15551.78 | L42: 15663.72 | M42: 15439.85 | N42: 15140.05 | O42: 118050 | P42: -0.76%
A43: 33 | B43: Oil_Gas | C43: BPCL | D43: 2021-06-24 | E43: 473.30 | F43: 474.62 | G43: 470.48 | H43: 467.67 | I43: 463.53 | J43: 477.43 | K43: 481.57 | L43: 484.38 | M43: 478.75 | N43: 471.8 | O43: 40179600 | P43: -2.28%
A44: 34 | B44: FMCG | C44: BRITANNIA | D44: 2021-06-24 | E44: 3463.95 | F44: 3461.15 | G44: 3443.95 | H44: 3423.95 | I44: 3406.75 | J44: 3481.15 | K44: 3498.35 | L44: 3518.35 | M44: 3478.35 | N44: 3441.15 | O44: 1870200 | P44: -3.34%
A45: 35 | B45: Pharma | C45: CADILAHC | D45: 2021-06-24 | E45: 623.35 | F45: 624.58 | G45: 618.17 | H45: 612.98 | I45: 606.57 | J45: 629.77 | K45: 636.18 | L45: 641.37 | M45: 631 | N45: 619.4 | O45: 22193600 | P45: -1.50%
A46: 36 | B46: Banking | C46: CANBK | D46: 2021-06-24 | E46: 160.00 | F46: 160.78 | G46: 157.67 | H46: 155.33 | I46: 152.22 | J46: 163.12 | K46: 166.23 | L46: 168.57 | M46: 163.9 | N46: 158.45 | O46: 55895400 | P46: -0.14%
A47: 37 | B47: Finance | C47: CHOLAFIN | D47: 2021-06-24 | E47: 548.05 | F47: 550.22 | G47: 541.93 | H47: 535.82 | I47: 527.53 | J47: 556.33 | K47: 564.62 | L47: 570.73 | M47: 558.5 | N47: 544.1 | O47: 10068750 | P47: 0.88%
A48: 38 | B48: Pharma | C48: CIPLA | D48: 2021-06-24 | E48: 951.20 | F48: 952.37 | G48: 944.83 | H48: 938.47 | I48: 930.93 | J48: 958.73 | K48: 966.27 | L48: 972.63 | M48: 959.9 | N48: 946 | O48: 10531300 | P48: -0.87%
A49: 39 | B49: Others | C49: COALINDIA | D49: 2021-06-24 | E49: 148.50 | F49: 148.55 | G49: 147.35 | H49: 146.20 | I49: 145.00 | J49: 149.70 | K49: 150.90 | L49: 152.05 | M49: 149.75 | N49: 147.4 | O49: 47304600 | P49: -3.59%
A50: 40 | B50: Technology | C50: COFORGE | D50: 2021-06-24 | E50: 3608.00 | F50: 3579.58 | G50: 3544.17 | H50: 3480.33 | I50: 3444.92 | J50: 3643.42 | K50: 3678.83 | L50: 3742.67 | M50: 3615 | N50: 3515.75 | O50: 1075750 | P50: 2.18%
A51: 41 | B51: FMCG | C51: COLPAL | D51: 2021-06-24 | E51: 1719.10 | F51: 1724.53 | G51: 1709.07 | H51: 1699.03 | I51: 1683.57 | J51: 1734.57 | K51: 1750.03 | L51: 1760.07 | M51: 1740 | N51: 1714.5 | O51: 2668050 | P51: -0.85%
A52: 42 | B52: Others | C52: CONCOR | D52: 2021-06-24 | E52: 696.20 | F52: 691.13 | G52: 683.47 | H52: 670.73 | I52: 663.07 | J52: 703.87 | K52: 711.53 | L52: 724.27 | M52: 698.8 | N52: 678.4 | O52: 7993182 | P52: -0.56%
A53: 43 | B53: Banking | C53: CUB | D53: 2021-06-24 | E53: 167.30 | F53: 168.97 | G53: 165.18 | H53: 163.07 | I53: 159.28 | J53: 171.08 | K53: 174.87 | L53: 176.98 | M53: 172.75 | N53: 166.85 | O53: 5992300 | P53: 8.23%
A54: 44 | B54: Capital_Goods | C54: CUMMINSIND | D54: 2021-06-24 | E54: 783.90 | F54: 785.88 | G54: 773.82 | H54: 763.73 | I54: 751.67 | J54: 795.97 | K54: 808.03 | L54: 818.12 | M54: 797.95 | N54: 775.8 | O54: 2899200 | P54: 2.61%
A55: 45 | B55: FMCG | C55: DABUR | D55: 2021-06-24 | E55: 540.10 | F55: 541.28 | G55: 536.57 | H55: 533.03 | I55: 528.32 | J55: 544.82 | K55: 549.53 | L55: 553.07 | M55: 546 | N55: 537.75 | O55: 10465000 | P55: 1.60%
A56: 46 | B56: Chemical | C56: DEEPAKNTR | D56: 2021-06-24 | E56: 1769.45 | F56: 1780.28 | G56: 1752.87 | H56: 1736.28 | I56: 1708.87 | J56: 1796.87 | K56: 1824.28 | L56: 1840.87 | M56: 1807.7 | N56: 1763.7 | O56: 1985000 | P56: 4.25%
A57: 47 | B57: Pharma | C57: DIVISLAB | D57: 2021-06-24 | E57: 4234.05 | F57: 4215.35 | G57: 4188.70 | H57: 4143.35 | I57: 4116.70 | J57: 4260.70 | K57: 4287.35 | L57: 4332.70 | M57: 4242 | N57: 4170 | O57: 2304800 | P57: -2.77%
A58: 48 | B58: Realty | C58: DLF | D58: 2021-06-24 | E58: 288.80 | F58: 287.08 | G58: 283.67 | H58: 278.53 | I58: 275.12 | J58: 292.22 | K58: 295.63 | L58: 300.77 | M58: 290.5 | N58: 281.95 | O58: 30478800 | P58: 0.50%
A59: 49 | B59: Pharma | C59: DRREDDY | D59: 2021-06-24 | E59: 5335.05 | F59: 5324.85 | G59: 5296.40 | H59: 5257.75 | I59: 5229.30 | J59: 5363.50 | K59: 5391.95 | L59: 5430.60 | M59: 5353.3 | N59: 5286.2 | O59: 2650250 | P59: -1.28%
A60: 50 | B60: Automobile | C60: EICHERMOT | D60: 2021-06-24 | E60: 2673.15 | F60: 2674.43 | G60: 2638.47 | H60: 2603.78 | I60: 2567.82 | J60: 2709.12 | K60: 2745.08 | L60: 2779.77 | M60: 2710.4 | N60: 2639.75 | O60: 2308600 | P60: -6.19%
A61: 51 | B61: Automobile | C61: ESCORTS | D61: 2021-06-24 | E61: 1170.15 | F61: 1175.05 | G61: 1152.10 | H61: 1134.05 | I61: 1111.10 | J61: 1193.10 | K61: 1216.05 | L61: 1234.10 | M61: 1198 | N61: 1157 | O61: 4626050 | P61: 6.12%
A62: 52 | B62: Automobile | C62: EXIDEIND | D62: 2021-06-24 | E62: 190.70 | F62: 191.80 | G62: 189.30 | H62: 187.90 | I62: 185.40 | J62: 193.20 | K62: 195.70 | L62: 197.10 | M62: 194.3 | N62: 190.4 | O62: 12718800 | P62: -2.54%
A63: 53 | B63: Banking | C63: FEDERALBNK | D63: 2021-06-24 | E63: 86.30 | F63: 86.67 | G63: 85.08 | H63: 83.87 | I63: 82.28 | J63: 87.88 | K63: 89.47 | L63: 90.68 | M63: 88.25 | N63: 85.45 | O63: 70080000 | P63: 6.60%
A64: 54 | B64: Oil_Gas | C64: GAIL | D64: 2021-06-24 | E64: 160.95 | F64: 160.42 | G64: 158.83 | H64: 156.72 | I64: 155.13 | J64: 162.53 | K64: 164.12 | L64: 166.23 | M64: 162 | N64: 158.3 | O64: 29688700 | P64: -2.09%
A65: 55 | B65: Pharma | C65: GLENMARK | D65: 2021-06-24 | E65: 597.25 | F65: 601.98 | G65: 589.27 | H65: 581.28 | I65: 568.57 | J65: 609.97 | K65: 622.68 | L65: 630.67 | M65: 614.7 | N65: 594 | O65: 8913650 | P65: -1.79%
A66: 56 | B66: Infrastructure | C66: GMRINFRA | D66: 2021-06-24 | E66: 25.85 | F66: 25.87 | G66: 25.53 | H66: 25.22 | I66: 24.88 | J66: 26.18 | K66: 26.52 | L66: 26.83 | M66: 26.2 | N66: 25.55 | O66: 90382500 | P66: -0.72%
A67: 57 | B67: FMCG | C67: GODREJCP | D67: 2021-06-24 | E67: 853.05 | F67: 856.73 | G67: 846.42 | H67: 839.78 | I67: 829.47 | J67: 863.37 | K67: 873.68 | L67: 880.32 | M67: 867.05 | N67: 850.1 | O67: 4373000 | P67: -3.89%
A68: 58 | B68: Realty | C68: GODREJPROP | D68: 2021-06-24 | E68: 1367.50 | F68: 1371.85 | G68: 1350.75 | H68: 1334.00 | I68: 1312.90 | J68: 1388.60 | K68: 1409.70 | L68: 1426.45 | M68: 1392.95 | N68: 1355.1 | O68: 1519700 | P68: 2.59%
A69: 59 | B69: Pharma | C69: GRANULES | D69: 2021-06-24 | E69: 318.00 | F69: 318.80 | G69: 315.80 | H69: 313.60 | I69: 310.60 | J69: 321.00 | K69: 324.00 | L69: 326.20 | M69: 321.8 | N69: 316.6 | O69: 9710750 | P69: 1.06%
A70: 60 | B70: Cement | C70: GRASIM | D70: 2021-06-24 | E70: 1451.80 | F70: 1458.45 | G70: 1434.20 | H70: 1416.60 | I70: 1392.35 | J70: 1476.05 | K70: 1500.30 | L70: 1517.90 | M70: 1482.7 | N70: 1440.85 | O70: 13224475 | P70: -1.77%
A71: 61 | B71: Oil_Gas | C71: GUJGASLTD | D71: 2021-06-24 | E71: 542.45 | F71: 542.53 | G71: 536.12 | H71: 529.78 | I71: 523.37 | J71: 548.87 | K71: 555.28 | L71: 561.62 | M71: 548.95 | N71: 536.2 | O71: 1751250 | P71: -5.85%
A72: 62 | B72: Capital_Goods | C72: HAVELLS | D72: 2021-06-24 | E72: 1032.65 | F72: 1034.68 | G72: 1025.52 | H72: 1018.38 | I72: 1009.22 | J72: 1041.82 | K72: 1050.98 | L72: 1058.12 | M72: 1043.85 | N72: 1027.55 | O72: 3285500 | P72: -2.93%
A73: 63 | B73: Technology | C73: HCLTECH | D73: 2021-06-24 | E73: 954.40 | F73: 951.83 | G73: 947.77 | H73: 941.13 | I73: 937.07 | J73: 958.47 | K73: 962.53 | L73: 969.17 | M73: 955.9 | N73: 945.2 | O73: 21336000 | P73: -1.34%
A74: 64 | B74: Finance | C74: HDFC | D74: 2021-06-24 | E74: 2589.10 | F74: 2592.37 | G74: 2566.73 | H74: 2544.37 | I74: 2518.73 | J74: 2614.73 | K74: 2640.37 | L74: 2662.73 | M74: 2618 | N74: 2570 | O74: 17017800 | P74: -3.84%
A75: 65 | B75: Finance | C75: HDFCAMC | D75: 2021-06-24 | E75: 2966.35 | F75: 2972.48 | G75: 2943.82 | H75: 2921.28 | I75: 2892.62 | J75: 2995.02 | K75: 3023.68 | L75: 3046.22 | M75: 3001.15 | N75: 2949.95 | O75: 575800 | P75: 0.35%
A76: 66 | B76: Banking | C76: HDFCBANK | D76: 2021-06-24 | E76: 1513.80 | F76: 1516.27 | G76: 1505.88 | H76: 1497.97 | I76: 1487.58 | J76: 1524.18 | K76: 1534.57 | L76: 1542.48 | M76: 1526.65 | N76: 1508.35 | O76: 24971650 | P76: -3.52%
A77: 67 | B77: Finance | C77: HDFCLIFE | D77: 2021-06-24 | E77: 668.70 | F77: 669.25 | G77: 666.00 | H77: 663.30 | I77: 660.05 | J77: 671.95 | K77: 675.20 | L77: 677.90 | M77: 672.5 | N77: 666.55 | O77: 14985300 | P77: -0.01%
A78: 68 | B78: Automobile | C78: HEROMOTOCO | D78: 2021-06-24 | E78: 2995.15 | F78: 3011.82 | G78: 2964.33 | H78: 2933.52 | I78: 2886.03 | J78: 3042.63 | K78: 3090.12 | L78: 3120.93 | M78: 3059.3 | N78: 2981 | O78: 3906000 | P78: 4.04%
A79: 69 | B79: Metals | C79: HINDALCO | D79: 2021-06-24 | E79: 395.90 | F79: 393.73 | G79: 389.42 | H79: 382.93 | I79: 378.62 | J79: 400.22 | K79: 404.53 | L79: 411.02 | M79: 398.05 | N79: 387.25 | O79: 27012600 | P79: 0.55%
A80: 70 | B80: Oil_Gas | C80: HINDPETRO | D80: 2021-06-24 | E80: 283.05 | F80: 284.05 | G80: 280.65 | H80: 278.25 | I80: 274.85 | J80: 286.45 | K80: 289.85 | L80: 292.25 | M80: 287.45 | N80: 281.65 | O80: 25050600 | P80: -1.79%
A81: 71 | B81: FMCG | C81: HINDUNILVR | D81: 2021-06-24 | E81: 2354.50 | F81: 2346.12 | G81: 2334.33 | H81: 2314.17 | I81: 2302.38 | J81: 2366.28 | K81: 2378.07 | L81: 2398.23 | M81: 2357.9 | N81: 2325.95 | O81: 7670400 | P81: 1.00%
A82: 72 | B82: Finance | C82: IBULHSGFIN | D82: 2021-06-24 | E82: 223.15 | F82: 225.18 | G82: 218.57 | H82: 213.98 | I82: 207.37 | J82: 229.77 | K82: 236.38 | L82: 240.97 | M82: 231.8 | N82: 220.6 | O82: 24927100 | P82: 1.16%
A83: 73 | B83: Banking | C83: ICICIBANK | D83: 2021-06-24 | E83: 653.95 | F83: 657.87 | G83: 648.18 | H83: 642.42 | I83: 632.73 | J83: 663.63 | K83: 673.32 | L83: 679.08 | M83: 667.55 | N83: 652.1 | O83: 67861750 | P83: 1.28%
A84: 74 | B84: Finance | C84: ICICIGI | D84: 2021-06-24 | E84: 1473.30 | F84: 1480.17 | G84: 1461.33 | H84: 1449.37 | I84: 1430.53 | J84: 1492.13 | K84: 1510.97 | L84: 1522.93 | M84: 1499 | N84: 1468.2 | O84: 1072275 | P84: -0.24%
A85: 75 | B85: Finance | C85: ICICIPRULI | D85: 2021-06-24 | E85: 551.50 | F85: 553.33 | G85: 548.07 | H85: 544.63 | I85: 539.37 | J85: 556.77 | K85: 562.03 | L85: 565.47 | M85: 558.6 | N85: 549.9 | O85: 6267000 | P85: -0.21%
A86: 76 | B86: Telecom | C86: IDEA | D86: 2021-06-24 | E86: 8.60 | F86: 8.65 | G86: 8.45 | H86: 8.30 | I86: 8.10 | J86: 8.80 | K86: 9.00 | L86: 9.15 | M86: 8.85 | N86: 8.5 | O86: 614810000 | P86: -0.54%
A87: 77 | B87: Banking | C87: IDFCFIRSTB | D87: 2021-06-24 | E87: 57.85 | F87: 58.25 | G87: 57.15 | H87: 56.45 | I87: 55.35 | J87: 58.95 | K87: 60.05 | L87: 60.75 | M87: 59.35 | N87: 57.55 | O87: 131812500 | P87: 0.56%
A88: 78 | B88: Oil_Gas | C88: IGL | D88: 2021-06-24 | E88: 527.70 | F88: 528.53 | G88: 522.22 | H88: 516.73 | I88: 510.42 | J88: 534.02 | K88: 540.33 | L88: 545.82 | M88: 534.85 | N88: 523.05 | O88: 6454250 | P88: -0.70%
A89: 79 | B89: Others | C89: INDIGO | D89: 2021-06-24 | E89: 1745.50 | F89: 1752.98 | G89: 1729.27 | H89: 1713.03 | I89: 1689.32 | J89: 1769.22 | K89: 1792.93 | L89: 1809.17 | M89: 1776.7 | N89: 1736.75 | O89: 3552000 | P89: -1.24%
A90: 80 | B90: Banking | C90: INDUSINDBK | D90: 2021-06-24 | E90: 1012.90 | F90: 1018.93 | G90: 1002.07 | H90: 991.23 | I90: 974.37 | J90: 1029.77 | K90: 1046.63 | L90: 1057.47 | M90: 1035.8 | N90: 1008.1 | O90: 15833700 | P90: -0.10%
A91: 81 | B91: Telecom | C91: INDUSTOWER | D91: 2021-06-24 | E91: 242.80 | F91: 242.23 | G91: 240.07 | H91: 237.33 | I91: 235.17 | J91: 244.97 | K91: 247.13 | L91: 249.87 | M91: 244.4 | N91: 239.5 | O91: 10981600 | P91: 1.76%
A92: 82 | B92: Technology | C92: INFY | D92: 2021-06-24 | E92: 1396.15 | F92: 1395.53 | G92: 1387.67 | H92: 1379.18 | I92: 1371.32 | J92: 1404.02 | K92: 1411.88 | L92: 1420.37 | M92: 1403.4 | N92: 1387.05 | O92: 33050400 | P92: 2.48%
A93: 83 | B93: Oil_Gas | C93: IOC | D93: 2021-06-24 | E93: 110.35 | F93: 110.33 | G93: 109.42 | H93: 108.48 | I93: 107.57 | J93: 111.27 | K93: 112.18 | L93: 113.12 | M93: 111.25 | N93: 109.4 | O93: 67951000 | P93: -1.73%
A94: 84 | B94: Others | C94: IRCTC | D94: 2021-06-24 | E94: 1906.60 | F94: 1909.60 | G94: 1891.40 | H94: 1876.20 | I94: 1858.00 | J94: 1924.80 | K94: 1943.00 | L94: 1958.20 | M94: 1927.8 | N94: 1894.4 | O94: 1076400 | P94: -0.90%
A95: 85 | B95: FMCG | C95: ITC | D95: 2021-06-24 | E95: 212.80 | F95: 213.67 | G95: 210.68 | H95: 208.57 | I95: 205.58 | J95: 215.78 | K95: 218.77 | L95: 220.88 | M95: 216.65 | N95: 211.55 | O95: 158889600 | P95: 0.89%
A96: 86 | B96: Metals | C96: JINDALSTEL | D96: 2021-06-24 | E96: 398.30 | F96: 400.37 | G96: 388.73 | H96: 379.17 | I96: 367.53 | J96: 409.93 | K96: 421.57 | L96: 431.13 | M96: 412 | N96: 390.8 | O96: 34155000 | P96: -0.43%
A97: 87 | B97: Metals | C97: JSWSTEEL | D97: 2021-06-24 | E97: 697.75 | F97: 702.15 | G97: 684.55 | H97: 671.35 | I97: 653.75 | J97: 715.35 | K97: 732.95 | L97: 746.15 | M97: 719.75 | N97: 688.95 | O97: 35149950 | P97: 1.09%
A98: 88 | B98: Others | C98: JUBLFOOD | D98: 2021-06-24 | E98: 3076.15 | F98: 3097.10 | G98: 3045.20 | H98: 3014.25 | I98: 2962.35 | J98: 3128.05 | K98: 3179.95 | L98: 3210.90 | M98: 3149 | N98: 3066.15 | O98: 1304250 | P98: 2.96%
A99: 89 | B99: Banking | C99: KOTAKBANK | D99: 2021-06-24 | E99: 1802.95 | F99: 1807.35 | G99: 1787.70 | H99: 1772.45 | I99: 1752.80 | J99: 1822.60 | K99: 1842.25 | L99: 1857.50 | M99: 1827 | N99: 1792.1 | O99: 12760000 | P99: -2.24%
A100: 90 | B100: Finance | C100: L&TFH | D100: 2021-06-24 | E100: 92.20 | F100: 92.70 | G100: 90.85 | H100: 89.50 | I100: 87.65 | J100: 94.05 | K100: 95.90 | L100: 97.25 | M100: 94.55 | N100: 91.35 | O100: 51161292 | P100: 0.30%
A101: 91 | B101: Others | C101: LALPATHLAB | D101: 2021-06-24 | E101: 2902.90 | F101: 2928.23 | G101: 2866.52 | H101: 2830.13 | I101: 2768.42 | J101: 2964.62 | K101: 3026.33 | L101: 3062.72 | M101: 2989.95 | N101: 2891.85 | O101: 451500 | P101: -8.42%
A102: 92 | B102: Finance | C102: LICHSGFIN | D102: 2021-06-24 | E102: 479.90 | F102: 476.62 | G102: 472.18 | H102: 464.47 | I102: 460.03 | J102: 484.33 | K102: 488.77 | L102: 496.48 | M102: 481.05 | N102: 468.9 | O102: 7124000 | P102: 8.07%
A103: 93 | B103: Capital_Goods | C103: LT | D103: 2021-06-24 | E103: 1480.10 | F103: 1483.12 | G103: 1468.83 | H103: 1457.57 | I103: 1443.28 | J103: 1494.38 | K103: 1508.67 | L103: 1519.93 | M103: 1497.4 | N103: 1471.85 | O103: 12884025 | P103: -0.48%
A104: 94 | B104: Technology | C104: LTI | D104: 2021-06-24 | E104: 3910.05 | F104: 3919.53 | G104: 3865.07 | H104: 3820.08 | I104: 3765.62 | J104: 3964.52 | K104: 4018.98 | L104: 4063.97 | M104: 3974 | N104: 3874.55 | O104: 619350 | P104: -0.55%
A105: 95 | B105: Technology | C105: LTTS | D105: 2021-06-24 | E105: 2704.00 | F105: 2711.22 | G105: 2682.48 | H105: 2660.97 | I105: 2632.23 | J105: 2732.73 | K105: 2761.47 | L105: 2782.98 | M105: 2739.95 | N105: 2689.7 | O105: 348600 | P105: 4.62%
A106: 96 | B106: Pharma | C106: LUPIN | D106: 2021-06-24 | E106: 1216.60 | F106: 1216.62 | G106: 1205.23 | H106: 1193.87 | I106: 1182.48 | J106: 1227.98 | K106: 1239.37 | L106: 1250.73 | M106: 1228 | N106: 1205.25 | O106: 7367800 | P106: 0.70%
A107: 97 | B107: Automobile | C107: M&M | D107: 2021-06-24 | E107: 810.25 | F107: 810.65 | G107: 801.55 | H107: 792.85 | I107: 783.75 | J107: 819.35 | K107: 828.45 | L107: 837.15 | M107: 819.75 | N107: 801.95 | O107: 9400300 | P107: -4.47%
A108: 98 | B108: Finance | C108: M&MFIN | D108: 2021-06-24 | E108: 160.70 | F108: 161.23 | G108: 157.77 | H108: 154.83 | I108: 151.37 | J108: 164.17 | K108: 167.63 | L108: 170.57 | M108: 164.7 | N108: 158.3 | O108: 44376000 | P108: 4.95%
A109: 99 | B109: Finance | C109: MANAPPURAM | D109: 2021-06-24 | E109: 160.40 | F109: 161.17 | G109: 157.73 | H109: 155.07 | I109: 151.63 | J109: 163.83 | K109: 167.27 | L109: 169.93 | M109: 164.6 | N109: 158.5 | O109: 26688000 | P109: -1.72%
A110: 100 | B110: FMCG | C110: MARICO | D110: 2021-06-24 | E110: 483.35 | F110: 481.62 | G110: 477.38 | H110: 471.42 | I110: 467.18 | J110: 487.58 | K110: 491.82 | L110: 497.78 | M110: 485.85 | N110: 475.65 | O110: 7678000 | P110: -2.27%
A111: 101 | B111: Automobile | C111: MARUTI | D111: 2021-06-24 | E111: 7111.15 | F111: 7111.73 | G111: 7064.42 | H111: 7017.68 | I111: 6970.37 | J111: 7158.47 | K111: 7205.78 | L111: 7252.52 | M111: 7159.05 | N111: 7065 | O111: 2067800 | P111: -2.65%
A112: 102 | B112: FMCG | C112: MCDOWELL-N | D112: 2021-06-24 | E112: 614.60 | F112: 617.47 | G112: 609.13 | H112: 603.67 | I112: 595.33 | J112: 622.93 | K112: 631.27 | L112: 636.73 | M112: 625.8 | N112: 612 | O112: 11071250 | P112: 1.20%
A113: 103 | B113: Finance | C113: MFSL | D113: 2021-06-24 | E113: 939.50 | F113: 939.48 | G113: 933.02 | H113: 926.53 | I113: 920.07 | J113: 945.97 | K113: 952.43 | L113: 958.92 | M113: 945.95 | N113: 933 | O113: 2088450 | P113: -1.50%
A114: 104 | B114: Oil_Gas | C114: MGL | D114: 2021-06-24 | E114: 1188.20 | F114: 1195.98 | G114: 1172.22 | H114: 1156.23 | I114: 1132.47 | J114: 1211.97 | K114: 1235.73 | L114: 1251.72 | M114: 1219.75 | N114: 1180 | O114: 1620600 | P114: 1.47%
A115: 105 | B115: Technology | C115: MINDTREE | D115: 2021-06-24 | E115: 2431.95 | F115: 2416.08 | G115: 2393.82 | H115: 2355.68 | I115: 2333.42 | J115: 2454.22 | K115: 2476.48 | L115: 2514.62 | M115: 2438.35 | N115: 2377.95 | O115: 1756000 | P115: 7.13%
A116: 106 | B116: Automobile | C116: MOTHERSUMI | D116: 2021-06-24 | E116: 238.75 | F116: 239.13 | G116: 235.77 | H116: 232.78 | I116: 229.42 | J116: 242.12 | K116: 245.48 | L116: 248.47 | M116: 242.5 | N116: 236.15 | O116: 28903000 | P116: 2.34%
A117: 107 | B117: Technology | C117: MPHASIS | D117: 2021-06-24 | E117: 1959.00 | F117: 1944.45 | G117: 1922.00 | H117: 1885.00 | I117: 1862.55 | J117: 1981.45 | K117: 2003.90 | L117: 2040.90 | M117: 1966.9 | N117: 1907.45 | O117: 388375 | P117: -1.48%
A118: 108 | B118: Automobile | C118: MRF | D118: 2021-06-24 | E118: 83391.05 | F118: 83930.32 | G118: 82560.78 | H118: 81730.52 | I118: 80360.98 | J118: 84760.58 | K118: 86130.12 | L118: 86960.38 | M118: 85299.85 | N118: 83100.05 | O118: 38960 | P118: 1.80%
A119: 109 | B119: Finance | C119: MUTHOOTFIN | D119: 2021-06-24 | E119: 1313.70 | F119: 1311.00 | G119: 1294.00 | H119: 1274.30 | I119: 1257.30 | J119: 1330.70 | K119: 1347.70 | L119: 1367.40 | M119: 1328 | N119: 1291.3 | O119: 2512500 | P119: -5.34%
A120: 110 | B120: Others | C120: NAM-INDIA | D120: 2021-06-24 | E120: 364.30 | F120: 365.80 | G120: 358.70 | H120: 353.10 | I120: 346.00 | J120: 371.40 | K120: 378.50 | L120: 384.10 | M120: 372.9 | N120: 360.2 | O120: 2056000 | P120: -4.67%
A121: 111 | B121: Metals | C121: NATIONALUM | D121: 2021-06-24 | E121: 72.80 | F121: 73.27 | G121: 71.88 | H121: 70.97 | I121: 69.58 | J121: 74.18 | K121: 75.57 | L121: 76.48 | M121: 74.65 | N121: 72.35 | O121: 87125000 | P121: 0.55%
A122: 112 | B122: Others | C122: NAUKRI | D122: 2021-06-24 | E122: 4446.60 | F122: 4427.92 | G122: 4391.93 | H122: 4337.27 | I122: 4301.28 | J122: 4482.58 | K122: 4518.57 | L122: 4573.23 | M122: 4463.9 | N122: 4373.25 | O122: 1605125 | P122: -1.08%
A123: 113 | B123: Chemical | C123: NAVINFLUOR | D123: 2021-06-24 | E123: 3215.30 | F123: 3206.10 | G123: 3170.35 | H123: 3125.40 | I123: 3089.65 | J123: 3251.05 | K123: 3286.80 | L123: 3331.75 | M123: 3241.85 | N123: 3161.15 | O123: 290700 | P123: 1.65%
A124: 114 | B124: FMCG | C124: NESTLEIND | D124: 2021-06-24 | E124: 17824.15 | F124: 17741.93 | G124: 17613.17 | H124: 17402.18 | I124: 17273.42 | J124: 17952.92 | K124: 18081.68 | L124: 18292.67 | M124: 17870.7 | N124: 17530.95 | O124: 222800 | P124: 0.61%
A125: 115 | B125: Metals | C125: NMDC | D125: 2021-06-24 | E125: 182.50 | F125: 182.18 | G125: 179.72 | H125: 176.93 | I125: 174.47 | J125: 184.97 | K125: 187.43 | L125: 190.22 | M125: 184.65 | N125: 179.4 | O125: 62015200 | P125: 0.09%
A126: 116 | B126: Power | C126: NTPC | D126: 2021-06-24 | E126: 110.85 | F126: 110.88 | G126: 110.12 | H126: 109.38 | I126: 108.62 | J126: 111.62 | K126: 112.38 | L126: 113.12 | M126: 111.65 | N126: 110.15 | O126: 67003500 | P126: -0.08%
A127: 117 | B127: Oil_Gas | C127: ONGC | D127: 2021-06-24 | E127: 118.35 | F127: 117.33 | G127: 115.52 | H127: 112.68 | I127: 110.87 | J127: 120.17 | K127: 121.98 | L127: 124.82 | M127: 119.15 | N127: 114.5 | O127: 49210700 | P127: 5.76%
A128: 118 | B128: Textile | C128: PAGEIND | D128: 2021-06-24 | E128: 31245.00 | F128: 31105.28 | G128: 30859.72 | H128: 30474.43 | I128: 30228.87 | J128: 31490.57 | K128: 31736.13 | L128: 32121.42 | M128: 31350.85 | N128: 30720 | O128: 82110 | P128: 3.28%
A129: 119 | B129: Pharma | C129: PEL | D129: 2021-06-24 | E129: 1801.95 | F129: 1810.50 | G129: 1771.00 | H129: 1740.05 | I129: 1700.55 | J129: 1841.45 | K129: 1880.95 | L129: 1911.90 | M129: 1850 | N129: 1779.55 | O129: 3296700 | P129: -3.06%
A130: 120 | B130: Oil_Gas | C130: PETRONET | D130: 2021-06-24 | E130: 242.00 | F130: 243.17 | G130: 240.43 | H130: 238.87 | I130: 236.13 | J130: 244.73 | K130: 247.47 | L130: 249.03 | M130: 245.9 | N130: 241.6 | O130: 19821000 | P130: 2.13%
A131: 121 | B131: Finance | C131: PFC | D131: 2021-06-24 | E131: 119.90 | F131: 120.12 | G131: 118.48 | H131: 117.07 | I131: 115.43 | J131: 121.53 | K131: 123.17 | L131: 124.58 | M131: 121.75 | N131: 118.7 | O131: 38347000 | P131: 1.05%
A132: 122 | B132: Pharma | C132: PFIZER | D132: 2021-06-24 | E132: 5155.95 | F132: 5158.93 | G132: 5134.07 | H132: 5112.18 | I132: 5087.32 | J132: 5180.82 | K132: 5205.68 | L132: 5227.57 | M132: 5183.8 | N132: 5137.05 | O132: 188375 | P132: -1.05%
A133: 123 | B133: FMCG | C133: PIDILITIND | D133: 2021-06-24 | E133: 2079.85 | F133: 2086.77 | G133: 2067.28 | H133: 2054.72 | I133: 2035.23 | J133: 2099.33 | K133: 2118.82 | L133: 2131.38 | M133: 2106.25 | N133: 2074.2 | O133: 2594500 | P133: -1.27%
A134: 124 | B134: Chemical | C134: PIIND | D134: 2021-06-24 | E134: 2626.40 | F134: 2621.57 | G134: 2601.18 | H134: 2575.97 | I134: 2555.58 | J134: 2646.78 | K134: 2667.17 | L134: 2692.38 | M134: 2641.95 | N134: 2596.35 | O134: 670500 | P134: -2.79%
A135: 125 | B135: Banking | C135: PNB | D135: 2021-06-24 | E135: 41.90 | F135: 41.98 | G135: 41.17 | H135: 40.43 | I135: 39.62 | J135: 42.72 | K135: 43.53 | L135: 44.27 | M135: 42.8 | N135: 41.25 | O135: 294416000 | P135: -4.20%
A136: 126 | B136: Power | C136: POWERGRID | D136: 2021-06-24 | E136: 225.85 | F136: 226.60 | G136: 224.60 | H136: 223.35 | I136: 221.35 | J136: 227.85 | K136: 229.85 | L136: 231.10 | M136: 228.6 | N136: 225.35 | O136: 17440000 | P136: 1.58%
A137: 127 | B137: Media | C137: PVR | D137: 2021-06-24 | E137: 1301.20 | F137: 1306.97 | G137: 1292.33 | H137: 1283.47 | I137: 1268.83 | J137: 1315.83 | K137: 1330.47 | L137: 1339.33 | M137: 1321.6 | N137: 1298.1 | O137: 1344728 | P137: -4.98%
A138: 128 | B138: Cement | C138: RAMCOCEM | D138: 2021-06-24 | E138: 955.50 | F138: 961.22 | G138: 947.48 | H138: 939.47 | I138: 925.73 | J138: 969.23 | K138: 982.97 | L138: 990.98 | M138: 974.95 | N138: 953.2 | O138: 1982200 | P138: 2.69%
A139: 129 | B139: Banking | C139: RBLBANK | D139: 2021-06-24 | E139: 212.30 | F139: 213.35 | G139: 209.35 | H139: 206.40 | I139: 202.40 | J139: 216.30 | K139: 220.30 | L139: 223.25 | M139: 217.35 | N139: 210.4 | O139: 21921100 | P139: 2.00%
A140: 130 | B140: Power | C140: RECLTD | D140: 2021-06-24 | E140: 146.35 | F140: 146.03 | G140: 144.42 | H140: 142.48 | I140: 140.87 | J140: 147.97 | K140: 149.58 | L140: 151.52 | M140: 147.65 | N140: 144.1 | O140: 16062000 | P140: 0.79%
A141: 131 | B141: Oil_Gas | C141: RELIANCE | D141: 2021-06-24 | E141: 2175.50 | F141: 2177.08 | G141: 2150.17 | H141: 2124.83 | I141: 2097.92 | J141: 2202.42 | K141: 2229.33 | L141: 2254.67 | M141: 2204 | N141: 2151.75 | O141: 29577000 | P141: -2.41%
A142: 132 | B142: Metals | C142: SAIL | D142: 2021-06-24 | E142: 121.65 | F142: 123.38 | G142: 118.47 | H142: 115.28 | I142: 110.37 | J142: 126.57 | K142: 131.48 | L142: 134.67 | M142: 128.3 | N142: 120.2 | O142: 191776500 | P142: 8.18%
A143: 133 | B143: Finance | C143: SBILIFE | D143: 2021-06-24 | E143: 971.25 | F143: 973.42 | G143: 962.28 | H143: 953.32 | I143: 942.18 | J143: 982.38 | K143: 993.52 | L143: 1002.48 | M143: 984.55 | N143: 964.45 | O143: 5658750 | P143: 1.18%
A144: 134 | B144: Banking | C144: SBIN | D144: 2021-06-24 | E144: 429.90 | F144: 428.82 | G144: 424.18 | H144: 418.47 | I144: 413.83 | J144: 434.53 | K144: 439.17 | L144: 444.88 | M144: 433.45 | N144: 423.1 | O144: 98272500 | P144: -4.65%
A145: 135 | B145: Cement | C145: SHREECEM | D145: 2021-06-24 | E145: 27740.35 | F145: 27790.43 | G145: 27450.92 | H145: 27161.48 | I145: 26821.97 | J145: 28079.87 | K145: 28419.38 | L145: 28708.82 | M145: 28129.95 | N145: 27501 | O145: 143625 | P145: -1.31%
A146: 136 | B146: Capital_Goods | C146: SIEMENS | D146: 2021-06-24 | E146: 2069.90 | F146: 2080.13 | G146: 2052.27 | H146: 2034.63 | I146: 2006.77 | J146: 2097.77 | K146: 2125.63 | L146: 2143.27 | M146: 2108 | N146: 2062.5 | O146: 870100 | P146: 0.70%
A147: 137 | B147: Textile | C147: SRF | D147: 2021-06-24 | E147: 6596.95 | F147: 6565.18 | G147: 6524.32 | H147: 6451.68 | I147: 6410.82 | J147: 6637.82 | K147: 6678.68 | L147: 6751.32 | M147: 6606.05 | N147: 6492.55 | O147: 317125 | P147: -1.82%
A148: 138 | B148: Finance | C148: SRTRANSFIN | D148: 2021-06-24 | E148: 1408.65 | F148: 1408.38 | G148: 1384.42 | H148: 1360.18 | I148: 1336.22 | J148: 1432.62 | K148: 1456.58 | L148: 1480.82 | M148: 1432.35 | N148: 1384.15 | O148: 3614400 | P148: 4.41%
A149: 139 | B149: Pharma | C149: SUNPHARMA | D149: 2021-06-24 | E149: 674.85 | F149: 672.65 | G149: 668.80 | H149: 662.75 | I149: 658.90 | J149: 678.70 | K149: 682.55 | L149: 688.60 | M149: 676.5 | N149: 666.6 | O149: 42175000 | P149: -1.78%
A150: 140 | B150: Media | C150: SUNTV | D150: 2021-06-24 | E150: 530.05 | F150: 534.43 | G150: 520.87 | H150: 511.68 | I150: 498.12 | J150: 543.62 | K150: 557.18 | L150: 566.37 | M150: 548 | N150: 525.25 | O150: 14734500 | P150: -2.49%
A151: 141 | B151: Chemical | C151: TATACHEM | D151: 2021-06-24 | E151: 700.20 | F151: 702.03 | G151: 693.47 | H151: 686.73 | I151: 678.17 | J151: 708.77 | K151: 717.33 | L151: 724.07 | M151: 710.6 | N151: 695.3 | O151: 8373000 | P151: 0.73%
A152: 142 | B152: FMCG | C152: TATACONSUM | D152: 2021-06-24 | E152: 663.90 | F152: 661.82 | G152: 657.68 | H152: 651.47 | I152: 647.33 | J152: 668.03 | K152: 672.17 | L152: 678.38 | M152: 665.95 | N152: 655.6 | O152: 7393950 | P152: -0.29%
A153: 143 | B153: Automobile | C153: TATAMOTORS | D153: 2021-06-24 | E153: 319.05 | F153: 321.52 | G153: 315.53 | H153: 312.02 | I153: 306.03 | J153: 325.03 | K153: 331.02 | L153: 334.53 | M153: 327.5 | N153: 318 | O153: 94352100 | P153: -0.67%
A154: 144 | B154: Power | C154: TATAPOWER | D154: 2021-06-24 | E154: 103.90 | F154: 103.95 | G154: 102.60 | H154: 101.30 | I154: 99.95 | J154: 105.25 | K154: 106.60 | L154: 107.90 | M154: 105.3 | N154: 102.65 | O154: 141621750 | P154: 2.26%
A155: 145 | B155: Metals | C155: TATASTEEL | D155: 2021-06-24 | E155: 1082.60 | F155: 1084.33 | G155: 1063.32 | H155: 1044.03 | I155: 1023.02 | J155: 1103.62 | K155: 1124.63 | L155: 1143.92 | M155: 1105.35 | N155: 1065.05 | O155: 48459350 | P155: 5.58%
A156: 146 | B156: Technology | C156: TCS | D156: 2021-06-24 | E156: 3171.85 | F156: 3166.25 | G156: 3154.50 | H156: 3137.15 | I156: 3125.40 | J156: 3183.60 | K156: 3195.35 | L156: 3212.70 | M156: 3178 | N156: 3148.9 | O156: 6950700 | P156: 0.87%
A157: 147 | B157: Technology | C157: TECHM | D157: 2021-06-24 | E157: 1036.80 | F157: 1031.33 | G157: 1024.27 | H157: 1011.73 | I157: 1004.67 | J157: 1043.87 | K157: 1050.93 | L157: 1063.47 | M157: 1038.4 | N157: 1018.8 | O157: 10645800 | P157: 1.04%
A158: 148 | B158: FMCG | C158: TITAN | D158: 2021-06-24 | E158: 1599.35 | F158: 1603.63 | G158: 1591.37 | H158: 1583.38 | I158: 1571.12 | J158: 1611.62 | K158: 1623.88 | L158: 1631.87 | M158: 1615.9 | N158: 1595.65 | O158: 4428750 | P158: 0.61%
A159: 149 | B159: Pharma | C159: TORNTPHARM | D159: 2021-06-24 | E159: 2779.30 | F159: 2757.03 | G159: 2729.12 | H159: 2678.93 | I159: 2651.02 | J159: 2807.22 | K159: 2835.13 | L159: 2885.32 | M159: 2784.95 | N159: 2706.85 | O159: 806500 | P159: -1.47%
A160: 150 | B160: Power | C160: TORNTPOWER | D160: 2021-06-24 | E160: 428.25 | F160: 428.35 | G160: 424.70 | H160: 421.15 | I160: 417.50 | J160: 431.90 | K160: 435.55 | L160: 439.10 | M160: 432 | N160: 424.8 | O160: 1918500 | P160: -3.11%
A161: 151 | B161: Others | C161: TRENT | D161: 2021-06-24 | E161: 843.05 | F161: 847.53 | G161: 831.12 | H161: 819.18 | I161: 802.77 | J161: 859.47 | K161: 875.88 | L161: 887.82 | M161: 863.95 | N161: 835.6 | O161: 988175 | P161: -0.66%
A162: 152 | B162: Automobile | C162: TVSMOTOR | D162: 2021-06-24 | E162: 614.60 | F162: 618.45 | G162: 608.40 | H162: 602.20 | I162: 592.15 | J162: 624.65 | K162: 634.70 | L162: 640.90 | M162: 628.5 | N162: 612.25 | O162: 5973800 | P162: 1.69%
A163: 153 | B163: FMCG | C163: UBL | D163: 2021-06-24 | E163: 1258.50 | F163: 1263.02 | G163: 1241.78 | H163: 1225.07 | I163: 1203.83 | J163: 1279.73 | K163: 1300.97 | L163: 1317.68 | M163: 1284.25 | N163: 1246.3 | O163: 1173900 | P163: -0.53%
A164: 154 | B164: Cement | C164: ULTRACEMCO | D164: 2021-06-24 | E164: 6643.15 | F164: 6658.28 | G164: 6568.97 | H164: 6494.78 | I164: 6405.47 | J164: 6732.47 | K164: 6821.78 | L164: 6895.97 | M164: 6747.6 | N164: 6584.1 | O164: 2375400 | P164: 0.84%
A165: 155 | B165: Chemical | C165: UPL | D165: 2021-06-24 | E165: 820.95 | F165: 821.10 | G165: 812.20 | H165: 803.45 | I165: 794.55 | J165: 829.85 | K165: 838.75 | L165: 847.50 | M165: 830 | N165: 812.35 | O165: 18167500 | P165: 3.14%
A166: 156 | B166: Metals | C166: VEDL | D166: 2021-06-24 | E166: 270.10 | F166: 271.72 | G166: 265.53 | H166: 260.97 | I166: 254.78 | J166: 276.28 | K166: 282.47 | L166: 287.03 | M166: 277.9 | N166: 267.15 | O166: 122496500 | P166: 0.31%
A167: 157 | B167: Capital_Goods | C167: VOLTAS | D167: 2021-06-24 | E167: 1016.70 | F167: 1016.07 | G167: 1008.83 | H167: 1000.97 | I167: 993.73 | J167: 1023.93 | K167: 1031.17 | L167: 1039.03 | M167: 1023.3 | N167: 1008.2 | O167: 2302500 | P167: -1.41%
A168: 158 | B168: Technology | C168: WIPRO | D168: 2021-06-24 | E168: 543.80 | F168: 543.87 | G168: 540.43 | H168: 537.07 | I168: 533.63 | J168: 547.23 | K168: 550.67 | L168: 554.03 | M168: 547.3 | N168: 540.5 | O168: 33841600 | P168: -0.92%
A169: 159 | B169: Media | C169: ZEEL | D169: 2021-06-24 | E169: 213.75 | F169: 210.95 | G169: 207.65 | H169: 201.55 | I169: 198.25 | J169: 217.05 | K169: 220.35 | L169: 226.45 | M169: 214.25 | N169: 204.85 | O169: 75693000 | P169: -6.06%
A175: Pivot Point: This is trigger point for intra day buy/sell based on the price range of the previous day
A176: As per the tool,the trader should take BUY position just above Pivot and keep the stop loss of pivot point and the first target would be Resistance 1(R1)
A177: If R1 is crossed then R2 becomes the next target with stop loss of at R1
A178: Similarly if price goes below pivot point then the trader should sell and keep a stop loss of pivot point and the first target would be S1
A179: If S1 is crossed then S2 becomes the next target with stop loss of at S1
A181: Disclaimer:
A182: This document has been prepared by the Retail Research Desk of Asit C Mehta
A183: Investment Intermediates Ltd. and is meant for use of the recipient only
A184: and is not for circulation. This document is not to be reported or
A185: copied or made available to others. It should not be considered to be
A186: taken as an offer to sell or a solicitation to buy any security. The
A187: information contained herein is from sources believed reliable. We do
A188: not represent that it is accurate or complete and it should not be
A189: relied upon as such. We may from time to time have positions in and buy
A190: and sell securities referred to herein

Sheet Cash Intra
M5: Back to Main Page
A6: FOR INTRA DAY TRADING | K6: =Main!B10 -> 2021-06-02
A8: Sr.no | C8: CLOSE RATE | D8: Pivot Point | E8: Supports | H8: Resistances
C9: Point | E9: S1 | F9: S2 | G9: S3 | H9: R1 | I9: R2 | J9: R3 | K9: HIGH | L9: LOW | M9: Total Trade Quanity in Lakhs
A10: 1 | B10: Nifty 50 | C10: 15574.85 | D10: 15587.97 | E10: 15515.18 | F10: 15455.52 | G10: 15382.73 | H10: 15647.63 | I10: 15720.42 | J10: 15780.08 | K10: 15660.75 | L10: 15528.3
A11: 2 | B11: Nifty Bank | C11: 35337.2 | D11: 35430.77 | E11: 35147.63 | F11: 34958.07 | G11: 34674.93 | H11: 35620.33 | I11: 35903.47 | J11: 36093.03 | K11: 35713.9 | L11: 35241.2
A12: 3 | B12: Nifty CPSE | C12: 1968.85 | D12: 1972.58 | E12: 1960.57 | F12: 1952.28 | G12: 1940.27 | H12: 1980.87 | I12: 1992.88 | J12: 2001.17 | K12: 1984.6 | L12: 1964.3
A13: 4 | B13: Nifty Infra | C13: 4332.55 | D13: 4336.22 | E13: 4309.13 | F13: 4285.72 | G13: 4258.63 | H13: 4359.63 | I13: 4386.72 | J13: 4410.13 | K13: 4363.3 | L13: 4312.8
A14: 5 | B14: Nifty IT | C14: 27144.4 | D14: 27117.35 | E14: 26980.55 | F14: 26816.70 | G14: 26679.90 | H14: 27281.20 | I14: 27418.00 | J14: 27581.85 | K14: 27254.15 | L14: 26953.5
A15: 6 | B15: Nifty PSE | C15: 3521.75 | D15: 3528.15 | E15: 3503.75 | F15: 3485.75 | G15: 3461.35 | H15: 3546.15 | I15: 3570.55 | J15: 3588.55 | K15: 3552.55 | L15: 3510.15
A16: 7 | B16: Nifty Midcap 50 | C16: 7164 | D16: 7176.72 | E16: 7103.33 | F16: 7042.67 | G16: 6969.28 | H16: 7237.38 | I16: 7310.77 | J16: 7371.43 | K16: 7250.1 | L16: 7116.05
A17: 8 | B17: ACC | C17: 1973.45 | D17: 1978.07 | E17: 1955.13 | F17: 1936.82 | G17: 1913.88 | H17: 1996.38 | I17: 2019.32 | J17: 2037.63 | K17: 2001 | L17: 1959.75 | M17: 2.97295
A18: 9 | B18: AUBANK | C18: 989.1 | D18: 986.63 | E18: 978.47 | F18: 967.83 | G18: 959.67 | H18: 997.27 | I18: 1005.43 | J18: 1016.07 | K18: 994.8 | L18: 976 | M18: 5.43662
A19: 10 | B19: AARTIIND | C19: 1710.8 | D19: 1710.50 | E19: 1676.35 | F19: 1641.90 | G19: 1607.75 | H19: 1744.95 | I19: 1779.10 | J19: 1813.55 | K19: 1744.65 | L19: 1676.05 | M19: 15.03711
A20: 11 | B20: ABBOTINDIA | C20: 15958.15 | D20: 15987.05 | E20: 15874.10 | F20: 15790.05 | G20: 15677.10 | H20: 16071.10 | I20: 16184.05 | J20: 16268.10 | K20: 16100 | L20: 15903 | M20: 0.1859
A21: 12 | B21: ADANIENT | C21: 1416.25 | D21: 1385.10 | E21: 1340.20 | F21: 1264.15 | G21: 1219.25 | H21: 1461.15 | I21: 1506.05 | J21: 1582.10 | K21: 1430 | L21: 1309.05 | M21: 100.18645
A22: 13 | B22: ADANIGREEN | C22: 1271.05 | D22: 1266.68 | E22: 1253.37 | F22: 1235.68 | G22: 1222.37 | H22: 1284.37 | I22: 1297.68 | J22: 1315.37 | K22: 1280 | L22: 1249 | M22: 6.64012
A23: 14 | B23: ADANIPORTS | C23: 798.2 | D23: 788.10 | E23: 774.40 | F23: 750.60 | G23: 736.90 | H23: 811.90 | I23: 825.60 | J23: 849.40 | K23: 801.8 | L23: 764.3 | M23: 178.47137
A24: 15 | B24: ATGL | C24: 1440.6 | D24: 1416.22 | E24: 1380.43 | F24: 1320.27 | G24: 1284.48 | H24: 1476.38 | I24: 1512.17 | J24: 1572.33 | K24: 1452 | L24: 1356.05 | M24: 22.07381
A25: 16 | B25: ADANITRANS | C25: 1499.45 | D25: 1496.48 | E25: 1477.97 | F25: 1456.48 | G25: 1437.97 | H25: 1517.97 | I25: 1536.48 | J25: 1557.97 | K25: 1515 | L25: 1475 | M25: 15.43382
A26: 17 | B26: ABCAPITAL | C26: 118.65 | D26: 120.18 | E26: 116.62 | F26: 114.58 | G26: 111.02 | H26: 122.22 | I26: 125.78 | J26: 127.82 | K26: 123.75 | L26: 118.15 | M26: 27.02652
A27: 18 | B27: ABFRL | C27: 197.55 | D27: 197.07 | E27: 194.13 | F27: 190.72 | G27: 187.78 | H27: 200.48 | I27: 203.42 | J27: 206.83 | K27: 200 | L27: 193.65 | M27: 39.52703
A28: 19 | B28: AJANTPHARM | C28: 1933.65 | D28: 1934.20 | E28: 1914.45 | F28: 1895.25 | G28: 1875.50 | H28: 1953.40 | I28: 1973.15 | J28: 1992.35 | K28: 1953.95 | L28: 1915 | M28: 0.62975
A29: 20 | B29: APLLTD | C29: 944.4 | D29: 943.83 | E29: 931.67 | F29: 918.93 | G29: 906.77 | H29: 956.57 | I29: 968.73 | J29: 981.47 | K29: 956 | L29: 931.1 | M29: 2.45756
A30: 21 | B30: ALKEM | C30: 3101.75 | D30: 3038.92 | E30: 2962.83 | F30: 2823.92 | G30: 2747.83 | H30: 3177.83 | I30: 3253.92 | J30: 3392.83 | K30: 3115 | L30: 2900 | M30: 7.09879
A31: 22 | B31: AMARAJABAT | C31: 739.1 | D31: 741.70 | E31: 735.45 | F31: 731.80 | G31: 725.55 | H31: 745.35 | I31: 751.60 | J31: 755.25 | K31: 747.95 | L31: 738.05 | M31: 15.17337
A32: 23 | B32: AMBUJACEM | C32: 324.2 | D32: 325.40 | E32: 321.90 | F32: 319.60 | G32: 316.10 | H32: 327.70 | I32: 331.20 | J32: 333.50 | K32: 328.9 | L32: 323.1 | M32: 26.49537
A33: 24 | B33: APOLLOHOSP | C33: 3239.8 | D33: 3216.55 | E33: 3184.10 | F33: 3128.40 | G33: 3095.95 | H33: 3272.25 | I33: 3304.70 | J33: 3360.40 | K33: 3249 | L33: 3160.85 | M33: 7.06976
A34: 25 | B34: APOLLOTYRE | C34: 221.8 | D34: 223.25 | E34: 218.65 | F34: 215.50 | G34: 210.90 | H34: 226.40 | I34: 231.00 | J34: 234.15 | K34: 227.85 | L34: 220.1 | M34: 53.76825
A35: 26 | B35: ASHOKLEY | C35: 121.65 | D35: 122.40 | E35: 120.35 | F35: 119.05 | G35: 117.00 | H35: 123.70 | I35: 125.75 | J35: 127.05 | K35: 124.45 | L35: 121.1 | M35: 125.24009
A36: 27 | B36: ASIANPAINT | C36: 2931 | D36: 2942.90 | E36: 2903.20 | F36: 2875.40 | G36: 2835.70 | H36: 2970.70 | I36: 3010.40 | J36: 3038.20 | K36: 2982.6 | L36: 2915.1 | M36: 11.94073
A37: 28 | B37: AUROPHARMA | C37: 970.3 | D37: 979.38 | E37: 950.17 | F37: 930.03 | G37: 900.82 | H37: 999.52 | I37: 1028.73 | J37: 1048.87 | K37: 1008.6 | L37: 959.25 | M37: 49.67258
A38: 29 | B38: DMART | C38: 3044.8 | D38: 3054.52 | E38: 3021.08 | F38: 2997.37 | G38: 2963.93 | H38: 3078.23 | I38: 3111.67 | J38: 3135.38 | K38: 3087.95 | L38: 3030.8 | M38: 1.80498
A39: 30 | B39: AXISBANK | C39: 745.15 | D39: 746.77 | E39: 739.53 | F39: 733.92 | G39: 726.68 | H39: 752.38 | I39: 759.62 | J39: 765.23 | K39: 754 | L39: 741.15 | M39: 66.60243
A40: 31 | B40: BAJAJ-AUTO | C40: 4238.95 | D40: 4263.62 | E40: 4180.23 | F40: 4121.52 | G40: 4038.13 | H40: 4322.33 | I40: 4405.72 | J40: 4464.43 | K40: 4347 | L40: 4204.9 | M40: 12.48169
A41: 32 | B41: BAJFINANCE | C41: 5784.8 | D41: 5742.73 | E41: 5667.47 | F41: 5550.13 | G41: 5474.87 | H41: 5860.07 | I41: 5935.33 | J41: 6052.67 | K41: 5818 | L41: 5625.4 | M41: 28.53451
A42: 33 | B42: BAJAJFINSV | C42: 11829.9 | D42: 11801.52 | E42: 11655.43 | F42: 11480.97 | G42: 11334.88 | H42: 11975.98 | I42: 12122.07 | J42: 12296.53 | K42: 11947.6 | L42: 11627.05 | M42: 3.02421
A43: 34 | B43: BAJAJHLDNG | C43: 3505.9 | D43: 3515.90 | E43: 3447.00 | F43: 3388.10 | G43: 3319.20 | H43: 3574.80 | I43: 3643.70 | J43: 3702.60 | K43: 3584.8 | L43: 3457 | M43: 0.77518
A44: 35 | B44: BALKRISIND | C44: 2175.3 | D44: 2200.30 | E44: 2145.60 | F44: 2115.90 | G44: 2061.20 | H44: 2230.00 | I44: 2284.70 | J44: 2314.40 | K44: 2255 | L44: 2170.6 | M44: 6.71165
A45: 36 | B45: BANDHANBNK | C45: 302.85 | D45: 305.05 | E45: 299.30 | F45: 295.75 | G45: 290.00 | H45: 308.60 | I45: 314.35 | J45: 317.90 | K45: 310.8 | L45: 301.5 | M45: 50.75472
A46: 37 | B46: BANKBARODA | C46: 79.35 | D46: 79.80 | E46: 78.35 | F46: 77.35 | G46: 75.90 | H46: 80.80 | I46: 82.25 | J46: 83.25 | K46: 81.25 | L46: 78.8 | M46: 591.05829
A47: 38 | B47: BANKINDIA | C47: 76.2 | D47: 76.67 | E47: 75.58 | F47: 74.97 | G47: 73.88 | H47: 77.28 | I47: 78.37 | J47: 78.98 | K47: 77.75 | L47: 76.05 | M47: 29.94219
A48: 39 | B48: BATAINDIA | C48: 1540.7 | D48: 1540.73 | E48: 1527.47 | F48: 1514.23 | G48: 1500.97 | H48: 1553.97 | I48: 1567.23 | J48: 1580.47 | K48: 1554 | L48: 1527.5 | M48: 2.61666
A49: 40 | B49: BERGEPAINT | C49: 798.25 | D49: 800.57 | E49: 793.73 | F49: 789.22 | G49: 782.38 | H49: 805.08 | I49: 811.92 | J49: 816.43 | K49: 807.4 | L49: 796.05 | M49: 6.52849
A50: 41 | B50: BEL | C50: 146.95 | D50: 148.65 | E50: 144.30 | F50: 141.65 | G50: 137.30 | H50: 151.30 | I50: 155.65 | J50: 158.30 | K50: 153 | L50: 146 | M50: 249.60961
A51: 42 | B51: BHARATFORG | C51: 666.65 | D51: 671.48 | E51: 655.27 | F51: 643.88 | G51: 627.67 | H51: 682.87 | I51: 699.08 | J51: 710.47 | K51: 687.7 | L51: 660.1 | M51: 16.1253
A52: 43 | B52: BHEL | C52: 71.1 | D52: 72.00 | E52: 69.80 | F52: 68.50 | G52: 66.30 | H52: 73.30 | I52: 75.50 | J52: 76.80 | K52: 74.2 | L52: 70.7 | M52: 962.66171
A53: 44 | B53: BPCL | C53: 470.85 | D53: 472.55 | E53: 468.40 | F53: 465.95 | G53: 461.80 | H53: 475.00 | I53: 479.15 | J53: 481.60 | K53: 476.7 | L53: 470.1 | M53: 44.34765
A54: 45 | B54: BHARTIARTL | C54: 532.9 | D54: 533.87 | E54: 529.33 | F54: 525.77 | G54: 521.23 | H54: 537.43 | I54: 541.97 | J54: 545.53 | K54: 538.4 | L54: 530.3 | M54: 82.80431
A55: 46 | B55: BIOCON | C55: 385.85 | D55: 387.43 | E55: 383.42 | F55: 380.98 | G55: 376.97 | H55: 389.87 | I55: 393.88 | J55: 396.32 | K55: 391.45 | L55: 385 | M55: 17.48372
A56: 47 | B56: BBTC | C56: 1301.15 | D56: 1304.12 | E56: 1280.88 | F56: 1260.62 | G56: 1237.38 | H56: 1324.38 | I56: 1347.62 | J56: 1367.88 | K56: 1327.35 | L56: 1283.85 | M56: 1.0587
A57: 48 | B57: BOSCHLTD | C57: 15108.55 | D57: 15188.02 | E57: 15001.03 | F57: 14893.52 | G57: 14706.53 | H57: 15295.53 | I57: 15482.52 | J57: 15590.03 | K57: 15375 | L57: 15080.5 | M57: 0.20001
A58: 49 | B58: BRITANNIA | C58: 3446.75 | D58: 3452.62 | E58: 3436.13 | F58: 3425.52 | G58: 3409.03 | H58: 3463.23 | I58: 3479.72 | J58: 3490.33 | K58: 3469.1 | L58: 3442 | M58: 2.3658
A59: 50 | B59: CESC | C59: 680.2 | D59: 682.75 | E59: 674.35 | F59: 668.50 | G59: 660.10 | H59: 688.60 | I59: 697.00 | J59: 702.85 | K59: 691.15 | L59: 676.9 | M59: 1.65994
A60: 51 | B60: CADILAHC | C60: 619.45 | D60: 621.20 | E60: 614.75 | F60: 610.05 | G60: 603.60 | H60: 625.90 | I60: 632.35 | J60: 637.05 | K60: 627.65 | L60: 616.5 | M60: 35.40399
A61: 52 | B61: CANBK | C61: 159.05 | D61: 159.97 | E61: 156.93 | F61: 154.82 | G61: 151.78 | H61: 162.08 | I61: 165.12 | J61: 167.23 | K61: 163 | L61: 157.85 | M61: 175.26434
A62: 53 | B62: CASTROLIND | C62: 132.4 | D62: 133.45 | E62: 131.00 | F62: 129.60 | G62: 127.15 | H62: 134.85 | I62: 137.30 | J62: 138.70 | K62: 135.9 | L62: 132.05 | M62: 9.00115
A63: 54 | B63: CHOLAFIN | C63: 545.65 | D63: 548.65 | E63: 539.45 | F63: 533.25 | G63: 524.05 | H63: 554.85 | I63: 564.05 | J63: 570.25 | K63: 557.85 | L63: 542.45 | M63: 31.5107
A64: 55 | B64: CIPLA | C64: 946.45 | D64: 949.33 | E64: 940.67 | F64: 934.88 | G64: 926.22 | H64: 955.12 | I64: 963.78 | J64: 969.57 | K64: 958 | L64: 943.55 | M64: 29.04962
A65: 56 | B65: CUB | C65: 167.05 | D65: 168.77 | E65: 164.83 | F65: 162.62 | G65: 158.68 | H65: 170.98 | I65: 174.92 | J65: 177.13 | K65: 172.7 | L65: 166.55 | M65: 37.85119
A66: 57 | B66: COALINDIA | C66: 147.6 | D66: 147.97 | E66: 146.53 | F66: 145.47 | G66: 144.03 | H66: 149.03 | I66: 150.47 | J66: 151.53 | K66: 149.4 | L66: 146.9 | M66: 93.07143
A67: 58 | B67: COFORGE | C67: 3588.6 | D67: 3564.17 | E67: 3530.33 | F67: 3472.07 | G67: 3438.23 | H67: 3622.43 | I67: 3656.27 | J67: 3714.53 | K67: 3598 | L67: 3505.9 | M67: 4.28643
A68: 59 | B68: COLPAL | C68: 1713.8 | D68: 1720.17 | E68: 1702.33 | F68: 1690.87 | G68: 1673.03 | H68: 1731.63 | I68: 1749.47 | J68: 1760.93 | K68: 1738 | L68: 1708.7 | M68: 2.26744
A69: 60 | B69: CONCOR | C69: 693.15 | D69: 689.05 | E69: 681.10 | F69: 669.05 | G69: 661.10 | H69: 701.10 | I69: 709.05 | J69: 721.10 | K69: 697 | L69: 677 | M69: 38.51257
A70: 61 | B70: COROMANDEL | C70: 799.3 | D70: 799.23 | E70: 790.07 | F70: 780.83 | G70: 771.67 | H70: 808.47 | I70: 817.63 | J70: 826.87 | K70: 808.4 | L70: 790 | M70: 2.75247
A71: 62 | B71: CROMPTON | C71: 398.3 | D71: 401.07 | E71: 394.23 | F71: 390.17 | G71: 383.33 | H71: 405.13 | I71: 411.97 | J71: 416.03 | K71: 407.9 | L71: 397 | M71: 7.07472
A72: 63 | B72: CUMMINSIND | C72: 779.85 | D72: 781.92 | E72: 769.68 | F72: 759.52 | G72: 747.28 | H72: 792.08 | I72: 804.32 | J72: 814.48 | K72: 794.15 | L72: 771.75 | M72: 8.29538
A73: 64 | B73: DLF | C73: 287.3 | D73: 285.92 | E73: 281.83 | F73: 276.37 | G73: 272.28 | H73: 291.38 | I73: 295.47 | J73: 300.93 | K73: 290 | L73: 280.45 | M73: 53.28784
A74: 65 | B74: DABUR | C74: 537.05 | D74: 539.02 | E74: 533.03 | F74: 529.02 | G74: 523.03 | H74: 543.03 | I74: 549.02 | J74: 553.03 | K74: 545 | L74: 535 | M74: 18.55968
A75: 66 | B75: DALBHARAT | C75: 1815.3 | D75: 1804.40 | E75: 1778.80 | F75: 1742.30 | G75: 1716.70 | H75: 1840.90 | I75: 1866.50 | J75: 1903.00 | K75: 1830 | L75: 1767.9 | M75: 1.67319
A76: 67 | B76: DHANI | C76: 171.4 | D76: 172.57 | E76: 169.33 | F76: 167.27 | G76: 164.03 | H76: 174.63 | I76: 177.87 | J76: 179.93 | K76: 175.8 | L76: 170.5 | M76: 4.6222
A77: 68 | B77: DIVISLAB | C77: 4220.1 | D77: 4200.75 | E77: 4174.40 | F77: 4128.70 | G77: 4102.35 | H77: 4246.45 | I77: 4272.80 | J77: 4318.50 | K77: 4227.1 | L77: 4155.05 | M77: 6.52655
A78: 69 | B78: LALPATHLAB | C78: 2897.75 | D78: 2919.97 | E78: 2858.03 | F78: 2818.32 | G78: 2756.38 | H78: 2959.68 | I78: 3021.62 | J78: 3061.33 | K78: 2981.9 | L78: 2880.25 | M78: 4.47758
A79: 70 | B79: DRREDDY | C79: 5316.5 | D79: 5306.93 | E79: 5274.87 | F79: 5233.23 | G79: 5201.17 | H79: 5348.57 | I79: 5380.63 | J79: 5422.27 | K79: 5339 | L79: 5265.3 | M79: 7.47373
A80: 71 | B80: EDELWEISS | C80: 63.75 | D80: 64.23 | E80: 62.52 | F80: 61.28 | G80: 59.57 | H80: 65.47 | I80: 67.18 | J80: 68.42 | K80: 65.95 | L80: 63 | M80: 14.29696
A81: 72 | B81: EICHERMOT | C81: 2665.8 | D81: 2659.93 | E81: 2615.87 | F81: 2565.93 | G81: 2521.87 | H81: 2709.87 | I81: 2753.93 | J81: 2803.87 | K81: 2704 | L81: 2610 | M81: 11.26551
A82: 73 | B82: EMAMILTD | C82: 507.5 | D82: 508.15 | E82: 501.40 | F82: 495.30 | G82: 488.55 | H82: 514.25 | I82: 521.00 | J82: 527.10 | K82: 514.9 | L82: 502.05 | M82: 5.82758
A83: 74 | B83: ENDURANCE | C83: 1492.9 | D83: 1492.97 | E83: 1461.93 | F83: 1430.97 | G83: 1399.93 | H83: 1523.93 | I83: 1554.97 | J83: 1585.93 | K83: 1524 | L83: 1462 | M83: 1.17149
A84: 75 | B84: ESCORTS | C84: 1162.8 | D84: 1168.42 | E84: 1146.83 | F84: 1130.87 | G84: 1109.28 | H84: 1184.38 | I84: 1205.97 | J84: 1221.93 | K84: 1190 | L84: 1152.45 | M84: 18.35877
A85: 76 | B85: EXIDEIND | C85: 190 | D85: 191.00 | E85: 188.50 | F85: 187.00 | G85: 184.50 | H85: 192.50 | I85: 195.00 | J85: 196.50 | K85: 193.5 | L85: 189.5 | M85: 18.77809
A86: 77 | B86: FEDERALBNK | C86: 85.75 | D86: 86.25 | E86: 84.60 | F86: 83.45 | G86: 81.80 | H86: 87.40 | I86: 89.05 | J86: 90.20 | K86: 87.9 | L86: 85.1 | M86: 236.72298
A87: 78 | B87: FORTIS | C87: 230.05 | D87: 230.10 | E87: 227.10 | F87: 224.15 | G87: 221.15 | H87: 233.05 | I87: 236.05 | J87: 239.00 | K87: 233.1 | L87: 227.15 | M87: 50.05463
A88: 79 | B88: FRETAIL | C88: 47.7 | D88: 47.93 | E88: 46.12 | F88: 44.53 | G88: 42.72 | H88: 49.52 | I88: 51.33 | J88: 52.92 | K88: 49.75 | L88: 46.35 | M88: 44.41744
A89: 80 | B89: GAIL | C89: 160.45 | D89: 160.07 | E89: 158.38 | F89: 156.32 | G89: 154.63 | H89: 162.13 | I89: 163.82 | J89: 165.88 | K89: 161.75 | L89: 158 | M89: 141.27363
A90: 81 | B90: GMRINFRA | C90: 25.7 | D90: 25.78 | E90: 25.37 | F90: 25.03 | G90: 24.62 | H90: 26.12 | I90: 26.53 | J90: 26.87 | K90: 26.2 | L90: 25.45 | M90: 108.82858
A91: 82 | B91: GICRE | C91: 196.75 | D91: 197.37 | E91: 193.98 | F91: 191.22 | G91: 187.83 | H91: 200.13 | I91: 203.52 | J91: 206.28 | K91: 200.75 | L91: 194.6 | M91: 5.55102
A92: 83 | B92: GLENMARK | C92: 594.7 | D92: 599.18 | E92: 586.52 | F92: 578.33 | G92: 565.67 | H92: 607.37 | I92: 620.03 | J92: 628.22 | K92: 611.85 | L92: 591 | M92: 22.89905
A93: 84 | B93: GODREJAGRO | C93: 552.05 | D93: 552.33 | E93: 549.67 | F93: 547.28 | G93: 544.62 | H93: 554.72 | I93: 557.38 | J93: 559.77 | K93: 555 | L93: 549.95 | M93: 1.56517
A94: 85 | B94: GODREJCP | C94: 849.05 | D94: 853.30 | E94: 841.30 | F94: 833.55 | G94: 821.55 | H94: 861.05 | I94: 873.05 | J94: 880.80 | K94: 865.3 | L94: 845.55 | M94: 10.44836
A95: 86 | B95: GODREJIND | C95: 527.4 | D95: 528.57 | E95: 519.18 | F95: 510.97 | G95: 501.58 | H95: 536.78 | I95: 546.17 | J95: 554.38 | K95: 537.95 | L95: 520.35 | M95: 3.20543
A96: 87 | B96: GODREJPROP | C96: 1361.1 | D96: 1366.55 | E96: 1346.15 | F96: 1331.20 | G96: 1310.80 | H96: 1381.50 | I96: 1401.90 | J96: 1416.85 | K96: 1386.95 | L96: 1351.6 | M96: 4.75091
A97: 88 | B97: GRASIM | C97: 1444.55 | D97: 1453.57 | E97: 1427.98 | F97: 1411.42 | G97: 1385.83 | H97: 1470.13 | I97: 1495.72 | J97: 1512.28 | K97: 1479.15 | L97: 1437 | M97: 11.17622
A98: 89 | B98: GUJGASLTD | C98: 540.4 | D98: 541.07 | E98: 534.33 | F98: 528.27 | G98: 521.53 | H98: 547.13 | I98: 553.87 | J98: 559.93 | K98: 547.8 | L98: 535 | M98: 25.05309
A99: 90 | B99: GSPL | C99: 277.05 | D99: 277.02 | E99: 273.08 | F99: 269.12 | G99: 265.18 | H99: 280.98 | I99: 284.92 | J99: 288.88 | K99: 280.95 | L99: 273.05 | M99: 11.78101
A100: 91 | B100: HCLTECH | C100: 950.7 | D100: 948.25 | E100: 944.50 | F100: 938.30 | G100: 934.55 | H100: 954.45 | I100: 958.20 | J100: 964.40 | K100: 952 | L100: 942.05 | M100: 29.44472
A101: 92 | B101: HDFCAMC | C101: 2964.9 | D101: 2976.32 | E101: 2940.63 | F101: 2916.37 | G101: 2880.68 | H101: 3000.58 | I101: 3036.27 | J101: 3060.53 | K101: 3012 | L101: 2952.05 | M101: 1.98733
A102: 93 | B102: HDFCBANK | C102: 1511.7 | D102: 1515.32 | E102: 1503.63 | F102: 1495.57 | G102: 1483.88 | H102: 1523.38 | I102: 1535.07 | J102: 1543.13 | K102: 1527 | L102: 1507.25 | M102: 55.15081
A103: 94 | B103: HDFCLIFE | C103: 665.25 | D103: 666.62 | E103: 662.28 | F103: 659.32 | G103: 654.98 | H103: 669.58 | I103: 673.92 | J103: 676.88 | K103: 670.95 | L103: 663.65 | M103: 17.3133
A104: 95 | B104: HAVELLS | C104: 1029.45 | D104: 1033.50 | E104: 1022.00 | F104: 1014.55 | G104: 1003.05 | H104: 1040.95 | I104: 1052.45 | J104: 1059.90 | K104: 1045 | L104: 1026.05 | M104: 12.15986
A105: 96 | B105: HEROMOTOCO | C105: 2976.75 | D105: 2999.25 | E105: 2943.50 | F105: 2910.25 | G105: 2854.50 | H105: 3032.50 | I105: 3088.25 | J105: 3121.50 | K105: 3055 | L105: 2966 | M105: 9.71553
A106: 97 | B106: HINDALCO | C106: 394.7 | D106: 392.67 | E106: 388.53 | F106: 382.37 | G106: 378.23 | H106: 398.83 | I106: 402.97 | J106: 409.13 | K106: 396.8 | L106: 386.5 | M106: 113.99189
A107: 98 | B107: HINDPETRO | C107: 281.55 | D107: 282.58 | E107: 278.97 | F107: 276.38 | G107: 272.77 | H107: 285.17 | I107: 288.78 | J107: 291.37 | K107: 286.2 | L107: 280 | M107: 33.11812
A108: 99 | B108: HINDUNILVR | C108: 2358.3 | D108: 2350.63 | E108: 2338.27 | F108: 2318.23 | G108: 2305.87 | H108: 2370.67 | I108: 2383.03 | J108: 2403.07 | K108: 2363 | L108: 2330.6 | M108: 11.41451
A109: 100 | B109: HINDZINC | C109: 327.55 | D109: 327.58 | E109: 323.42 | F109: 319.28 | G109: 315.12 | H109: 331.72 | I109: 335.88 | J109: 340.02 | K109: 331.75 | L109: 323.45 | M109: 13.568
A110: 101 | B110: HUDCO | C110: 48.35 | D110: 48.98 | E110: 47.57 | F110: 46.78 | G110: 45.37 | H110: 49.77 | I110: 51.18 | J110: 51.97 | K110: 50.4 | L110: 48.2 | M110: 33.31224
A111: 102 | B111: HDFC | C111: 2580.75 | D111: 2583.75 | E111: 2557.50 | F111: 2534.25 | G111: 2508.00 | H111: 2607.00 | I111: 2633.25 | J111: 2656.50 | K111: 2610 | L111: 2560.5 | M111: 39.00226
A112: 103 | B112: ICICIBANK | C112: 650.1 | D112: 654.45 | E112: 644.00 | F112: 637.90 | G112: 627.45 | H112: 660.55 | I112: 671.00 | J112: 677.10 | K112: 664.9 | L112: 648.35 | M112: 141.23196
A113: 104 | B113: ICICIGI | C113: 1466.8 | D113: 1474.93 | E113: 1453.87 | F113: 1440.93 | G113: 1419.87 | H113: 1487.87 | I113: 1508.93 | J113: 1521.87 | K113: 1496 | L113: 1462 | M113: 4.23101
A114: 105 | B114: ICICIPRULI | C114: 552 | D114: 553.72 | E114: 548.48 | F114: 544.97 | G114: 539.73 | H114: 557.23 | I114: 562.47 | J114: 565.98 | K114: 558.95 | L114: 550.2 | M114: 14.85979
A115: 106 | B115: ISEC | C115: 582.7 | D115: 589.57 | E115: 568.13 | F115: 553.57 | G115: 532.13 | H115: 604.13 | I115: 625.57 | J115: 640.13 | K115: 611 | L115: 575 | M115: 9.08952
A116: 107 | B116: IDFCFIRSTB | C116: 57.55 | D116: 57.98 | E116: 56.92 | F116: 56.28 | G116: 55.22 | H116: 58.62 | I116: 59.68 | J116: 60.32 | K116: 59.05 | L116: 57.35 | M116: 233.54104
A117: 108 | B117: ITC | C117: 215.25 | D117: 216.30 | E117: 213.20 | F117: 211.15 | G117: 208.05 | H117: 218.35 | I117: 221.45 | J117: 223.50 | K117: 219.4 | L117: 214.25 | M117: 387.55111
A118: 109 | B118: IBULHSGFIN | C118: 221.7 | D118: 223.87 | E118: 217.43 | F118: 213.17 | G118: 206.73 | H118: 228.13 | I118: 234.57 | J118: 238.83 | K118: 230.3 | L118: 219.6 | M118: 143.91701
A119: 110 | B119: INDHOTEL | C119: 135.95 | D119: 138.48 | E119: 132.67 | F119: 129.38 | G119: 123.57 | H119: 141.77 | I119: 147.58 | J119: 150.87 | K119: 144.3 | L119: 135.2 | M119: 81.03937
A120: 111 | B120: IOC | C120: 109.9 | D120: 109.97 | E120: 108.98 | F120: 108.07 | G120: 107.08 | H120: 110.88 | I120: 111.87 | J120: 112.78 | K120: 110.95 | L120: 109.05 | M120: 171.08041
A121: 112 | B121: IRCTC | C121: 1894.6 | D121: 1901.75 | E121: 1880.85 | F121: 1867.10 | G121: 1846.20 | H121: 1915.50 | I121: 1936.40 | J121: 1950.15 | K121: 1922.65 | L121: 1888 | M121: 4.19742
A122: 113 | B122: IGL | C122: 524.75 | D122: 526.02 | E122: 519.03 | F122: 513.32 | G122: 506.33 | H122: 531.73 | I122: 538.72 | J122: 544.43 | K122: 533 | L122: 520.3 | M122: 19.20032
A123: 114 | B123: INDUSTOWER | C123: 241.65 | D123: 241.33 | E123: 239.17 | F123: 236.68 | G123: 234.52 | H123: 243.82 | I123: 245.98 | J123: 248.47 | K123: 243.5 | L123: 238.85 | M123: 11.89917
A124: 115 | B124: INDUSINDBK | C124: 1010.05 | D124: 1015.80 | E124: 1000.25 | F124: 990.45 | G124: 974.90 | H124: 1025.60 | I124: 1041.15 | J124: 1050.95 | K124: 1031.35 | L124: 1006 | M124: 37.66919
A125: 116 | B125: NAUKRI | C125: 4427.8 | D125: 4411.23 | E125: 4372.57 | F125: 4317.33 | G125: 4278.67 | H125: 4466.47 | I125: 4505.13 | J125: 4560.37 | K125: 4449.9 | L125: 4356 | M125: 5.28074
A126: 117 | B126: INFY | C126: 1387.2 | D126: 1388.95 | E126: 1376.90 | F126: 1366.60 | G126: 1354.55 | H126: 1399.25 | I126: 1411.30 | J126: 1421.60 | K126: 1401 | L126: 1378.65 | M126: 47.91325
A127: 118 | B127: INDIGO | C127: 1745.7 | D127: 1753.88 | E127: 1729.82 | F127: 1713.93 | G127: 1689.87 | H127: 1769.77 | I127: 1793.83 | J127: 1809.72 | K127: 1777.95 | L127: 1738 | M127: 4.38074
A128: 119 | B128: IPCALAB | C128: 2065.65 | D128: 2077.72 | E128: 2038.93 | F128: 2012.22 | G128: 1973.43 | H128: 2104.43 | I128: 2143.22 | J128: 2169.93 | K128: 2116.5 | L128: 2051 | M128: 1.99454
A129: 120 | B129: JSWENERGY | C129: 126 | D129: 123.73 | E129: 119.77 | F129: 113.53 | G129: 109.57 | H129: 129.97 | I129: 133.93 | J129: 140.17 | K129: 127.7 | L129: 117.5 | M129: 317.06605
A130: 121 | B130: JSWSTEEL | C130: 694.5 | D130: 699.65 | E130: 682.35 | F130: 670.20 | G130: 652.90 | H130: 711.80 | I130: 729.10 | J130: 741.25 | K130: 716.95 | L130: 687.5 | M130: 141.56453
A131: 122 | B131: JINDALSTEL | C131: 396.5 | D131: 399.22 | E131: 387.53 | F131: 378.57 | G131: 366.88 | H131: 408.18 | I131: 419.87 | J131: 428.83 | K131: 410.9 | L131: 390.25 | M131: 132.00999
A132: 123 | B132: JUBLFOOD | C132: 3055.75 | D132: 3081.07 | E132: 3023.63 | F132: 2991.52 | G132: 2934.08 | H132: 3113.18 | I132: 3170.62 | J132: 3202.73 | K132: 3138.5 | L132: 3048.95 | M132: 3.6862
A133: 124 | B133: KOTAKBANK | C133: 1797 | D133: 1803.00 | E133: 1782.00 | F133: 1767.00 | G133: 1746.00 | H133: 1818.00 | I133: 1839.00 | J133: 1854.00 | K133: 1824 | L133: 1788 | M133: 22.89816
A134: 125 | B134: L&TFH | C134: 91.8 | D134: 92.38 | E134: 90.57 | F134: 89.33 | G134: 87.52 | H134: 93.62 | I134: 95.43 | J134: 96.67 | K134: 94.2 | L134: 91.15 | M134: 105.43889
A135: 126 | B135: LTTS | C135: 2687 | D135: 2697.97 | E135: 2665.03 | F135: 2643.07 | G135: 2610.13 | H135: 2719.93 | I135: 2752.87 | J135: 2774.83 | K135: 2730.9 | L135: 2676 | M135: 1.01899
A136: 127 | B136: LICHSGFIN | C136: 477.6 | D136: 474.38 | E136: 469.77 | F136: 461.93 | G136: 457.32 | H136: 482.22 | I136: 486.83 | J136: 494.67 | K136: 479 | L136: 466.55 | M136: 50.08157
A137: 128 | B137: LTI | C137: 3890.65 | D137: 3904.15 | E137: 3843.30 | F137: 3795.95 | G137: 3735.10 | H137: 3951.50 | I137: 4012.35 | J137: 4059.70 | K137: 3965 | L137: 3856.8 | M137: 1.80333
A138: 129 | B138: LT | C138: 1474.65 | D138: 1476.72 | E138: 1460.93 | F138: 1447.22 | G138: 1431.43 | H138: 1490.43 | I138: 1506.22 | J138: 1519.93 | K138: 1492.5 | L138: 1463 | M138: 20.77742
A139: 130 | B139: LUPIN | C139: 1209.2 | D139: 1211.37 | E139: 1197.83 | F139: 1186.47 | G139: 1172.93 | H139: 1222.73 | I139: 1236.27 | J139: 1247.63 | K139: 1224.9 | L139: 1200 | M139: 10.62305
A140: 131 | B140: MRF | C140: 83083.45 | D140: 83565.08 | E140: 82330.17 | F140: 81576.88 | G140: 80341.97 | H140: 84318.37 | I140: 85553.28 | J140: 86306.57 | K140: 84800 | L140: 82811.8 | M140: 0.11331
A141: 132 | B141: MGL | C141: 1182.95 | D141: 1191.37 | E141: 1168.08 | F141: 1153.22 | G141: 1129.93 | H141: 1206.23 | I141: 1229.52 | J141: 1244.38 | K141: 1214.65 | L141: 1176.5 | M141: 4.41031
A142: 133 | B142: M&MFIN | C142: 160 | D142: 160.55 | E142: 157.15 | F142: 154.30 | G142: 150.90 | H142: 163.40 | I142: 166.80 | J142: 169.65 | K142: 163.95 | L142: 157.7 | M142: 104.86013
A143: 134 | B143: M&M | C143: 806.3 | D143: 808.18 | E143: 798.37 | F143: 790.43 | G143: 780.62 | H143: 816.12 | I143: 825.93 | J143: 833.87 | K143: 818 | L143: 800.25 | M143: 72.30033
A144: 135 | B144: MANAPPURAM | C144: 160.7 | D144: 161.40 | E144: 158.05 | F144: 155.40 | G144: 152.05 | H144: 164.05 | I144: 167.40 | J144: 170.05 | K144: 164.75 | L144: 158.75 | M144: 85.45471
A145: 136 | B145: MARICO | C145: 480.7 | D145: 479.35 | E145: 475.35 | F145: 470.00 | G145: 466.00 | H145: 484.70 | I145: 488.70 | J145: 494.05 | K145: 483.35 | L145: 474 | M145: 13.07085
A146: 137 | B146: MARUTI | C146: 7091.15 | D146: 7093.73 | E146: 7044.47 | F146: 6997.78 | G146: 6948.52 | H146: 7140.42 | I146: 7189.68 | J146: 7236.37 | K146: 7143 | L146: 7047.05 | M146: 6.42841
A147: 138 | B147: MFSL | C147: 936.45 | D147: 936.05 | E147: 929.30 | F147: 922.15 | G147: 915.40 | H147: 943.20 | I147: 949.95 | J147: 957.10 | K147: 942.8 | L147: 928.9 | M147: 3.22947
A148: 139 | B148: MINDTREE | C148: 2418.3 | D148: 2404.78 | E148: 2385.57 | F148: 2352.83 | G148: 2333.62 | H148: 2437.52 | I148: 2456.73 | J148: 2489.47 | K148: 2424 | L148: 2372.05 | M148: 7.10768
A149: 140 | B149: MOTHERSUMI | C149: 237.3 | D149: 238.23 | E149: 234.32 | F149: 231.33 | G149: 227.42 | H149: 241.22 | I149: 245.13 | J149: 248.12 | K149: 242.15 | L149: 235.25 | M149: 84.13113
A150: 141 | B150: MPHASIS | C150: 1950 | D150: 1938.02 | E150: 1917.23 | F150: 1884.47 | G150: 1863.68 | H150: 1970.78 | I150: 1991.57 | J150: 2024.33 | K150: 1958.8 | L150: 1905.25 | M150: 2.30031
A151: 142 | B151: MUTHOOTFIN | C151: 1308.9 | D151: 1306.47 | E151: 1288.23 | F151: 1267.57 | G151: 1249.33 | H151: 1327.13 | I151: 1345.37 | J151: 1366.03 | K151: 1324.7 | L151: 1285.8 | M151: 12.00226
A152: 143 | B152: NATCOPHARM | C152: 1045.8 | D152: 1049.40 | E152: 1038.20 | F152: 1030.60 | G152: 1019.40 | H152: 1057.00 | I152: 1068.20 | J152: 1075.80 | K152: 1060.6 | L152: 1041.8 | M152: 2.5253
A153: 144 | B153: NMDC | C153: 181.4 | D153: 181.22 | E153: 178.88 | F153: 176.37 | G153: 174.03 | H153: 183.73 | I153: 186.07 | J153: 188.58 | K153: 183.55 | L153: 178.7 | M153: 72.41797
A154: 145 | B154: NTPC | C154: 110.2 | D154: 110.38 | E154: 109.32 | F154: 108.43 | G154: 107.37 | H154: 111.27 | I154: 112.33 | J154: 113.22 | K154: 111.45 | L154: 109.5 | M154: 102.71211
A155: 146 | B155: NATIONALUM | C155: 72.35 | D155: 72.97 | E155: 71.53 | F155: 70.72 | G155: 69.28 | H155: 73.78 | I155: 75.22 | J155: 76.03 | K155: 74.4 | L155: 72.15 | M155: 216.6953
A156: 147 | B156: NAVINFLUOR | C156: 3200 | D156: 3195.00 | E156: 3150.00 | F156: 3100.00 | G156: 3055.00 | H156: 3245.00 | I156: 3290.00 | J156: 3340.00 | K156: 3240 | L156: 3145 | M156: 1.70226
A157: 148 | B157: NESTLEIND | C157: 17758.5 | D157: 17682.55 | E157: 17555.10 | F157: 17351.70 | G157: 17224.25 | H157: 17885.95 | I157: 18013.40 | J157: 18216.80 | K157: 17810 | L157: 17479.15 | M157: 0.57751
A158: 149 | B158: NAM-INDIA | C158: 367.5 | D158: 369.05 | E158: 362.10 | F158: 356.70 | G158: 349.75 | H158: 374.45 | I158: 381.40 | J158: 386.80 | K158: 376 | L158: 363.65 | M158: 16.93418
A159: 150 | B159: OBEROIRLTY | C159: 605.05 | D159: 603.93 | E159: 593.87 | F159: 582.68 | G159: 572.62 | H159: 615.12 | I159: 625.18 | J159: 636.37 | K159: 614 | L159: 592.75 | M159: 4.15418
A160: 151 | B160: ONGC | C160: 117.6 | D160: 116.75 | E160: 115.05 | F160: 112.50 | G160: 110.80 | H160: 119.30 | I160: 121.00 | J160: 123.55 | K160: 118.45 | L160: 114.2 | M160: 516.20011
A161: 152 | B161: OIL | C161: 136.1 | D161: 136.10 | E161: 133.00 | F161: 129.90 | G161: 126.80 | H161: 139.20 | I161: 142.30 | J161: 145.40 | K161: 139.2 | L161: 133 | M161: 25.97617
A162: 153 | B162: OFSS | C162: 3510.8 | D162: 3503.95 | E162: 3479.85 | F162: 3448.90 | G162: 3424.80 | H162: 3534.90 | I162: 3559.00 | J162: 3589.95 | K162: 3528.05 | L162: 3473 | M162: 0.58779
A163: 154 | B163: PIIND | C163: 2613.6 | D163: 2611.40 | E163: 2588.75 | F163: 2563.90 | G163: 2541.25 | H163: 2636.25 | I163: 2658.90 | J163: 2683.75 | K163: 2634.05 | L163: 2586.55 | M163: 2.40381
A164: 155 | B164: PAGEIND | C164: 31055.4 | D164: 30938.93 | E164: 30702.87 | F164: 30350.33 | G164: 30114.27 | H164: 31291.47 | I164: 31527.53 | J164: 31880.07 | K164: 31175 | L164: 30586.4 | M164: 0.25113
A165: 156 | B165: PETRONET | C165: 241.1 | D165: 242.30 | E165: 239.60 | F165: 238.10 | G165: 235.40 | H165: 243.80 | I165: 246.50 | J165: 248.00 | K165: 245 | L165: 240.8 | M165: 33.19475
A166: 157 | B166: PFIZER | C166: 5124.5 | D166: 5137.53 | E166: 5106.97 | F166: 5089.43 | G166: 5058.87 | H166: 5155.07 | I166: 5185.63 | J166: 5203.17 | K166: 5168.1 | L166: 5120 | M166: 0.2385
A167: 158 | B167: PIDILITIND | C167: 2067.1 | D167: 2078.00 | E167: 2051.10 | F167: 2035.10 | G167: 2008.20 | H167: 2094.00 | I167: 2120.90 | J167: 2136.90 | K167: 2104.9 | L167: 2062 | M167: 2.52827
A168: 159 | B168: PEL | C168: 1796.95 | D168: 1806.60 | E168: 1766.35 | F168: 1735.75 | G168: 1695.50 | H168: 1837.20 | I168: 1877.45 | J168: 1908.05 | K168: 1846.85 | L168: 1776 | M168: 8.25452
A169: 160 | B169: POLYCAB | C169: 1678.15 | D169: 1680.58 | E169: 1668.57 | F169: 1658.98 | G169: 1646.97 | H169: 1690.17 | I169: 1702.18 | J169: 1711.77 | K169: 1692.6 | L169: 1671 | M169: 1.41493
A170: 161 | B170: PFC | C170: 119.15 | D170: 119.53 | E170: 117.82 | F170: 116.48 | G170: 114.77 | H170: 120.87 | I170: 122.58 | J170: 123.92 | K170: 121.25 | L170: 118.2 | M170: 30.91376
A171: 162 | B171: POWERGRID | C171: 224.4 | D171: 225.43 | E171: 222.87 | F171: 221.33 | G171: 218.77 | H171: 226.97 | I171: 229.53 | J171: 231.07 | K171: 228 | L171: 223.9 | M171: 88.50226
A172: 163 | B172: PRESTIGE | C172: 271.95 | D172: 272.47 | E172: 269.48 | F172: 267.02 | G172: 264.03 | H172: 274.93 | I172: 277.92 | J172: 280.38 | K172: 275.45 | L172: 270 | M172: 2.94995
A173: 164 | B173: PGHH | C173: 12992.6 | D173: 13042.53 | E173: 12920.07 | F173: 12847.53 | G173: 12725.07 | H173: 13115.07 | I173: 13237.53 | J173: 13310.07 | K173: 13165 | L173: 12970 | M173: 0.03732
A174: 165 | B174: PNB | C174: 41.65 | D174: 41.80 | E174: 40.95 | F174: 40.25 | G174: 39.40 | H174: 42.50 | I174: 43.35 | J174: 44.05 | K174: 42.65 | L174: 41.1 | M174: 1727.14836
A175: 166 | B175: RBLBANK | C175: 211.3 | D175: 212.55 | E175: 208.80 | F175: 206.30 | G175: 202.55 | H175: 215.05 | I175: 218.80 | J175: 221.30 | K175: 216.3 | L175: 210.05 | M175: 69.00865
A176: 167 | B176: RECLTD | C176: 145.45 | D176: 145.55 | E176: 143.60 | F176: 141.75 | G176: 139.80 | H176: 147.40 | I176: 149.35 | J176: 151.20 | K176: 147.5 | L176: 143.7 | M176: 26.20511
A177: 168 | B177: RAJESHEXPO | C177: 520.95 | D177: 521.05 | E177: 518.45 | F177: 515.95 | G177: 513.35 | H177: 523.55 | I177: 526.15 | J177: 528.65 | K177: 523.65 | L177: 518.55 | M177: 1.88706
A178: 169 | B178: RELIANCE | C178: 2168.9 | D178: 2172.47 | E178: 2142.93 | F178: 2116.97 | G178: 2087.43 | H178: 2198.43 | I178: 2227.97 | J178: 2253.93 | K178: 2202 | L178: 2146.5 | M178: 129.28379
A179: 170 | B179: SBICARD | C179: 1045.95 | D179: 1049.60 | E179: 1035.25 | F179: 1024.55 | G179: 1010.20 | H179: 1060.30 | I179: 1074.65 | J179: 1085.35 | K179: 1063.95 | L179: 1038.9 | M179: 8.67751
A180: 171 | B180: SBILIFE | C180: 966.3 | D180: 969.47 | E180: 956.93 | F180: 947.57 | G180: 935.03 | H180: 978.83 | I180: 991.37 | J180: 1000.73 | K180: 982 | L180: 960.1 | M180: 14.20625
A181: 172 | B181: SRF | C181: 6558.6 | D181: 6530.47 | E181: 6489.83 | F181: 6421.07 | G181: 6380.43 | H181: 6599.23 | I181: 6639.87 | J181: 6708.63 | K181: 6571.1 | L181: 6461.7 | M181: 0.96335
A182: 173 | B182: SANOFI | C182: 7745.5 | D182: 7740.52 | E182: 7714.98 | F182: 7684.47 | G182: 7658.93 | H182: 7771.03 | I182: 7796.57 | J182: 7827.08 | K182: 7766.05 | L182: 7710 | M182: 0.0831
A183: 174 | B183: SHREECEM | C183: 27623.15 | D183: 27707.92 | E183: 27330.13 | F183: 27037.12 | G183: 26659.33 | H183: 28000.93 | I183: 28378.72 | J183: 28671.73 | K183: 28085.7 | L183: 27414.9 | M183: 0.41313
A184: 175 | B184: SRTRANSFIN | C184: 1411.3 | D184: 1411.62 | E184: 1388.03 | F184: 1364.77 | G184: 1341.18 | H184: 1434.88 | I184: 1458.47 | J184: 1481.73 | K184: 1435.2 | L184: 1388.35 | M184: 18.64587
A185: 176 | B185: SIEMENS | C185: 2059.3 | D185: 2070.77 | E185: 2041.53 | F185: 2023.77 | G185: 1994.53 | H185: 2088.53 | I185: 2117.77 | J185: 2135.53 | K185: 2100 | L185: 2053 | M185: 2.37293
A186: 177 | B186: SBIN | C186: 432.55 | D186: 431.17 | E186: 426.98 | F186: 421.42 | G186: 417.23 | H186: 436.73 | I186: 440.92 | J186: 446.48 | K186: 435.35 | L186: 425.6 | M186: 592.99647
A187: 178 | B187: SAIL | C187: 121.2 | D187: 122.98 | E187: 118.27 | F187: 115.33 | G187: 110.62 | H187: 125.92 | I187: 130.63 | J187: 133.57 | K187: 127.7 | L187: 120.05 | M187: 1102.6908
A188: 179 | B188: SUNPHARMA | C188: 671.05 | D188: 669.55 | E188: 665.80 | F188: 660.55 | G188: 656.80 | H188: 674.80 | I188: 678.55 | J188: 683.80 | K188: 673.3 | L188: 664.3 | M188: 64.43084
A189: 180 | B189: SUNTV | C189: 525.65 | D189: 531.05 | E189: 517.10 | F189: 508.55 | G189: 494.60 | H189: 539.60 | I189: 553.55 | J189: 562.10 | K189: 545 | L189: 522.5 | M189: 17.98289
A190: 181 | B190: SYNGENE | C190: 584.15 | D190: 585.68 | E190: 578.92 | F190: 573.68 | G190: 566.92 | H190: 590.92 | I190: 597.68 | J190: 602.92 | K190: 592.45 | L190: 580.45 | M190: 1.88543
A191: 182 | B191: TVSMOTOR | C191: 612.7 | D191: 616.97 | E191: 605.98 | F191: 599.27 | G191: 588.28 | H191: 623.68 | I191: 634.67 | J191: 641.38 | K191: 627.95 | L191: 610.25 | M191: 26.54612
A192: 183 | B192: TATACHEM | C192: 706.4 | D192: 708.37 | E192: 700.23 | F192: 694.07 | G192: 685.93 | H192: 714.53 | I192: 722.67 | J192: 728.83 | K192: 716.5 | L192: 702.2 | M192: 22.17052
A193: 184 | B193: TCS | C193: 3153 | D193: 3151.65 | E193: 3133.35 | F193: 3113.70 | G193: 3095.40 | H193: 3171.30 | I193: 3189.60 | J193: 3209.25 | K193: 3169.95 | L193: 3132 | M193: 13.77441
A194: 185 | B194: TATACONSUM | C194: 665.8 | D194: 663.28 | E194: 659.32 | F194: 652.83 | G194: 648.87 | H194: 669.77 | I194: 673.73 | J194: 680.22 | K194: 667.25 | L194: 656.8 | M194: 23.55484
A195: 186 | B195: TATAMOTORS | C195: 318.1 | D195: 320.37 | E195: 315.03 | F195: 311.97 | G195: 306.63 | H195: 323.43 | I195: 328.77 | J195: 331.83 | K195: 325.7 | L195: 317.3 | M195: 325.95728
A196: 187 | B196: TATAPOWER | C196: 104.65 | D196: 104.92 | E196: 103.43 | F196: 102.22 | G196: 100.73 | H196: 106.13 | I196: 107.62 | J196: 108.83 | K196: 106.4 | L196: 103.7 | M196: 250.38
A197: 188 | B197: TATASTEEL | C197: 1100.9 | D197: 1103.13 | E197: 1083.27 | F197: 1065.63 | G197: 1045.77 | H197: 1120.77 | I197: 1140.63 | J197: 1158.27 | K197: 1123 | L197: 1085.5 | M197: 176.90925
A198: 189 | B198: TECHM | C198: 1030.5 | D198: 1025.28 | E198: 1018.57 | F198: 1006.63 | G198: 999.92 | H198: 1037.22 | I198: 1043.93 | J198: 1055.87 | K198: 1032 | L198: 1013.35 | M198: 12.62702
A199: 190 | B199: RAMCOCEM | C199: 950.3 | D199: 956.85 | E199: 941.70 | F199: 933.10 | G199: 917.95 | H199: 965.45 | I199: 980.60 | J199: 989.20 | K199: 972 | L199: 948.25 | M199: 2.93894
A200: 191 | B200: TITAN | C200: 1591.4 | D200: 1597.57 | E200: 1583.13 | F200: 1574.87 | G200: 1560.43 | H200: 1605.83 | I200: 1620.27 | J200: 1628.53 | K200: 1612 | L200: 1589.3 | M200: 11.11933
A201: 192 | B201: TORNTPHARM | C201: 2785.65 | D201: 2764.55 | E201: 2736.10 | F201: 2686.55 | G201: 2658.10 | H201: 2814.10 | I201: 2842.55 | J201: 2892.10 | K201: 2793 | L201: 2715 | M201: 3.82614
A202: 193 | B202: TORNTPOWER | C202: 432.5 | D202: 432.48 | E202: 429.02 | F202: 425.53 | G202: 422.07 | H202: 435.97 | I202: 439.43 | J202: 442.92 | K202: 435.95 | L202: 429 | M202: 5.43857
A203: 194 | B203: TRENT | C203: 840.2 | D203: 845.45 | E203: 828.10 | F203: 816.00 | G203: 798.65 | H203: 857.55 | I203: 874.90 | J203: 887.00 | K203: 862.8 | L203: 833.35 | M203: 6.97195
A204: 195 | B204: UPL | C204: 815.8 | D204: 816.85 | E204: 807.30 | F204: 798.80 | G204: 789.25 | H204: 825.35 | I204: 834.90 | J204: 843.40 | K204: 826.4 | L204: 808.35 | M204: 44.14474
A205: 196 | B205: ULTRACEMCO | C205: 6601.35 | D205: 6628.12 | E205: 6533.23 | F205: 6465.12 | G205: 6370.23 | H205: 6696.23 | I205: 6791.12 | J205: 6859.23 | K205: 6723 | L205: 6560 | M205: 3.97989
... 29 more rows

Sheet MidCap Intra
L5: Back To Main Page
A6: FOR INTRA DAY TRADING | K6: =Main!B10 -> 2021-06-02
A9: Sr.no | B9: Scrip | C9: CLOSE RATE | D9: Pivot Point | E9: Supports | H9: Resistances
C10: Point | E10: S1 | F10: S2 | G10: S3 | H10: R1 | I10: R2 | J10: R3 | K10: HIGH | L10: LOW | M10: Total Trade Quanity in Lakhs
A11: 1 | B11: 3MINDIA | C11: 25484 | D11: 25563.15 | E11: 25279.10 | F11: 25074.20 | G11: 24790.15 | H11: 25768.05 | I11: 26052.10 | J11: 26257.00 | K11: 25847.2 | L11: 25358.25 | M11: 0.02902
A12: 2 | B12: ABB | C12: 1693.25 | D12: 1699.42 | E12: 1644.83 | F12: 1596.42 | G12: 1541.83 | H12: 1747.83 | I12: 1802.42 | J12: 1850.83 | K12: 1754 | L12: 1651 | M12: 7.17658
A13: 3 | B13: POWERINDIA | C13: 1927.9 | D13: 1928.70 | E13: 1902.40 | F13: 1876.90 | G13: 1850.60 | H13: 1954.20 | I13: 1980.50 | J13: 2006.00 | K13: 1955 | L13: 1903.2 | M13: 0.17037
A14: 4 | B14: ACC | C14: 1973.45 | D14: 1978.07 | E14: 1955.13 | F14: 1936.82 | G14: 1913.88 | H14: 1996.38 | I14: 2019.32 | J14: 2037.63 | K14: 2001 | L14: 1959.75 | M14: 2.97295
A15: 5 | B15: AIAENG | C15: 1907.1 | D15: 1916.22 | E15: 1887.43 | F15: 1867.77 | G15: 1838.98 | H15: 1935.88 | I15: 1964.67 | J15: 1984.33 | K15: 1945 | L15: 1896.55 | M15: 0.42118
A16: 6 | B16: APLAPOLLO | C16: 1297.4 | D16: 1299.60 | E16: 1279.80 | F16: 1262.20 | G16: 1242.40 | H16: 1317.20 | I16: 1337.00 | J16: 1354.60 | K16: 1319.4 | L16: 1282 | M16: 0.70009
A17: 7 | B17: AUBANK | C17: 989.1 | D17: 986.63 | E17: 978.47 | F17: 967.83 | G17: 959.67 | H17: 997.27 | I17: 1005.43 | J17: 1016.07 | K17: 994.8 | L17: 976 | M17: 5.43662
A18: 8 | B18: AARTIDRUGS | C18: 736.6 | D18: 734.80 | E18: 722.40 | F18: 708.20 | G18: 695.80 | H18: 749.00 | I18: 761.40 | J18: 775.60 | K18: 747.2 | L18: 720.6 | M18: 5.08402
A19: 9 | B19: AARTIIND | C19: 1710.8 | D19: 1710.50 | E19: 1676.35 | F19: 1641.90 | G19: 1607.75 | H19: 1744.95 | I19: 1779.10 | J19: 1813.55 | K19: 1744.65 | L19: 1676.05 | M19: 15.03711
A20: 10 | B20: AAVAS | C20: 2273.75 | D20: 2281.33 | E20: 2248.42 | F20: 2223.08 | G20: 2190.17 | H20: 2306.67 | I20: 2339.58 | J20: 2364.92 | K20: 2314.25 | L20: 2256 | M20: 1.40245
A21: 11 | B21: ABBOTINDIA | C21: 15958.15 | D21: 15987.05 | E21: 15874.10 | F21: 15790.05 | G21: 15677.10 | H21: 16071.10 | I21: 16184.05 | J21: 16268.10 | K21: 16100 | L21: 15903 | M21: 0.1859
A22: 12 | B22: ADANIENT | C22: 1416.25 | D22: 1385.10 | E22: 1340.20 | F22: 1264.15 | G22: 1219.25 | H22: 1461.15 | I22: 1506.05 | J22: 1582.10 | K22: 1430 | L22: 1309.05 | M22: 100.18645
A23: 13 | B23: ADANIGREEN | C23: 1271.05 | D23: 1266.68 | E23: 1253.37 | F23: 1235.68 | G23: 1222.37 | H23: 1284.37 | I23: 1297.68 | J23: 1315.37 | K23: 1280 | L23: 1249 | M23: 6.64012
A24: 14 | B24: ADANIPORTS | C24: 798.2 | D24: 788.10 | E24: 774.40 | F24: 750.60 | G24: 736.90 | H24: 811.90 | I24: 825.60 | J24: 849.40 | K24: 801.8 | L24: 764.3 | M24: 178.47137
A25: 15 | B25: ATGL | C25: 1440.6 | D25: 1416.22 | E25: 1380.43 | F25: 1320.27 | G25: 1284.48 | H25: 1476.38 | I25: 1512.17 | J25: 1572.33 | K25: 1452 | L25: 1356.05 | M25: 22.07381
A26: 16 | B26: ADANITRANS | C26: 1499.45 | D26: 1496.48 | E26: 1477.97 | F26: 1456.48 | G26: 1437.97 | H26: 1517.97 | I26: 1536.48 | J26: 1557.97 | K26: 1515 | L26: 1475 | M26: 15.43382
A27: 17 | B27: ABCAPITAL | C27: 118.65 | D27: 120.18 | E27: 116.62 | F27: 114.58 | G27: 111.02 | H27: 122.22 | I27: 125.78 | J27: 127.82 | K27: 123.75 | L27: 118.15 | M27: 27.02652
A28: 18 | B28: ABFRL | C28: 197.55 | D28: 197.07 | E28: 194.13 | F28: 190.72 | G28: 187.78 | H28: 200.48 | I28: 203.42 | J28: 206.83 | K28: 200 | L28: 193.65 | M28: 39.52703
A29: 19 | B29: ADVENZYMES | C29: 412.95 | D29: 418.02 | E29: 400.43 | F29: 387.92 | G29: 370.33 | H29: 430.53 | I29: 448.12 | J29: 460.63 | K29: 435.6 | L29: 405.5 | M29: 6.89414
A30: 20 | B30: AEGISCHEM | C30: 355.85 | D30: 355.88 | E30: 347.07 | F30: 338.28 | G30: 329.47 | H30: 364.67 | I30: 373.48 | J30: 382.27 | K30: 364.7 | L30: 347.1 | M30: 6.47712
A31: 21 | B31: AFFLE | C31: 5280.35 | D31: 5295.47 | E31: 5215.93 | F31: 5151.52 | G31: 5071.98 | H31: 5359.88 | I31: 5439.42 | J31: 5503.83 | K31: 5375 | L31: 5231.05 | M31: 0.62084
A32: 22 | B32: AJANTPHARM | C32: 1933.65 | D32: 1934.20 | E32: 1914.45 | F32: 1895.25 | G32: 1875.50 | H32: 1953.40 | I32: 1973.15 | J32: 1992.35 | K32: 1953.95 | L32: 1915 | M32: 0.62975
A33: 23 | B33: AKZOINDIA | C33: 2253.45 | D33: 2263.80 | E33: 2228.60 | F33: 2203.75 | G33: 2168.55 | H33: 2288.65 | I33: 2323.85 | J33: 2348.70 | K33: 2299 | L33: 2238.95 | M33: 0.83682
A34: 24 | B34: ALEMBICLTD | C34: 125.25 | D34: 126.23 | E34: 122.52 | F34: 119.78 | G34: 116.07 | H34: 128.97 | I34: 132.68 | J34: 135.42 | K34: 129.95 | L34: 123.5 | M34: 7.20811
A35: 25 | B35: APLLTD | C35: 944.4 | D35: 943.83 | E35: 931.67 | F35: 918.93 | G35: 906.77 | H35: 956.57 | I35: 968.73 | J35: 981.47 | K35: 956 | L35: 931.1 | M35: 2.45756
A36: 26 | B36: ALKEM | C36: 3101.75 | D36: 3038.92 | E36: 2962.83 | F36: 2823.92 | G36: 2747.83 | H36: 3177.83 | I36: 3253.92 | J36: 3392.83 | K36: 3115 | L36: 2900 | M36: 7.09879
A37: 27 | B37: ALKYLAMINE | C37: 3598.15 | D37: 3629.93 | E37: 3549.87 | F37: 3501.58 | G37: 3421.52 | H37: 3678.22 | I37: 3758.28 | J37: 3806.57 | K37: 3710 | L37: 3581.65 | M37: 1.0778
A38: 28 | B38: ALOKINDS | C38: 20.4 | D38: 20.53 | E38: 20.17 | F38: 19.93 | G38: 19.57 | H38: 20.77 | I38: 21.13 | J38: 21.37 | K38: 20.9 | L38: 20.3 | M38: 84.03318
A39: 29 | B39: AMARAJABAT | C39: 739.1 | D39: 741.70 | E39: 735.45 | F39: 731.80 | G39: 725.55 | H39: 745.35 | I39: 751.60 | J39: 755.25 | K39: 747.95 | L39: 738.05 | M39: 15.17337
A40: 30 | B40: AMBER | C40: 2713.8 | D40: 2720.52 | E40: 2693.38 | F40: 2672.97 | G40: 2645.83 | H40: 2740.93 | I40: 2768.07 | J40: 2788.48 | K40: 2747.65 | L40: 2700.1 | M40: 0.95085
A41: 31 | B41: AMBUJACEM | C41: 324.2 | D41: 325.40 | E41: 321.90 | F41: 319.60 | G41: 316.10 | H41: 327.70 | I41: 331.20 | J41: 333.50 | K41: 328.9 | L41: 323.1 | M41: 26.49537
A42: 32 | B42: APOLLOHOSP | C42: 3239.8 | D42: 3216.55 | E42: 3184.10 | F42: 3128.40 | G42: 3095.95 | H42: 3272.25 | I42: 3304.70 | J42: 3360.40 | K42: 3249 | L42: 3160.85 | M42: 7.06976
A43: 33 | B43: APOLLOTYRE | C43: 221.8 | D43: 223.25 | E43: 218.65 | F43: 215.50 | G43: 210.90 | H43: 226.40 | I43: 231.00 | J43: 234.15 | K43: 227.85 | L43: 220.1 | M43: 53.76825
A44: 34 | B44: ASHOKLEY | C44: 121.65 | D44: 122.40 | E44: 120.35 | F44: 119.05 | G44: 117.00 | H44: 123.70 | I44: 125.75 | J44: 127.05 | K44: 124.45 | L44: 121.1 | M44: 125.24009
A45: 35 | B45: ASHOKA | C45: 92.05 | D45: 92.60 | E45: 90.70 | F45: 89.35 | G45: 87.45 | H45: 93.95 | I45: 95.85 | J45: 97.20 | K45: 94.5 | L45: 91.25 | M45: 11.70907
A46: 36 | B46: ASIANPAINT | C46: 2931 | D46: 2942.90 | E46: 2903.20 | F46: 2875.40 | G46: 2835.70 | H46: 2970.70 | I46: 3010.40 | J46: 3038.20 | K46: 2982.6 | L46: 2915.1 | M46: 11.94073
A47: 37 | B47: ASTERDM | C47: 144.2 | D47: 145.03 | E47: 141.57 | F47: 138.93 | G47: 135.47 | H47: 147.67 | I47: 151.13 | J47: 153.77 | K47: 148.5 | L47: 142.4 | M47: 7.41896
A48: 38 | B48: ASTRAZEN | C48: 3759.8 | D48: 3770.60 | E48: 3729.20 | F48: 3698.60 | G48: 3657.20 | H48: 3801.20 | I48: 3842.60 | J48: 3873.20 | K48: 3812 | L48: 3740 | M48: 0.15252
A49: 39 | B49: ASTRAL | C49: 1859.25 | D49: 1859.40 | E49: 1843.80 | F49: 1828.35 | G49: 1812.75 | H49: 1874.85 | I49: 1890.45 | J49: 1905.90 | K49: 1875 | L49: 1843.95 | M49: 1.41541
A50: 40 | B50: ATUL | C50: 8569.85 | D50: 8572.95 | E50: 8521.90 | F50: 8473.95 | G50: 8422.90 | H50: 8620.90 | I50: 8671.95 | J50: 8719.90 | K50: 8624 | L50: 8525 | M50: 0.55619
A51: 41 | B51: AUROPHARMA | C51: 970.3 | D51: 979.38 | E51: 950.17 | F51: 930.03 | G51: 900.82 | H51: 999.52 | I51: 1028.73 | J51: 1048.87 | K51: 1008.6 | L51: 959.25 | M51: 49.67258
A52: 42 | B52: AVANTIFEED | C52: 603.45 | D52: 598.65 | E52: 586.30 | F52: 569.15 | G52: 556.80 | H52: 615.80 | I52: 628.15 | J52: 645.30 | K52: 611 | L52: 581.5 | M52: 11.01781
A53: 43 | B53: DMART | C53: 3044.8 | D53: 3054.52 | E53: 3021.08 | F53: 2997.37 | G53: 2963.93 | H53: 3078.23 | I53: 3111.67 | J53: 3135.38 | K53: 3087.95 | L53: 3030.8 | M53: 1.80498
A54: 44 | B54: AXISBANK | C54: 745.15 | D54: 746.77 | E54: 739.53 | F54: 733.92 | G54: 726.68 | H54: 752.38 | I54: 759.62 | J54: 765.23 | K54: 754 | L54: 741.15 | M54: 66.60243
A55: 45 | B55: BASF | C55: 2459.6 | D55: 2431.20 | E55: 2383.40 | F55: 2307.20 | G55: 2259.40 | H55: 2507.40 | I55: 2555.20 | J55: 2631.40 | K55: 2479 | L55: 2355 | M55: 0.87078
A56: 46 | B56: BEML | C56: 1292.1 | D56: 1302.37 | E56: 1277.73 | F56: 1263.37 | G56: 1238.73 | H56: 1316.73 | I56: 1341.37 | J56: 1355.73 | K56: 1327 | L56: 1288 | M56: 4.17456
A57: 47 | B57: BSE | C57: 932.7 | D57: 939.72 | E57: 910.53 | F57: 888.37 | G57: 859.18 | H57: 961.88 | I57: 991.07 | J57: 1013.23 | K57: 968.9 | L57: 917.55 | M57: 12.8267
A58: 48 | B58: BAJAJ-AUTO | C58: 4238.95 | D58: 4263.62 | E58: 4180.23 | F58: 4121.52 | G58: 4038.13 | H58: 4322.33 | I58: 4405.72 | J58: 4464.43 | K58: 4347 | L58: 4204.9 | M58: 12.48169
A59: 49 | B59: BAJAJCON | C59: 286.7 | D59: 287.10 | E59: 282.95 | F59: 279.20 | G59: 275.05 | H59: 290.85 | I59: 295.00 | J59: 298.75 | K59: 291.25 | L59: 283.35 | M59: 5.08815
A60: 50 | B60: BAJAJELEC | C60: 1059.7 | D60: 1068.08 | E60: 1046.62 | F60: 1033.53 | G60: 1012.07 | H60: 1081.17 | I60: 1102.63 | J60: 1115.72 | K60: 1089.55 | L60: 1055 | M60: 1.41938
A61: 51 | B61: BAJFINANCE | C61: 5784.8 | D61: 5742.73 | E61: 5667.47 | F61: 5550.13 | G61: 5474.87 | H61: 5860.07 | I61: 5935.33 | J61: 6052.67 | K61: 5818 | L61: 5625.4 | M61: 28.53451
A62: 52 | B62: BAJAJFINSV | C62: 11829.9 | D62: 11801.52 | E62: 11655.43 | F62: 11480.97 | G62: 11334.88 | H62: 11975.98 | I62: 12122.07 | J62: 12296.53 | K62: 11947.6 | L62: 11627.05 | M62: 3.02421
A63: 53 | B63: BAJAJHLDNG | C63: 3505.9 | D63: 3515.90 | E63: 3447.00 | F63: 3388.10 | G63: 3319.20 | H63: 3574.80 | I63: 3643.70 | J63: 3702.60 | K63: 3584.8 | L63: 3457 | M63: 0.77518
A64: 54 | B64: BALKRISIND | C64: 2175.3 | D64: 2200.30 | E64: 2145.60 | F64: 2115.90 | G64: 2061.20 | H64: 2230.00 | I64: 2284.70 | J64: 2314.40 | K64: 2255 | L64: 2170.6 | M64: 6.71165
A65: 55 | B65: BALMLAWRIE | C65: 134 | D65: 134.98 | E65: 132.52 | F65: 131.03 | G65: 128.57 | H65: 136.47 | I65: 138.93 | J65: 140.42 | K65: 137.45 | L65: 133.5 | M65: 3.34844
A66: 56 | B66: BALRAMCHIN | C66: 303.7 | D66: 303.37 | E66: 294.73 | F66: 285.77 | G66: 277.13 | H66: 312.33 | I66: 320.97 | J66: 329.93 | K66: 312 | L66: 294.4 | M66: 29.84083
A67: 57 | B67: BANDHANBNK | C67: 302.85 | D67: 305.05 | E67: 299.30 | F67: 295.75 | G67: 290.00 | H67: 308.60 | I67: 314.35 | J67: 317.90 | K67: 310.8 | L67: 301.5 | M67: 50.75472
A68: 58 | B68: BANKBARODA | C68: 79.35 | D68: 79.80 | E68: 78.35 | F68: 77.35 | G68: 75.90 | H68: 80.80 | I68: 82.25 | J68: 83.25 | K68: 81.25 | L68: 78.8 | M68: 591.05829
A69: 59 | B69: BANKINDIA | C69: 76.2 | D69: 76.67 | E69: 75.58 | F69: 74.97 | G69: 73.88 | H69: 77.28 | I69: 78.37 | J69: 78.98 | K69: 77.75 | L69: 76.05 | M69: 29.94219
A70: 60 | B70: MAHABANK | C70: 23.65 | D70: 23.83 | E70: 23.37 | F70: 23.08 | G70: 22.62 | H70: 24.12 | I70: 24.58 | J70: 24.87 | K70: 24.3 | L70: 23.55 | M70: 43.64601
A71: 61 | B71: BATAINDIA | C71: 1540.7 | D71: 1540.73 | E71: 1527.47 | F71: 1514.23 | G71: 1500.97 | H71: 1553.97 | I71: 1567.23 | J71: 1580.47 | K71: 1554 | L71: 1527.5 | M71: 2.61666
A72: 62 | B72: BAYERCROP | C72: 5252 | D72: 5274.10 | E72: 5213.15 | F72: 5174.30 | G72: 5113.35 | H72: 5312.95 | I72: 5373.90 | J72: 5412.75 | K72: 5335.05 | L72: 5235.25 | M72: 0.14784
A73: 63 | B73: BERGEPAINT | C73: 798.25 | D73: 800.57 | E73: 793.73 | F73: 789.22 | G73: 782.38 | H73: 805.08 | I73: 811.92 | J73: 816.43 | K73: 807.4 | L73: 796.05 | M73: 6.52849
A74: 64 | B74: BDL | C74: 369.1 | D74: 370.57 | E74: 363.53 | F74: 357.97 | G74: 350.93 | H74: 376.13 | I74: 383.17 | J74: 388.73 | K74: 377.6 | L74: 365 | M74: 6.3629
A75: 65 | B75: BEL | C75: 146.95 | D75: 148.65 | E75: 144.30 | F75: 141.65 | G75: 137.30 | H75: 151.30 | I75: 155.65 | J75: 158.30 | K75: 153 | L75: 146 | M75: 249.60961
A76: 66 | B76: BHARATFORG | C76: 666.65 | D76: 671.48 | E76: 655.27 | F76: 643.88 | G76: 627.67 | H76: 682.87 | I76: 699.08 | J76: 710.47 | K76: 687.7 | L76: 660.1 | M76: 16.1253
A77: 67 | B77: BHEL | C77: 71.1 | D77: 72.00 | E77: 69.80 | F77: 68.50 | G77: 66.30 | H77: 73.30 | I77: 75.50 | J77: 76.80 | K77: 74.2 | L77: 70.7 | M77: 962.66171
A78: 68 | B78: BPCL | C78: 470.85 | D78: 472.55 | E78: 468.40 | F78: 465.95 | G78: 461.80 | H78: 475.00 | I78: 479.15 | J78: 481.60 | K78: 476.7 | L78: 470.1 | M78: 44.34765
A79: 69 | B79: BHARATRAS | C79: 13101 | D79: 13223.70 | E79: 12847.40 | F79: 12593.80 | G79: 12217.50 | H79: 13477.30 | I79: 13853.60 | J79: 14107.20 | K79: 13600 | L79: 12970.1 | M79: 0.08156
A80: 70 | B80: BHARTIARTL | C80: 532.9 | D80: 533.87 | E80: 529.33 | F80: 525.77 | G80: 521.23 | H80: 537.43 | I80: 541.97 | J80: 545.53 | K80: 538.4 | L80: 530.3 | M80: 82.80431
A81: 71 | B81: BIOCON | C81: 385.85 | D81: 387.43 | E81: 383.42 | F81: 380.98 | G81: 376.97 | H81: 389.87 | I81: 393.88 | J81: 396.32 | K81: 391.45 | L81: 385 | M81: 17.48372
A82: 72 | B82: BIRLACORPN | C82: 1216.95 | D82: 1230.85 | E82: 1194.10 | F82: 1171.25 | G82: 1134.50 | H82: 1253.70 | I82: 1290.45 | J82: 1313.30 | K82: 1267.6 | L82: 1208 | M82: 0.94747
A83: 73 | B83: BSOFT | C83: 311.25 | D83: 313.77 | E83: 305.83 | F83: 300.42 | G83: 292.48 | H83: 319.18 | I83: 327.12 | J83: 332.53 | K83: 321.7 | L83: 308.35 | M83: 11.85256
A84: 74 | B84: BLISSGVS | C84: 106.6 | D84: 107.13 | E84: 105.77 | F84: 104.93 | G84: 103.57 | H84: 107.97 | I84: 109.33 | J84: 110.17 | K84: 108.5 | L84: 106.3 | M84: 1.92729
A85: 75 | B85: BLUEDART | C85: 6008.65 | D85: 6032.88 | E85: 5945.77 | F85: 5882.88 | G85: 5795.77 | H85: 6095.77 | I85: 6182.88 | J85: 6245.77 | K85: 6120 | L85: 5970 | M85: 0.21847
A86: 76 | B86: BLUESTARCO | C86: 815.9 | D86: 818.90 | E86: 807.80 | F86: 799.70 | G86: 788.60 | H86: 827.00 | I86: 838.10 | J86: 846.20 | K86: 830 | L86: 810.8 | M86: 0.42015
A87: 77 | B87: BBTC | C87: 1301.15 | D87: 1304.12 | E87: 1280.88 | F87: 1260.62 | G87: 1237.38 | H87: 1324.38 | I87: 1347.62 | J87: 1367.88 | K87: 1327.35 | L87: 1283.85 | M87: 1.0587
A88: 78 | B88: BOMDYEING | C88: 77.4 | D88: 78.35 | E88: 76.10 | F88: 74.80 | G88: 72.55 | H88: 79.65 | I88: 81.90 | J88: 83.20 | K88: 80.6 | L88: 77.05 | M88: 25.18816
A89: 79 | B89: BOSCHLTD | C89: 15108.55 | D89: 15188.02 | E89: 15001.03 | F89: 14893.52 | G89: 14706.53 | H89: 15295.53 | I89: 15482.52 | J89: 15590.03 | K89: 15375 | L89: 15080.5 | M89: 0.20001
A90: 80 | B90: BRIGADE | C90: 260 | D90: 259.97 | E90: 258.08 | F90: 256.17 | G90: 254.28 | H90: 261.88 | I90: 263.77 | J90: 265.68 | K90: 261.85 | L90: 258.05 | M90: 2.64436
A91: 81 | B91: BRITANNIA | C91: 3446.75 | D91: 3452.62 | E91: 3436.13 | F91: 3425.52 | G91: 3409.03 | H91: 3463.23 | I91: 3479.72 | J91: 3490.33 | K91: 3469.1 | L91: 3442 | M91: 2.3658
A92: 82 | B92: CARERATING | C92: 573.05 | D92: 580.03 | E92: 563.12 | F92: 553.18 | G92: 536.27 | H92: 589.97 | I92: 606.88 | J92: 616.82 | K92: 596.95 | L92: 570.1 | M92: 1.97445
A93: 83 | B93: CCL | C93: 344.95 | D93: 349.18 | E93: 337.77 | F93: 330.58 | G93: 319.17 | H93: 356.37 | I93: 367.78 | J93: 374.97 | K93: 360.6 | L93: 342 | M93: 5.61369
A94: 84 | B94: CESC | C94: 680.2 | D94: 682.75 | E94: 674.35 | F94: 668.50 | G94: 660.10 | H94: 688.60 | I94: 697.00 | J94: 702.85 | K94: 691.15 | L94: 676.9 | M94: 1.65994
A95: 85 | B95: CRISIL | C95: 1950.35 | D95: 1950.07 | E95: 1935.13 | F95: 1919.92 | G95: 1904.98 | H95: 1965.28 | I95: 1980.22 | J95: 1995.43 | K95: 1965 | L95: 1934.85 | M95: 0.12629
A96: 86 | B96: CSBBANK | C96: 304.8 | D96: 307.58 | E96: 300.72 | F96: 296.63 | G96: 289.77 | H96: 311.67 | I96: 318.53 | J96: 322.62 | K96: 314.45 | L96: 303.5 | M96: 3.51567
A97: 87 | B97: CADILAHC | C97: 619.45 | D97: 621.20 | E97: 614.75 | F97: 610.05 | G97: 603.60 | H97: 625.90 | I97: 632.35 | J97: 637.05 | K97: 627.65 | L97: 616.5 | M97: 35.40399
A98: 88 | B98: CANFINHOME | C98: 557.45 | D98: 559.33 | E98: 548.67 | F98: 539.88 | G98: 529.22 | H98: 568.12 | I98: 578.78 | J98: 587.57 | K98: 570 | L98: 550.55 | M98: 11.58218
A99: 89 | B99: CANBK | C99: 159.05 | D99: 159.97 | E99: 156.93 | F99: 154.82 | G99: 151.78 | H99: 162.08 | I99: 165.12 | J99: 167.23 | K99: 163 | L99: 157.85 | M99: 175.26434
A100: 90 | B100: CAPLIPOINT | C100: 588.55 | D100: 593.35 | E100: 581.75 | F100: 574.95 | G100: 563.35 | H100: 600.15 | I100: 611.75 | J100: 618.55 | K100: 604.95 | L100: 586.55 | M100: 1.2165
A101: 91 | B101: CGCL | C101: 547.8 | D101: 518.97 | E101: 487.93 | F101: 428.07 | G101: 397.03 | H101: 578.83 | I101: 609.87 | J101: 669.73 | K101: 550 | L101: 459.1 | M101: 6.94606
A102: 92 | B102: CARBORUNIV | C102: 589.65 | D102: 592.17 | E102: 582.43 | F102: 575.22 | G102: 565.48 | H102: 599.38 | I102: 609.12 | J102: 616.33 | K102: 601.9 | L102: 584.95 | M102: 1.10855
A103: 93 | B103: CASTROLIND | C103: 132.4 | D103: 133.45 | E103: 131.00 | F103: 129.60 | G103: 127.15 | H103: 134.85 | I103: 137.30 | J103: 138.70 | K103: 135.9 | L103: 132.05 | M103: 9.00115
A104: 94 | B104: CEATLTD | C104: 1324.55 | D104: 1330.85 | E104: 1313.70 | F104: 1302.85 | G104: 1285.70 | H104: 1341.70 | I104: 1358.85 | J104: 1369.70 | K104: 1348 | L104: 1320 | M104: 2.40406
A105: 95 | B105: CENTRALBK | C105: 18.55 | D105: 18.72 | E105: 18.38 | F105: 18.22 | G105: 17.88 | H105: 18.88 | I105: 19.22 | J105: 19.38 | K105: 19.05 | L105: 18.55 | M105: 47.04342
A106: 96 | B106: CDSL | C106: 965.35 | D106: 968.38 | E106: 941.97 | F106: 918.58 | G106: 892.17 | H106: 991.77 | I106: 1018.18 | J106: 1041.57 | K106: 994.8 | L106: 945 | M106: 9.67778
A107: 97 | B107: CENTURYPLY | C107: 402.05 | D107: 402.70 | E107: 397.40 | F107: 392.75 | G107: 387.45 | H107: 407.35 | I107: 412.65 | J107: 417.30 | K107: 408 | L107: 398.05 | M107: 1.30928
A108: 98 | B108: CENTURYTEX | C108: 497.5 | D108: 500.32 | E108: 487.68 | F108: 477.87 | G108: 465.23 | H108: 510.13 | I108: 522.77 | J108: 532.58 | K108: 512.95 | L108: 490.5 | M108: 8.05728
A109: 99 | B109: CERA | C109: 3962.65 | D109: 3979.20 | E109: 3918.00 | F109: 3873.35 | G109: 3812.15 | H109: 4023.85 | I109: 4085.05 | J109: 4129.70 | K109: 4040.4 | L109: 3934.55 | M109: 0.05586
A110: 100 | B110: CHALET | C110: 173.25 | D110: 174.95 | E110: 170.55 | F110: 167.85 | G110: 163.45 | H110: 177.65 | I110: 182.05 | J110: 184.75 | K110: 179.35 | L110: 172.25 | M110: 2.48983
A111: 101 | B111: CHAMBLFERT | C111: 280.75 | D111: 283.92 | E111: 276.83 | F111: 272.92 | G111: 265.83 | H111: 287.83 | I111: 294.92 | J111: 298.83 | K111: 291 | L111: 280 | M111: 5.22179
A112: 102 | B112: CHENNPETRO | C112: 128.95 | D112: 129.95 | E112: 126.40 | F112: 123.85 | G112: 120.30 | H112: 132.50 | I112: 136.05 | J112: 138.60 | K112: 133.5 | L112: 127.4 | M112: 8.76517
A113: 103 | B113: CHOLAHLDNG | C113: 645.4 | D113: 640.58 | E113: 627.47 | F113: 609.53 | G113: 596.42 | H113: 658.52 | I113: 671.63 | J113: 689.57 | K113: 653.7 | L113: 622.65 | M113: 0.98437
A114: 104 | B114: CHOLAFIN | C114: 545.65 | D114: 548.65 | E114: 539.45 | F114: 533.25 | G114: 524.05 | H114: 554.85 | I114: 564.05 | J114: 570.25 | K114: 557.85 | L114: 542.45 | M114: 31.5107
A115: 105 | B115: CIPLA | C115: 946.45 | D115: 949.33 | E115: 940.67 | F115: 934.88 | G115: 926.22 | H115: 955.12 | I115: 963.78 | J115: 969.57 | K115: 958 | L115: 943.55 | M115: 29.04962
A116: 106 | B116: CUB | C116: 167.05 | D116: 168.77 | E116: 164.83 | F116: 162.62 | G116: 158.68 | H116: 170.98 | I116: 174.92 | J116: 177.13 | K116: 172.7 | L116: 166.55 | M116: 37.85119
A117: 107 | B117: COALINDIA | C117: 147.6 | D117: 147.97 | E117: 146.53 | F117: 145.47 | G117: 144.03 | H117: 149.03 | I117: 150.47 | J117: 151.53 | K117: 149.4 | L117: 146.9 | M117: 93.07143
A118: 108 | B118: COCHINSHIP | C118: 376.9 | D118: 378.95 | E118: 374.00 | F118: 371.10 | G118: 366.15 | H118: 381.85 | I118: 386.80 | J118: 389.70 | K118: 383.9 | L118: 376.05 | M118: 1.98576
A119: 109 | B119: COFORGE | C119: 3588.6 | D119: 3564.17 | E119: 3530.33 | F119: 3472.07 | G119: 3438.23 | H119: 3622.43 | I119: 3656.27 | J119: 3714.53 | K119: 3598 | L119: 3505.9 | M119: 4.28643
A120: 110 | B120: COLPAL | C120: 1713.8 | D120: 1720.17 | E120: 1702.33 | F120: 1690.87 | G120: 1673.03 | H120: 1731.63 | I120: 1749.47 | J120: 1760.93 | K120: 1738 | L120: 1708.7 | M120: 2.26744
A121: 111 | B121: CONCOR | C121: 693.15 | D121: 689.05 | E121: 681.10 | F121: 669.05 | G121: 661.10 | H121: 701.10 | I121: 709.05 | J121: 721.10 | K121: 697 | L121: 677 | M121: 38.51257
A122: 112 | B122: COROMANDEL | C122: 799.3 | D122: 799.23 | E122: 790.07 | F122: 780.83 | G122: 771.67 | H122: 808.47 | I122: 817.63 | J122: 826.87 | K122: 808.4 | L122: 790 | M122: 2.75247
A123: 113 | B123: CREDITACC | C123: 631.2 | D123: 633.53 | E123: 622.67 | F123: 614.13 | G123: 603.27 | H123: 642.07 | I123: 652.93 | J123: 661.47 | K123: 644.4 | L123: 625 | M123: 0.43023
A124: 114 | B124: CROMPTON | C124: 398.3 | D124: 401.07 | E124: 394.23 | F124: 390.17 | G124: 383.33 | H124: 405.13 | I124: 411.97 | J124: 416.03 | K124: 407.9 | L124: 397 | M124: 7.07472
A125: 115 | B125: CUMMINSIND | C125: 779.85 | D125: 781.92 | E125: 769.68 | F125: 759.52 | G125: 747.28 | H125: 792.08 | I125: 804.32 | J125: 814.48 | K125: 794.15 | L125: 771.75 | M125: 8.29538
A126: 116 | B126: CYIENT | C126: 810.65 | D126: 814.83 | E126: 799.67 | F126: 788.68 | G126: 773.52 | H126: 825.82 | I126: 840.98 | J126: 851.97 | K126: 830 | L126: 803.85 | M126: 1.9243
A127: 117 | B127: DBCORP | C127: 93.75 | D127: 94.85 | E127: 91.90 | F127: 90.05 | G127: 87.10 | H127: 96.70 | I127: 99.65 | J127: 101.50 | K127: 97.8 | L127: 93 | M127: 3.08745
A128: 118 | B128: DCBBANK | C128: 101.55 | D128: 102.87 | E128: 99.83 | F128: 98.12 | G128: 95.08 | H128: 104.58 | I128: 107.62 | J128: 109.33 | K128: 105.9 | L128: 101.15 | M128: 19.83759
A129: 119 | B129: DCMSHRIRAM | C129: 691.5 | D129: 697.53 | E129: 680.97 | F129: 670.43 | G129: 653.87 | H129: 708.07 | I129: 724.63 | J129: 735.17 | K129: 714.1 | L129: 687 | M129: 3.21005
A130: 120 | B130: DLF | C130: 287.3 | D130: 285.92 | E130: 281.83 | F130: 276.37 | G130: 272.28 | H130: 291.38 | I130: 295.47 | J130: 300.93 | K130: 290 | L130: 280.45 | M130: 53.28784
A131: 121 | B131: DABUR | C131: 537.05 | D131: 539.02 | E131: 533.03 | F131: 529.02 | G131: 523.03 | H131: 543.03 | I131: 549.02 | J131: 553.03 | K131: 545 | L131: 535 | M131: 18.55968
A132: 122 | B132: DALBHARAT | C132: 1815.3 | D132: 1804.40 | E132: 1778.80 | F132: 1742.30 | G132: 1716.70 | H132: 1840.90 | I132: 1866.50 | J132: 1903.00 | K132: 1830 | L132: 1767.9 | M132: 1.67319
A133: 123 | B133: DEEPAKNTR | C133: 1760.35 | D133: 1772.12 | E133: 1744.23 | F133: 1728.12 | G133: 1700.23 | H133: 1788.23 | I133: 1816.12 | J133: 1832.23 | K133: 1800 | L133: 1756 | M133: 6.95025
A134: 124 | B134: DELTACORP | C134: 168.95 | D134: 168.97 | E134: 166.53 | F134: 164.12 | G134: 161.68 | H134: 171.38 | I134: 173.82 | J134: 176.23 | K134: 171.4 | L134: 166.55 | M134: 18.86597
A135: 125 | B135: DHANI | C135: 171.4 | D135: 172.57 | E135: 169.33 | F135: 167.27 | G135: 164.03 | H135: 174.63 | I135: 177.87 | J135: 179.93 | K135: 175.8 | L135: 170.5 | M135: 4.6222
A136: 126 | B136: DHANUKA | C136: 931.1 | D136: 937.70 | E136: 908.40 | F136: 885.70 | G136: 856.40 | H136: 960.40 | I136: 989.70 | J136: 1012.40 | K136: 967 | L136: 915 | M136: 3.22625
A137: 127 | B137: DBL | C137: 541.5 | D137: 542.73 | E137: 537.47 | F137: 533.43 | G137: 528.17 | H137: 546.77 | I137: 552.03 | J137: 556.07 | K137: 548 | L137: 538.7 | M137: 2.70429
A138: 128 | B138: DISHTV | C138: 15.45 | D138: 15.42 | E138: 14.68 | F138: 13.92 | G138: 13.18 | H138: 16.18 | I138: 16.92 | J138: 17.68 | K138: 16.15 | L138: 14.65 | M138: 300.72488
A139: 129 | B139: DCAL | C139: 194.95 | D139: 198.02 | E139: 188.53 | F139: 182.12 | G139: 172.63 | H139: 204.43 | I139: 213.92 | J139: 220.33 | K139: 207.5 | L139: 191.6 | M139: 11.6655
A140: 130 | B140: DIVISLAB | C140: 4220.1 | D140: 4200.75 | E140: 4174.40 | F140: 4128.70 | G140: 4102.35 | H140: 4246.45 | I140: 4272.80 | J140: 4318.50 | K140: 4227.1 | L140: 4155.05 | M140: 6.52655
A141: 131 | B141: DIXON | C141: 4107.4 | D141: 4108.97 | E141: 4018.93 | F141: 3930.47 | G141: 3840.43 | H141: 4197.43 | I141: 4287.47 | J141: 4375.93 | K141: 4199 | L141: 4020.5 | M141: 4.69661
A142: 132 | B142: LALPATHLAB | C142: 2897.75 | D142: 2919.97 | E142: 2858.03 | F142: 2818.32 | G142: 2756.38 | H142: 2959.68 | I142: 3021.62 | J142: 3061.33 | K142: 2981.9 | L142: 2880.25 | M142: 4.47758
A143: 133 | B143: DRREDDY | C143: 5316.5 | D143: 5306.93 | E143: 5274.87 | F143: 5233.23 | G143: 5201.17 | H143: 5348.57 | I143: 5380.63 | J143: 5422.27 | K143: 5339 | L143: 5265.3 | M143: 7.47373
A144: 134 | B144: EIDPARRY | C144: 415.8 | D144: 419.27 | E144: 411.03 | F144: 406.27 | G144: 398.03 | H144: 424.03 | I144: 432.27 | J144: 437.03 | K144: 427.5 | L144: 414.5 | M144: 2.91615
A145: 135 | B145: EIHOTEL | C145: 109.7 | D145: 110.22 | E145: 108.63 | F145: 107.57 | G145: 105.98 | H145: 111.28 | I145: 112.87 | J145: 113.93 | K145: 111.8 | L145: 109.15 | M145: 8.96899
A146: 136 | B146: EPL | C146: 240.6 | D146: 239.12 | E146: 235.53 | F146: 230.47 | G146: 226.88 | H146: 244.18 | I146: 247.77 | J146: 252.83 | K146: 242.7 | L146: 234.05 | M146: 10.09288
A147: 137 | B147: ESABINDIA | C147: 1819.7 | D147: 1826.90 | E147: 1807.80 | F147: 1795.90 | G147: 1776.80 | H147: 1838.80 | I147: 1857.90 | J147: 1869.80 | K147: 1846 | L147: 1815 | M147: 0.03594
A148: 138 | B148: EDELWEISS | C148: 63.75 | D148: 64.23 | E148: 62.52 | F148: 61.28 | G148: 59.57 | H148: 65.47 | I148: 67.18 | J148: 68.42 | K148: 65.95 | L148: 63 | M148: 14.29696
A149: 139 | B149: EICHERMOT | C149: 2665.8 | D149: 2659.93 | E149: 2615.87 | F149: 2565.93 | G149: 2521.87 | H149: 2709.87 | I149: 2753.93 | J149: 2803.87 | K149: 2704 | L149: 2610 | M149: 11.26551
A150: 140 | B150: ELGIEQUIP | C150: 205.45 | D150: 206.02 | E150: 202.03 | F150: 198.62 | G150: 194.63 | H150: 209.43 | I150: 213.42 | J150: 216.83 | K150: 210 | L150: 202.6 | M150: 0.76089
A151: 141 | B151: EMAMILTD | C151: 507.5 | D151: 508.15 | E151: 501.40 | F151: 495.30 | G151: 488.55 | H151: 514.25 | I151: 521.00 | J151: 527.10 | K151: 514.9 | L151: 502.05 | M151: 5.82758
A152: 142 | B152: ENDURANCE | C152: 1492.9 | D152: 1492.97 | E152: 1461.93 | F152: 1430.97 | G152: 1399.93 | H152: 1523.93 | I152: 1554.97 | J152: 1585.93 | K152: 1524 | L152: 1462 | M152: 1.17149
A153: 143 | B153: ENGINERSIN | C153: 83.15 | D153: 83.90 | E153: 82.05 | F153: 80.95 | G153: 79.10 | H153: 85.00 | I153: 86.85 | J153: 87.95 | K153: 85.75 | L153: 82.8 | M153: 32.79853
A154: 144 | B154: EQUITAS | C154: 89 | D154: 90.22 | E154: 87.48 | F154: 85.97 | G154: 83.23 | H154: 91.73 | I154: 94.47 | J154: 95.98 | K154: 92.95 | L154: 88.7 | M154: 15.23045
A155: 145 | B155: ERIS | C155: 708.8 | D155: 705.88 | E155: 697.92 | F155: 687.03 | G155: 679.07 | H155: 716.77 | I155: 724.73 | J155: 735.62 | K155: 713.85 | L155: 695 | M155: 0.67407
A156: 146 | B156: ESCORTS | C156: 1162.8 | D156: 1168.42 | E156: 1146.83 | F156: 1130.87 | G156: 1109.28 | H156: 1184.38 | I156: 1205.97 | J156: 1221.93 | K156: 1190 | L156: 1152.45 | M156: 18.35877
A157: 147 | B157: EXIDEIND | C157: 190 | D157: 191.00 | E157: 188.50 | F157: 187.00 | G157: 184.50 | H157: 192.50 | I157: 195.00 | J157: 196.50 | K157: 193.5 | L157: 189.5 | M157: 18.77809
A158: 148 | B158: FDC | C158: 335.35 | D158: 337.88 | E158: 330.77 | F158: 326.18 | G158: 319.07 | H158: 342.47 | I158: 349.58 | J158: 354.17 | K158: 345 | L158: 333.3 | M158: 1.64534
A159: 149 | B159: FEDERALBNK | C159: 85.75 | D159: 86.25 | E159: 84.60 | F159: 83.45 | G159: 81.80 | H159: 87.40 | I159: 89.05 | J159: 90.20 | K159: 87.9 | L159: 85.1 | M159: 236.72298
A160: 150 | B160: FINEORG | C160: 3045.95 | D160: 3005.98 | E160: 2943.97 | F160: 2841.98 | G160: 2779.97 | H160: 3107.97 | I160: 3169.98 | J160: 3271.97 | K160: 3068 | L160: 2904 | M160: 1.31385
A161: 151 | B161: FINCABLES | C161: 458.7 | D161: 454.23 | E161: 446.47 | F161: 434.23 | G161: 426.47 | H161: 466.47 | I161: 474.23 | J161: 486.47 | K161: 462 | L161: 442 | M161: 14.68204
A162: 152 | B162: FINPIPE | C162: 167.75 | D162: 168.88 | E162: 164.07 | F162: 160.38 | G162: 155.57 | H162: 172.57 | I162: 177.38 | J162: 181.07 | K162: 173.7 | L162: 165.2 | M162: 5.45843
A163: 153 | B163: FSL | C163: 139.6 | D163: 140.77 | E163: 137.63 | F163: 135.67 | G163: 132.53 | H163: 142.73 | I163: 145.87 | J163: 147.83 | K163: 143.9 | L163: 138.8 | M163: 13.88902
A164: 154 | B164: FORTIS | C164: 230.05 | D164: 230.10 | E164: 227.10 | F164: 224.15 | G164: 221.15 | H164: 233.05 | I164: 236.05 | J164: 239.00 | K164: 233.1 | L164: 227.15 | M164: 50.05463
A165: 155 | B165: FCONSUMER | C165: 7.2 | D165: 7.28 | E165: 6.97 | F165: 6.73 | G165: 6.42 | H165: 7.52 | I165: 7.83 | J165: 8.07 | K165: 7.6 | L165: 7.05 | M165: 196.55678
A166: 156 | B166: FRETAIL | C166: 47.7 | D166: 47.93 | E166: 46.12 | F166: 44.53 | G166: 42.72 | H166: 49.52 | I166: 51.33 | J166: 52.92 | K166: 49.75 | L166: 46.35 | M166: 44.41744
A167: 157 | B167: GAIL | C167: 160.45 | D167: 160.07 | E167: 158.38 | F167: 156.32 | G167: 154.63 | H167: 162.13 | I167: 163.82 | J167: 165.88 | K167: 161.75 | L167: 158 | M167: 141.27363
A168: 158 | B168: GEPIL | C168: 280.6 | D168: 281.90 | E168: 275.80 | F168: 271.00 | G168: 264.90 | H168: 286.70 | I168: 292.80 | J168: 297.60 | K168: 288 | L168: 277.1 | M168: 1.1124
A169: 159 | B169: GHCL | C169: 257.95 | D169: 258.98 | E169: 254.17 | F169: 250.38 | G169: 245.57 | H169: 262.77 | I169: 267.58 | J169: 271.37 | K169: 263.8 | L169: 255.2 | M169: 1.67338
A170: 160 | B170: GMMPFAUDLR | C170: 4898 | D170: 4890.83 | E170: 4787.22 | F170: 4676.43 | G170: 4572.82 | H170: 5001.62 | I170: 5105.23 | J170: 5216.02 | K170: 4994.45 | L170: 4780.05 | M170: 1.37786
A171: 161 | B171: GMRINFRA | C171: 25.7 | D171: 25.78 | E171: 25.37 | F171: 25.03 | G171: 24.62 | H171: 26.12 | I171: 26.53 | J171: 26.87 | K171: 26.2 | L171: 25.45 | M171: 108.82858
A172: 162 | B172: GALAXYSURF | C172: 2965.15 | D172: 2955.38 | E172: 2924.77 | F172: 2884.38 | G172: 2853.77 | H172: 2995.77 | I172: 3026.38 | J172: 3066.77 | K172: 2986 | L172: 2915 | M172: 0.4936
A173: 163 | B173: GRSE | C173: 181.9 | D173: 183.93 | E173: 179.17 | F173: 176.43 | G173: 171.67 | H173: 186.67 | I173: 191.43 | J173: 194.17 | K173: 188.7 | L173: 181.2 | M173: 5.14474
A174: 164 | B174: GARFIBRES | C174: 2841.6 | D174: 2864.55 | E174: 2804.85 | F174: 2768.10 | G174: 2708.40 | H174: 2901.30 | I174: 2961.00 | J174: 2997.75 | K174: 2924.25 | L174: 2827.8 | M174: 0.18347
A175: 165 | B175: GICRE | C175: 196.75 | D175: 197.37 | E175: 193.98 | F175: 191.22 | G175: 187.83 | H175: 200.13 | I175: 203.52 | J175: 206.28 | K175: 200.75 | L175: 194.6 | M175: 5.55102
A176: 166 | B176: GILLETTE | C176: 5576.2 | D176: 5584.07 | E176: 5543.13 | F176: 5510.07 | G176: 5469.13 | H176: 5617.13 | I176: 5658.07 | J176: 5691.13 | K176: 5625 | L176: 5551 | M176: 0.10941
A177: 167 | B177: GLAXO | C177: 1495.75 | D177: 1506.08 | E177: 1482.17 | F177: 1468.58 | G177: 1444.67 | H177: 1519.67 | I177: 1543.58 | J177: 1557.17 | K177: 1530 | L177: 1492.5 | M177: 0.25913
A178: 168 | B178: GLENMARK | C178: 594.7 | D178: 599.18 | E178: 586.52 | F178: 578.33 | G178: 565.67 | H178: 607.37 | I178: 620.03 | J178: 628.22 | K178: 611.85 | L178: 591 | M178: 22.89905
A179: 169 | B179: GODFRYPHLP | C179: 907.9 | D179: 909.02 | E179: 896.73 | F179: 885.57 | G179: 873.28 | H179: 920.18 | I179: 932.47 | J179: 943.63 | K179: 921.3 | L179: 897.85 | M179: 0.67136
A180: 170 | B180: GODREJAGRO | C180: 552.05 | D180: 552.33 | E180: 549.67 | F180: 547.28 | G180: 544.62 | H180: 554.72 | I180: 557.38 | J180: 559.77 | K180: 555 | L180: 549.95 | M180: 1.56517
A181: 171 | B181: GODREJCP | C181: 849.05 | D181: 853.30 | E181: 841.30 | F181: 833.55 | G181: 821.55 | H181: 861.05 | I181: 873.05 | J181: 880.80 | K181: 865.3 | L181: 845.55 | M181: 10.44836
A182: 172 | B182: GODREJIND | C182: 527.4 | D182: 528.57 | E182: 519.18 | F182: 510.97 | G182: 501.58 | H182: 536.78 | I182: 546.17 | J182: 554.38 | K182: 537.95 | L182: 520.35 | M182: 3.20543
A183: 173 | B183: GODREJPROP | C183: 1361.1 | D183: 1366.55 | E183: 1346.15 | F183: 1331.20 | G183: 1310.80 | H183: 1381.50 | I183: 1401.90 | J183: 1416.85 | K183: 1386.95 | L183: 1351.6 | M183: 4.75091
A184: 174 | B184: GRANULES | C184: 316.05 | D184: 317.30 | E184: 313.80 | F184: 311.55 | G184: 308.05 | H184: 319.55 | I184: 323.05 | J184: 325.30 | K184: 320.8 | L184: 315.05 | M184: 16.14486
A185: 175 | B185: GRAPHITE | C185: 747.4 | D185: 752.65 | E185: 737.30 | F185: 727.20 | G185: 711.85 | H185: 762.75 | I185: 778.10 | J185: 788.20 | K185: 768 | L185: 742.55 | M185: 14.00678
A186: 176 | B186: GRASIM | C186: 1444.55 | D186: 1453.57 | E186: 1427.98 | F186: 1411.42 | G186: 1385.83 | H186: 1470.13 | I186: 1495.72 | J186: 1512.28 | K186: 1479.15 | L186: 1437 | M186: 11.17622
A187: 177 | B187: GESHIP | C187: 424.7 | D187: 425.23 | E187: 408.67 | F187: 392.63 | G187: 376.07 | H187: 441.27 | I187: 457.83 | J187: 473.87 | K187: 441.8 | L187: 409.2 | M187: 13.97007
A188: 178 | B188: GREAVESCOT | C188: 126.65 | D188: 127.15 | E188: 125.30 | F188: 123.95 | G188: 122.10 | H188: 128.50 | I188: 130.35 | J188: 131.70 | K188: 129 | L188: 125.8 | M188: 7.03726
A189: 179 | B189: GRINDWELL | C189: 1199.5 | D189: 1208.32 | E189: 1178.23 | F189: 1156.97 | G189: 1126.88 | H189: 1229.58 | I189: 1259.67 | J189: 1280.93 | K189: 1238.4 | L189: 1187.05 | M189: 0.68805
A190: 180 | B190: GUJALKALI | C190: 397.25 | D190: 399.65 | E190: 393.60 | F190: 389.95 | G190: 383.90 | H190: 403.30 | I190: 409.35 | J190: 413.00 | K190: 405.7 | L190: 396 | M190: 2.44682
A191: 181 | B191: GAEL | C191: 162.8 | D191: 164.97 | E191: 160.03 | F191: 157.27 | G191: 152.33 | H191: 167.73 | I191: 172.67 | J191: 175.43 | K191: 169.9 | L191: 162.2 | M191: 2.76423
A192: 182 | B192: FLUOROCHEM | C192: 919.35 | D192: 896.42 | E192: 857.83 | F192: 796.32 | G192: 757.73 | H192: 957.93 | I192: 996.52 | J192: 1058.03 | K192: 935 | L192: 834.9 | M192: 16.89081
A193: 183 | B193: GUJGASLTD | C193: 540.4 | D193: 541.07 | E193: 534.33 | F193: 528.27 | G193: 521.53 | H193: 547.13 | I193: 553.87 | J193: 559.93 | K193: 547.8 | L193: 535 | M193: 25.05309
A194: 184 | B194: GMDCLTD | C194: 71.85 | D194: 72.63 | E194: 70.57 | F194: 69.28 | G194: 67.22 | H194: 73.92 | I194: 75.98 | J194: 77.27 | K194: 74.7 | L194: 71.35 | M194: 14.99649
A195: 185 | B195: GNFC | C195: 369.05 | D195: 370.97 | E195: 363.13 | F195: 357.22 | G195: 349.38 | H195: 376.88 | I195: 384.72 | J195: 390.63 | K195: 378.8 | L195: 365.05 | M195: 4.83282
A196: 186 | B196: GPPL | C196: 105.95 | D196: 107.48 | E196: 103.97 | F196: 101.98 | G196: 98.47 | H196: 109.47 | I196: 112.98 | J196: 114.97 | K196: 111 | L196: 105.5 | M196: 14.32412
A197: 187 | B197: GSFC | C197: 108.05 | D197: 109.82 | E197: 104.98 | F197: 101.92 | G197: 97.08 | H197: 112.88 | I197: 117.72 | J197: 120.78 | K197: 114.65 | L197: 106.75 | M197: 22.56259
A198: 188 | B198: GSPL | C198: 277.05 | D198: 277.02 | E198: 273.08 | F198: 269.12 | G198: 265.18 | H198: 280.98 | I198: 284.92 | J198: 288.88 | K198: 280.95 | L198: 273.05 | M198: 11.78101
A199: 189 | B199: GULFOILLUB | C199: 684.35 | D199: 690.37 | E199: 674.73 | F199: 665.12 | G199: 649.48 | H199: 699.98 | I199: 715.62 | J199: 725.23 | K199: 706 | L199: 680.75 | M199: 0.96946
A200: 190 | B200: HEG | C200: 2081.95 | D200: 2110.55 | E200: 2046.40 | F200: 2010.85 | G200: 1946.70 | H200: 2146.10 | I200: 2210.25 | J200: 2245.80 | K200: 2174.7 | L200: 2075 | M200: 4.77668
A201: 191 | B201: HCLTECH | C201: 950.7 | D201: 948.25 | E201: 944.50 | F201: 938.30 | G201: 934.55 | H201: 954.45 | I201: 958.20 | J201: 964.40 | K201: 952 | L201: 942.05 | M201: 29.44472
A202: 192 | B202: HDFCAMC | C202: 2964.9 | D202: 2976.32 | E202: 2940.63 | F202: 2916.37 | G202: 2880.68 | H202: 3000.58 | I202: 3036.27 | J202: 3060.53 | K202: 3012 | L202: 2952.05 | M202: 1.98733
A203: 193 | B203: HDFCBANK | C203: 1511.7 | D203: 1515.32 | E203: 1503.63 | F203: 1495.57 | G203: 1483.88 | H203: 1523.38 | I203: 1535.07 | J203: 1543.13 | K203: 1527 | L203: 1507.25 | M203: 55.15081
A204: 194 | B204: HDFCLIFE | C204: 665.25 | D204: 666.62 | E204: 662.28 | F204: 659.32 | G204: 654.98 | H204: 669.58 | I204: 673.92 | J204: 676.88 | K204: 670.95 | L204: 663.65 | M204: 17.3133
A205: 195 | B205: HFCL | C205: 43.45 | D205: 43.97 | E205: 42.08 | F205: 40.72 | G205: 38.83 | H205: 45.33 | I205: 47.22 | J205: 48.58 | K205: 45.85 | L205: 42.6 | M205: 170.61963
A206: 196 | B206: HATHWAY | C206: 24.7 | D206: 25.00 | E206: 24.10 | F206: 23.50 | G206: 22.60 | H206: 25.60 | I206: 26.50 | J206: 27.10 | K206: 25.9 | L206: 24.4 | M206: 64.12745
... 321 more rows

Sheet Bulk Deals
E6: Back To Main Page
A7: Subject : | B7: BULK DEAL | D7: =Main!B10 -> 2021-06-02
A9: Date | B9: Scrip code | C9: Scrip Name | D9: Client Name | E9: Buy / Sell | F9: Quantity Traded | G9: Trade Price / Wt.Avg.trade price | H9: Exchange
A10: 2021-06-01 | B10: 534064 | C10: AIML | D10: PARAG J SHETH HUF | E10: BUY | F10: 100,000 | G10: 15.38 | H10: BSE
A11: 2021-06-01 | B11: 541303 | C11: AKSHAR | D11: KOTAK MAHINDRA BANK LIMITED | E11: SELL | F11: 177,000 | G11: 8.58 | H11: BSE
A12: 2021-06-01 | B12: 541303 | C12: AKSHAR | D12: OSCAR FABRIC YARN | E12: BUY | F12: 189,000 | G12: 9.96 | H12: BSE
A13: 2021-06-01 | B13: 507960 | C13: GUJHOTE | D13: MANJU GAGGAR | E13: BUY | F13: 30,106 | G13: 149.92 | H13: BSE
A14: 2021-06-01 | B14: 507960 | C14: GUJHOTE | D14: CLASSIC REAL TIES PVT. LTD. | E14: SELL | F14: 25,000 | G14: 151.66 | H14: BSE
A15: 2021-06-01 | B15: 532326 | C15: INTENTECH | D15: AKG FINVEST LIMITED | E15: BUY | F15: 146,000 | G15: 68.5 | H15: BSE
A16: 2021-06-01 | B16: 532326 | C16: INTENTECH | D16: UNO METALS LIMITED | E16: BUY | F16: 154,000 | G16: 68.5 | H16: BSE
A17: 2021-06-01 | B17: 532326 | C17: INTENTECH | D17: GANPATI DEALCOM PVT LTD | E17: SELL | F17: 300,000 | G17: 68.5 | H17: BSE
A18: 2021-06-01 | B18: 514034 | C18: JBFIND | D18: ASSETS CARE AND RECONSTRUCTION ENTERPRISE LIMITED | E18: SELL | F18: 446,126 | G18: 26.77 | H18: BSE
A19: 2021-06-01 | B19: 537669 | C19: LAXMIPATI | D19: NNM SECURITIES PVT LTD | E19: BUY | F19: 99,000 | G19: 25 | H19: BSE
A20: 2021-06-01 | B20: 537669 | C20: LAXMIPATI | D20: THAKURJI INTERNATIONAL PRIVATE LIMITED | E20: SELL | F20: 99,000 | G20: 25 | H20: BSE
A21: 2021-06-01 | B21: 506734 | C21: MYSORPETRO | D21: MANJU GAGGAR | E21: BUY | F21: 54,205 | G21: 107.74 | H21: BSE
A22: 2021-06-01 | B22: 540080 | C22: NARAYANI | D22: JITESHKUMAR SHASHIKANTBHAI TIKADIYA | E22: SELL | F22: 60,000 | G22: 36.73 | H22: BSE
A23: 2021-06-01 | B23: 535657 | C23: OONE | D23: OM HARI MAHABIR HALAN HUF | E23: SELL | F23: 100,000 | G23: 4.98 | H23: BSE
A24: 2021-06-01 | B24: 540198 | C24: OSIAJEE | D24: ACVC FOREX PRIVATE LIMITED | E24: BUY | F24: 8 | G24: 27.6 | H24: BSE
A25: 2021-06-01 | B25: 540198 | C25: OSIAJEE | D25: REEMA SAROYA | E25: BUY | F25: 56,878 | G25: 27.93 | H25: BSE
A26: 2021-06-01 | B26: 540198 | C26: OSIAJEE | D26: ACVC FOREX PRIVATE LIMITED | E26: SELL | F26: 66,689 | G26: 28.11 | H26: BSE
A27: 2021-06-01 | B27: 538646 | C27: QGO | D27: RAMESH KOMMURU | E27: BUY | F27: 101,101 | G27: 17.45 | H27: BSE
A28: 2021-06-01 | B28: 538646 | C28: QGO | D28: SINGI | E28: SELL | F28: 100,000 | G28: 17.44 | H28: BSE
A29: 2021-06-01 | B29: 539526 | C29: SCTL | D29: ALKA RAWAT | E29: BUY | F29: 939,623 | G29: 0.61 | H29: BSE
A30: 2021-06-01 | B30: 539526 | C30: SCTL | D30: ALKA RAWAT | E30: SELL | F30: 939,623 | G30: 0.61 | H30: BSE
A31: 2021-06-01 | B31: 540259 | C31: SHANGAR | D31: OLGA TRADING PRIVATE LIMITED | E31: SELL | F31: 73,000 | G31: 10.38 | H31: BSE
A32: 2021-06-01 | B32: 539026 | C32: SSPNFIN | D32: SACHIN PRABHAKAR BRAHMANKAR | E32: BUY | F32: 20,000 | G32: 7.95 | H32: BSE
A33: 2021-06-01 | B33: 539026 | C33: SSPNFIN | D33: MOHIT HIREN SHAH | E33: BUY | F33: 20,000 | G33: 8.05 | H33: BSE
A34: 2021-06-01 | B34: 539026 | C34: SSPNFIN | D34: ASHOK KUMAR SINGH | E34: BUY | F34: 20,000 | G34: 7.9 | H34: BSE
A35: 2021-06-01 | B35: 539026 | C35: SSPNFIN | D35: MOHIT HIREN SHAH | E35: SELL | F35: 20,000 | G35: 8.1 | H35: BSE
A36: 2021-06-01 | B36: 539026 | C36: SSPNFIN | D36: ASHOK KUMAR SINGH | E36: SELL | F36: 28,000 | G36: 8.01 | H36: BSE
A37: 2021-06-01 | B37: 539026 | C37: SSPNFIN | D37: SUBASH RAMASHISH MISHRA | E37: BUY | F37: 36,000 | G37: 8.1 | H37: BSE
A38: 2021-06-01 | B38: 539026 | C38: SSPNFIN | D38: ESPS FINSERVE PRIVATE LIMITED | E38: SELL | F38: 36,000 | G38: 8.03 | H38: BSE
A39: 2021-06-01 | B39: 513488 | C39: SSWRL | D39: DEEPINDER SINGH POONIAN | E39: SELL | F39: 24,096 | G39: 21.22 | H39: BSE
A40: 2021-06-01 | B40: 524470 | C40: SYNCOMF | D40: TOPGAIN FINANCE PRIVATE LIMITED | E40: BUY | F40: 7,125,519 | G40: 7.84 | H40: BSE
A41: 2021-06-01 | B41: 524470 | C41: SYNCOMF | D41: TOPGAIN FINANCE PRIVATE LIMITED | E41: SELL | F41: 7,768,509 | G41: 7.87 | H41: BSE
A42: 2021-06-01 | B42: 533170 | C42: TAMBOLI | D42: RAJIV GARG | E42: SELL | F42: 49,997 | G42: 44.3 | H42: BSE
A43: 2021-06-01 | B43: 540726 | C43: TTFL | D43: SHREE BALKRISHNA EXPORTS | E43: BUY | F43: 60,000 | G43: 34.05 | H43: BSE
A44: 2021-06-01 | B44: 539222 | C44: VMV | D44: PRAKASHBHAI GORDHANBHAI LATHIYA | E44: SELL | F44: 35,000 | G44: 8.32 | H44: BSE
A45: 2021-06-01 | B45: 539222 | C45: VMV | D45: SUBASH RAMASHISH MISHRA | E45: BUY | F45: 35,000 | G45: 8.36 | H45: BSE
A46: 2021-06-01 | B46: 539222 | C46: VMV | D46: ESPS FINSERVE PRIVATE LIMITED | E46: SELL | F46: 35,000 | G46: 8.3 | H46: BSE
A47: 2021-06-01 | B47: CHEMCON | C47: Chemcon Special Chem Ltd | D47: GRAVITON RESEARCH CAPITAL LLP | E47: BUY | F47: 257,021 | G47: 473.8 | H47: NSE
A48: 2021-06-01 | B48: IRB | C48: IRB Infrastructure Develo | D48: HDFC MUTUAL FUND | E48: BUY | F48: 2,462,680 | G48: 111.34 | H48: NSE
A49: 2021-06-01 | B49: IRB | C49: IRB Infrastructure Develo | D49: SILVERTOSS SHOPPERS PVT LTD | E49: BUY | F49: 101,000 | G49: 111.63 | H49: NSE
A50: 2021-06-01 | B50: KAMATHOTEL | C50: Kamat Hotels (I) Ltd | D50: GRAVITON RESEARCH CAPITAL LLP | E50: BUY | F50: 120,705 | G50: 47.18 | H50: NSE
A51: 2021-06-01 | B51: MOHOTAIND | C51: Mohota Industries Ltd. | D51: PRAVIN MITHALAL GANDHI | E51: BUY | F51: 81,218 | G51: 6.59 | H51: NSE
A52: 2021-06-01 | B52: ONWARDTEC | C52: Onward Technologies Ltd | D52: NUMIV RESEARCH PRIVATE LIMITED | E52: BUY | F52: 97,479 | G52: 216.39 | H52: NSE
A53: 2021-06-01 | B53: RELCAPITAL | C53: Reliance Capital Limited | D53: TEJAS TRADEFIN LLP | E53: BUY | F53: 1,312,369 | G53: 14.52 | H53: NSE
A54: 2021-06-01 | B54: RIIL | C54: Reliance Indl Infra Ltd | D54: SETU SECURITIES PVT LTD | E54: BUY | F54: 109,198 | G54: 450.49 | H54: NSE
A55: 2021-06-01 | B55: RIIL | C55: Reliance Indl Infra Ltd | D55: XTX MARKETS LLP | E55: BUY | F55: 146,887 | G55: 455.41 | H55: NSE
A56: 2021-06-01 | B56: RIIL | C56: Reliance Indl Infra Ltd | D56: GRAVITON RESEARCH CAPITAL LLP | E56: BUY | F56: 254,300 | G56: 455.99 | H56: NSE
A57: 2021-06-01 | B57: RIIL | C57: Reliance Indl Infra Ltd | D57: QE SECURITIES | E57: BUY | F57: 108,807 | G57: 453.81 | H57: NSE
A58: 2021-06-01 | B58: ROLTA | C58: Rolta India Ltd. | D58: TOPGAIN FINANCE PRIVATE LIMITED | E58: BUY | F58: 137,375 | G58: 6.38 | H58: NSE
A59: 2021-06-01 | B59: SHIVAMILLS | C59: Shiva Mills Limited | D59: ASHMAVIR FINANCIAL CONSULTANTS PVT LTD | E59: BUY | F59: 64,129 | G59: 68.39 | H59: NSE
A60: 2021-06-01 | B60: SKMEGGPROD | C60: SKM Egg Products Export | D60: GRAVITON RESEARCH CAPITAL LLP | E60: BUY | F60: 203,969 | G60: 72.08 | H60: NSE
A61: 2021-06-01 | B61: SKMEGGPROD | C61: SKM Egg Products Export | D61: XTX MARKETS LLP | E61: BUY | F61: 138,590 | G61: 72.31 | H61: NSE
A62: 2021-06-01 | B62: STARPAPER | C62: Star Paper Mills Ltd | D62: GRAVITON RESEARCH CAPITAL LLP | E62: BUY | F62: 85,050 | G62: 138.33 | H62: NSE
A63: 2021-06-01 | B63: TEMBO | C63: Tembo Global Ind Ltd | D63: VISHAL MAHESH WAGHELA | E63: BUY | F63: 45,410 | G63: 166.68 | H63: NSE
A64: 2021-06-01 | B64: TEMBO | C64: Tembo Global Ind Ltd | D64: RAVI GOYAL (HUF) | E64: BUY | F64: 100,000 | G64: 162.38 | H64: NSE
A65: 2021-06-01 | B65: TEMBO | C65: Tembo Global Ind Ltd | D65: RIYA GANGWANI | E65: BUY | F65: 100,000 | G65: 164.38 | H65: NSE
A66: 2021-06-01 | B66: TEXMOPIPES | C66: Texmo Pipe & Products Ltd | D66: ALPHA LEON ENTERPRISES LLP | E66: BUY | F66: 595,128 | G66: 51.31 | H66: NSE
A67: 2021-06-01 | B67: UFO | C67: UFO Moviez India Ltd. | D67: VIJIT TRADING | E67: BUY | F67: 225,240 | G67: 105.9 | H67: NSE
A68: 2021-06-01 | B68: UFO | C68: UFO Moviez India Ltd. | D68: GRAVITON RESEARCH CAPITAL LLP | E68: BUY | F68: 592,483 | G68: 99.35 | H68: NSE
A69: 2021-06-01 | B69: UFO | C69: UFO Moviez India Ltd. | D69: NK SECURITIES RESEARCH PRIVATE LIMITED | E69: BUY | F69: 410,205 | G69: 99.81 | H69: NSE
A70: 2021-06-01 | B70: UFO | C70: UFO Moviez India Ltd. | D70: NUMIV RESEARCH PRIVATE LIMITED | E70: BUY | F70: 313,359 | G70: 98.72 | H70: NSE
A71: 2021-06-01 | B71: UFO | C71: UFO Moviez India Ltd. | D71: MANSI SHARES & STOCK ADVISORS PVT LTD | E71: BUY | F71: 235,028 | G71: 106.32 | H71: NSE
A72: 2021-06-01 | B72: UFO | C72: UFO Moviez India Ltd. | D72: XTX MARKETS LLP | E72: BUY | F72: 184,359 | G72: 100.74 | H72: NSE
A73: 2021-06-01 | B73: VERTOZ | C73: Vertoz Advertising Ltd | D73: OLGA TRADING PRIVATE LIMITED | E73: BUY | F73: 92,324 | G73: 224.25 | H73: NSE
A74: 2021-06-01 | B74: VIKASWSP | C74: Vikas Wsp Ltd | D74: SONY SEBASTIAN | E74: BUY | F74: 1,024,937 | G74: 5.41 | H74: NSE
A75: 2021-06-01 | B75: ASIANTILES | C75: Asian Granito India Limit | D75: REMCOM SALES SERVICES PVT LTD | E75: SELL | F75: 160,000 | G75: 187.79 | H75: NSE
A76: 2021-06-01 | B76: CHEMCON | C76: Chemcon Special Chem Ltd | D76: GRAVITON RESEARCH CAPITAL LLP | E76: SELL | F76: 257,021 | G76: 473.92 | H76: NSE
A77: 2021-06-01 | B77: IRB | C77: IRB Infrastructure Develo | D77: SILVERTOSS SHOPPERS PVT LTD | E77: SELL | F77: 3,375,750 | G77: 111.86 | H77: NSE
A78: 2021-06-01 | B78: JBFIND | C78: JBF INDUSTRIES LTD | D78: ASSETS CARE AND RECONSTRUCTION ENTERPRISE LIMITED | E78: SELL | F78: 726,195 | G78: 26.58 | H78: NSE
A79: 2021-06-01 | B79: KAMATHOTEL | C79: Kamat Hotels (I) Ltd | D79: GRAVITON RESEARCH CAPITAL LLP | E79: SELL | F79: 120,705 | G79: 47.36 | H79: NSE
A80: 2021-06-01 | B80: ONWARDTEC | C80: Onward Technologies Ltd | D80: NUMIV RESEARCH PRIVATE LIMITED | E80: SELL | F80: 97,479 | G80: 216.31 | H80: NSE
A81: 2021-06-01 | B81: PRAENG | C81: Prajay Engineers Syndicat | D81: VIJIT TRADING | E81: SELL | F81: 350,123 | G81: 12.41 | H81: NSE
A82: 2021-06-01 | B82: RELCAPITAL | C82: Reliance Capital Limited | D82: TEJAS TRADEFIN LLP | E82: SELL | F82: 879,369 | G82: 14.63 | H82: NSE
A83: 2021-06-01 | B83: RIIL | C83: Reliance Indl Infra Ltd | D83: QE SECURITIES | E83: SELL | F83: 108,612 | G83: 455.29 | H83: NSE
A84: 2021-06-01 | B84: RIIL | C84: Reliance Indl Infra Ltd | D84: XTX MARKETS LLP | E84: SELL | F84: 151,342 | G84: 455.53 | H84: NSE
A85: 2021-06-01 | B85: RIIL | C85: Reliance Indl Infra Ltd | D85: SETU SECURITIES PVT LTD | E85: SELL | F85: 98,933 | G85: 457.95 | H85: NSE
A86: 2021-06-01 | B86: RIIL | C86: Reliance Indl Infra Ltd | D86: GRAVITON RESEARCH CAPITAL LLP | E86: SELL | F86: 254,300 | G86: 455.95 | H86: NSE
A87: 2021-06-01 | B87: ROLTA | C87: Rolta India Ltd. | D87: TOPGAIN FINANCE PRIVATE LIMITED | E87: SELL | F87: 861,234 | G87: 6.61 | H87: NSE
A88: 2021-06-01 | B88: SKMEGGPROD | C88: SKM Egg Products Export | D88: GRAVITON RESEARCH CAPITAL LLP | E88: SELL | F88: 203,969 | G88: 72.06 | H88: NSE
A89: 2021-06-01 | B89: SKMEGGPROD | C89: SKM Egg Products Export | D89: XTX MARKETS LLP | E89: SELL | F89: 138,873 | G89: 72.57 | H89: NSE
A90: 2021-06-01 | B90: STARPAPER | C90: Star Paper Mills Ltd | D90: GRAVITON RESEARCH CAPITAL LLP | E90: SELL | F90: 85,050 | G90: 138.39 | H90: NSE
A91: 2021-06-01 | B91: TEMBO | C91: Tembo Global Ind Ltd | D91: ACME FINVEST PRIVATE LIMITED | E91: SELL | F91: 79,202 | G91: 164.27 | H91: NSE
A92: 2021-06-01 | B92: TEMBO | C92: Tembo Global Ind Ltd | D92: VISHAL MAHESH WAGHELA | E92: SELL | F92: 76,782 | G92: 164.09 | H92: NSE
A93: 2021-06-01 | B93: TEXMOPIPES | C93: Texmo Pipe & Products Ltd | D93: ALPHA LEON ENTERPRISES LLP | E93: SELL | F93: 441,141 | G93: 53.3 | H93: NSE
A94: 2021-06-01 | B94: UFO | C94: UFO Moviez India Ltd. | D94: NUMIV RESEARCH PRIVATE LIMITED | E94: SELL | F94: 313,359 | G94: 98.79 | H94: NSE
A95: 2021-06-01 | B95: UFO | C95: UFO Moviez India Ltd. | D95: VIJIT TRADING | E95: SELL | F95: 90,240 | G95: 105.18 | H95: NSE
A96: 2021-06-01 | B96: UFO | C96: UFO Moviez India Ltd. | D96: MANSI SHARES & STOCK ADVISORS PVT LTD | E96: SELL | F96: 224,708 | G96: 106.43 | H96: NSE
A97: 2021-06-01 | B97: UFO | C97: UFO Moviez India Ltd. | D97: NK SECURITIES RESEARCH PRIVATE LIMITED | E97: SELL | F97: 410,205 | G97: 99.88 | H97: NSE
A98: 2021-06-01 | B98: UFO | C98: UFO Moviez India Ltd. | D98: XTX MARKETS LLP | E98: SELL | F98: 186,257 | G98: 101.04 | H98: NSE
A99: 2021-06-01 | B99: UFO | C99: UFO Moviez India Ltd. | D99: GRAVITON RESEARCH CAPITAL LLP | E99: SELL | F99: 592,483 | G99: 99.32 | H99: NSE
A100: 2021-06-01 | B100: VERTOZ | C100: Vertoz Advertising Ltd | D100: OLGA TRADING PRIVATE LIMITED | E100: SELL | F100: 61,365 | G100: 221.95 | H100: NSE

Sheet Call Tracker (Equity & F&O)
M5: Back To Main Page
A6: Retail Research Technical Calls & Fundamental Performance Report for the month of May-2021
M7: =Main!B10 -> 2021-06-02
B8: Positional Call
A9: Sr.no | B9: Date | D9: Company | E9: Rec | F9: Rec Price | G9: Stop Loss*** | H9: Call Closed At | I9: Target | J9: Remark | K9: Profit / Loss per Share | L9: All charges | M9: Net Gain / Loss % | N9: Status | O9: Closed Date
A10: 1 | B10: 2021-04-05 | D10: HDFCBANK | E10: Buy | F10: 1465-1475 | G10: 1370 | I10: 1600-1700 | J10: Open | R10: H
A11: 2 | B11: 2021-05-03 | D11: HDFCLIFE | E11: Buy | F11: 660-666 | G11: 619 | I11: 720-740 | J11: Open | R11: H
A12: 3 | B12: 2021-05-26 | D12: JKCEMENT | E12: Buy | F12: 2830-2850 | G12: 2650 | I12: 3100-3200 | J12: Open | R12: H
A13: 4 | B13: 2021-05-27 | D13: BHARTIARTL | E13: Buy | F13: 520-525 | G13: 488 | I13: 590-610 | J13: Open | R13: H
A14: 5 | B14: 2021-05-31 | D14: RELIANCE | E14: Buy | F14: 2085 | G14: 1970 | H14: 2,162.50 | I14: 2250-2300 | J14: Profit of Rs.77.5/- | K14: =H14-F14 -> 77.5 | L14: =(F14*-0.07)/100 -> -1.46 | M14: =(K14+L14)/F14 -> 3.65% | N14: Successful | O14: 2021-05-31 | R14: H
A15: 6 | B15: 2021-06-01 | D15: HEROMOTOCO | E15: Buy | F15: 2965-2985 | G15: 2790 | I15: 3300-3350 | J15: Open
A20: CLBS = Closing Basis ***
A21: Dividend adjusted <> | F21: Reinitiated $
A22: Part book {} | F22: Revised stoploss #
B24: Momentum Call
A25: Sr.no | B25: Date | D25: Company | E25: Rec | F25: Rec Price | G25: Stop Loss | H25: Call Closed At | I25: Target | J25: Remark | K25: Profit / Loss per Share/Lot | L25: All charges | M25: Net Gain / Loss % | N25: Status | O25: Closed Date
A26: 1 | B26: 2021-05-21 | D26: BEML | E26: Buy | F26: 1312-1316 | G26: 1275 | I26: 1380-1400 | J26: Open | R26: N
A27: 2 | B27: 2021-05-25 | D27: EXIDEIND | E27: Buy | F27: 190-191 | G27: 185 | I27: 200-205 | J27: Open | R27: H
A28: 3 | B28: 2021-05-28 | D28: TVSMOTOR | E28: Buy | F28: 636.5 | G28: 615 | H28: 614 | I28: 665-675 | J28: Loss of Rs.22.5/- | K28: =H28-F28 -> -22.5 | L28: =(F28*-0.7)/100 -> -4.46 | M28: =(K28+L28)/F28 -> -4.23% | N28: Unsuccessful | O28: 2021-06-01 | R28: N
A29: 4 | B29: 2021-06-01 | D29: SBIN | E29: Buy | F29: 429-433 | G29: 418 | I29: 450-455 | J29: Open | R29: H
A50: CLBS = Closing Basis *** | H50: *
A51: Dividend adjusted <> | F51: Reinitiated $
F52: Revised stoploss #
A54: Master Trade High Risk
A55: Sr.no | B55: Date | D55: Company | E55: Rec | F55: Rec Price | G55: Stop Loss | H55: Call Closed At | I55: Target | J55: Remark | K55: Profit / Loss per share | L55: All charges | M55: Gain / Loss per Lot | N55: Lot | O55: Status | P55: Closed Date
A56: 8 | B56: 2021-05-27 | D56: HINDUNILVR JUNE FUT | E56: Buy | F56: 2325-2335 | G56: 2385 | I56: 2390-2410 | J56: Open | R56: H
A69: Master Trade Medium Risk
A70: Sr.no | B70: Date | D70: Company | E70: Rec | F70: Rec Price | G70: Stop Loss | H70: Call Closed At | I70: Target | J70: Remark | K70: Profit/ Loss per lot | L70: All charges | M70: Gain / Loss per Lot | N70: Lot | O70: Status | P70: Closed Date
A71: 1 | B71: 2021-05-28 | D71: M&MFIN 185 CE JUN | E71: Sell | F71: 2.50-2.60 | G71: 3.8 | I71: 0.1 | J71: Open | R71: N
A72: 2 | B72: 2021-05-31 | D72: NIFTY 15600 CE 3 JUNE | E72: Buy | F72: 64 | G72: 17 | H72: 76 | I72: 100-120 | J72: Profit of Rs.12/- | K72: =H72-F72 -> 12 | L72: 100 | M72: =(K72*N72)-L72 -> 800.0 | N72: 75 | O72: Successful | P72: 2021-06-01 | R72: H
A90: Techno -Funda (positional)
A91: Sr.no | B91: Date | D91: Company | E91: Rec | F91: Rec Price | G91: Stop Loss*** | H91: Call Closed At | I91: Target | J91: Remark | K91: Profit / Loss per Share/Lot | L91: All charges | M91: Net Gain / Loss % | N91: Status | O91: Closed Date
A92: 1 | B92: 2021-05-11 | D92: RITES | E92: Buy | F92: 237-241 | G92: 218 | I92: 280-290 | J92: Open | R92: H
A94: CLBS = Closing Basis *** | F94: Reinitiated $
A95: Dividend adjusted <> | F95: Revised stoploss #
B97: Intrday Call
A98: Sr.no | B98: Date | D98: Company | E98: Rec | F98: Rec Price | G98: Stop Loss | H98: Call Closed At | I98: Target | J98: Remark | K98: Profit / Loss per Share/Lot | L98: Gain / Loss per Lot | M98: Lot | N98: All charges | O98: Net Gain / Loss % | P98: Status | Q98: Closed Date
B111: Investment Idea
A112: Sr.no | B112: Date | D112: Company | E112: Rec | F112: Rec Price | G112: Point of Review | H112: Close Rate | I112: Target | J112: Remark | K112: Profit / Loss per Share | L112: Gain / Loss % | M112: Status | N112: Closed Date
A113: 1 | B113: 2013-11-01 | D113: L&T Finance Holding | E113: Accu | F113: 82.00 | G113: - | H113: 100 | I113: 100.00 | J113: Target Achieved | K113: =H113-F113 -> 18.00 | L113: =K113/F113 -> 21.95% | M113: Successful | N113: 2016-10-14
A114: 2 | B114: 2014-06-04 | D114: Finolex Inds | E114: Buy | F114: 257.00 | G114: - | H114: 300 | I114: 300.00 | J114: Target Achieved | K114: 43.00 | L114: 16.73% | M114: Successful | N114: 2014-07-02
A115: 3 | B115: 2014-07-08 | D115: JK Cement | E115: Buy | F115: 393.00 | G115: - | H115: 468 | I115: 468.00 | J115: Target Achieved | K115: 75.00 | L115: 19.08% | M115: Successful | N115: 2014-08-12
A116: 4 | B116: 2014-08-06 | D116: Finolex Cables | E116: Buy | F116: 205.00 | G116: - | H116: 275 | I116: 250.00 | J116: Target Achieved | K116: 70.00 | L116: 34.15% | M116: Successful | N116: 2014-11-19
A117: 5 | B117: 2014-09-04 | D117: Exide Inds | E117: Buy | F117: 162.00 | G117: - | H117: 190 | I117: 190.00 | J117: Target Achieved | K117: 28.00 | L117: 17.28% | M117: Successful | N117: 2015-01-02
A118: 6 | B118: 2014-09-04 | D118: Deepak Nitrite | E118: Buy | F118: 75.00 | G118: - | H118: 91.5 | I118: 95-100 | J118: Profit of Rs.16.50/- | K118: 16.50 | L118: 22.00% | M118: Successful | N118: 2014-11-11
A119: 7 | B119: 2014-10-01 | D119: Mercks | E119: Buy | F119: 850.00 | G119: - | H119: 982.5 | I119: 1050.00 | J119: Profit of Rs.132.50/- | K119: 132.50 | L119: 15.59% | M119: Successful | N119: 2015-02-04
A120: 8 | B120: 2014-10-01 | D120: Grindwell Norton | E120: Buy | F120: 475.00 | G120: - | H120: 515 | I120: 600.00 | J120: Profit of Rs.40/- | K120: 40.00 | L120: 8.42% | M120: Successful | N120: 2014-10-27
A121: 9 | B121: 2014-10-01 | D121: Snowman Logistics | E121: Buy | F121: 86.00 | G121: - | H121: 99 | I121: 140.00 | J121: Profit of Rs.13.00/- | K121: 13.00 | L121: 15.12% | M121: Successful | N121: 2014-10-27
A122: 10 | B122: 2014-10-14 | D122: Birla Corp | E122: Buy | F122: 496.60 | G122: - | H122: 621 | I122: 580.00 | J122: Target Achieved | K122: 124.40 | L122: 25.05% | M122: Successful | N122: 2016-08-23
A123: 11 | B123: 2014-10-14 | D123: Ultratech Cem | E123: Buy | F123: 2481.90 | G123: - | H123: 2840 | I123: 2870.00 | J123: Profit of Rs.358.10/- | K123: 358.10 | L123: 14.43% | M123: Successful | N123: 2015-01-13
A124: 12 | B124: 2014-10-16 | D124: Sintex Inds | E124: Buy | F124: 84.50 | G124: - | H124: 93 | I124: 110.00 | J124: Profit of Rs.8.50/- | K124: 8.50 | L124: 10.06% | M124: Successful | N124: 2014-10-27
A125: 13 | B125: 2014-10-16 | D125: HSIL | E125: Buy | F125: 401.00 | G125: - | H125: 428 | I125: 450.00 | J125: Profit of Rs.27.00/- | K125: 27.00 | L125: 6.73% | M125: Successful | N125: 2015-01-16
A126: 14 | B126: 2014-10-16 | D126: Eveready Inds | E126: Buy | F126: 101.00 | G126: - | H126: 112 | I126: 120.00 | J126: Profit of Rs.11.00/- | K126: 11.00 | L126: 10.89% | M126: Successful | N126: 2014-10-27
A127: 15 | B127: 2014-11-11 | D127: Pennar Inds | E127: Buy | F127: 59.00 | G127: - | H127: 76 | I127: 76.00 | J127: Target Achieved | K127: 17.00 | L127: 28.81% | M127: Successful | N127: 2017-10-24
A128: 16 | B128: 2014-11-11 | D128: Snowman Logistics | E128: Buy | F128: 99.00 | G128: - | H128: 120 | I128: 120.00 | J128: Profit of Rs.21/- | K128: 21.00 | L128: 21.21% | M128: Successful | N128: 2014-11-17
A129: 17 | B129: 2014-11-13 | D129: Dharamsi Morarji Chem | E129: Buy | F129: 22.00 | G129: - | H129: 33.55 | I129: 32.00 | J129: Profit of Rs 11.55/- | K129: 11.55 | L129: 52.50% | M129: Successful | N129: 2015-07-03
A130: 18 | B130: 2014-12-03 | D130: Tatachem | E130: Buy | F130: 440.00 | G130: - | H130: 520 | I130: 520.00 | J130: Profit of Rs 80.00/- | K130: 80.00 | L130: 18.18% | M130: Successful | N130: 2015-07-23
A131: 19 | B131: 2014-12-03 | D131: Advanta | E131: Buy | F131: 360.00 | G131: - | H131: 427 | I131: 425.00 | J131: Profit of Rs.67.00/- | K131: 67.00 | L131: 18.61% | M131: Successful | N131: 2015-02-23
A132: 20 | B132: 2015-01-08 | D132: GDL | E132: Buy | F132: 360.00 | G132: - | H132: 455 | I132: 420.00 | J132: Profit of Rs.95.00/- | K132: 95.00 | L132: 26.39% | M132: Successful | N132: 2015-01-20
A133: 21 | B133: 2015-01-08 | D133: NRB Bearing | E133: Buy | F133: 130.00 | H133: 175.5 | I133: 165.00 | J133: Profit of Rs 45.50/- | K133: 45.50 | L133: 35.00% | M133: Successful | N133: 2017-12-19
A134: 22 | B134: 2015-02-05 | D134: GSFC | E134: Accu | F134: 98.00 | H134: 120 | I134: 120.00 | J134: Target Achieved | K134: 22.00 | L134: 22.45% | M134: Successful | N134: 2017-01-18
A135: 23 | B135: 2015-02-05 | D135: Sundrmfast | E135: Accu | F135: 196.00 | H135: 262 | I135: 255.00 | J135: Target Achieved | K135: 66.00 | L135: 33.67% | M135: Successful | N135: 2016-08-17
A136: 24 | B136: 2015-03-04 | D136: GPPL | E136: Accu | F136: 235 | H136: 77.00 | I136: 280-285 | J136: Loss of Rs.158/- | K136: -158.00 | L136: -67.23% | M136: Unsuccessful | N136: 2019-02-26
A137: 25 | B137: 2015-03-04 | D137: ORIENTCEM | E137: Accu | F137: 185.00 | H137: 224 | I137: 220-225 | J137: Target Achieved | K137: 39.00 | L137: 21.08% | M137: Successful | N137: 2016-10-04
A138: 26 | B138: 2015-03-27 | D138: PFS | E138: Accu | F138: 49.5 | H138: 15.85 | I138: 67.00 | J138: Loss of Rs.33.65/- | K138: -33.65 | L138: -68% | M138: Unsuccessful | N138: 2019-06-11
A139: 27 | B139: 2015-03-30 | D139: Walchandnagar Ind Ltd | E139: Accu | F139: 183.50 | H139: 219 | I139: 218.00 | J139: Profit of Rs.35.50/- | K139: 35.50 | L139: 19.35% | M139: Successful | N139: 2015-04-09
A140: 28 | B140: 2015-04-20 | D140: Kalpataru Power Transmission Ltd | E140: Accu | F140: =(227+237)/2 -> 232.00 | H140: 298 | I140: 298.00 | J140: Target Achieved | K140: 66.00 | L140: 28.45% | M140: Successful | N140: 2017-03-29
A141: 29 | B141: 2015-05-04 | D141: Mastek Ltd | E141: Buy | F141: 385.00 | H141: =212.5+331 -> 543.5 | I141: 510.00 | J141: Profit of Rs 158.50/- | K141: 158.50 | L141: 41.17% | M141: Successful | N141: 2015-08-19
A142: 30 | B142: 2015-05-04 | D142: Suprajit Eng | E142: Buy | F142: 115.50 | H142: 146 | I142: 142.00 | J142: Profit of Rs 30.50/- | K142: 30.50 | L142: 26.41% | M142: Successful | N142: 2015-07-17
A143: 31 | B143: 2015-05-27 | D143: TCI | E143: Buy | F143: 237.50 | H143: 279.5 | I143: 278.00 | J143: Target Achieved | K143: 42.00 | L143: 17.68% | M143: Successful | N143: 2015-08-06
A144: 32 | B144: 2015-06-19 | D144: HSIL | E144: Accu | F144: 340.00 | H144: 448 | I144: 448.00 | J144: Target Achieved | K144: 108.00 | L144: 31.76% | M144: Successful | N144: 2017-10-10
A145: 33 | B145: 2015-07-06 | D145: Capital First | E145: Accu | F145: 390.00 | H145: 460 | I145: 460.00 | J145: Target Achieved | K145: =H145-F145 -> 70.00 | L145: =K145/F145 -> 17.95% | M145: Successful | N145: 2016-04-18
A146: 34 | B146: 2015-07-10 | D146: Dolphin OffShore | E146: Accu | F146: 122.5 | H146: 61.00 | I146: 172.00 | J146: Loss of Rs.61.50/- | K146: -61.50 | L146: -50.20% | M146: Unsuccessful | N146: 2018-08-21
A147: 35 | B147: 2015-08-03 | D147: Allcargo logistics | E147: Accu | F147: 297.50 | H147: 350 | I147: 360.00 | J147: Profit of Rs 52.50/- | K147: 52.50 | L147: 17.65% | M147: Successful | N147: 2015-08-16
A148: 36 | B148: 2015-08-03 | D148: Camline Fine | E148: Accu | F148: 115.50 | H148: 149 | I148: 140.00 | J148: Profit of Rs 33.50/- | K148: 33.50 | L148: 29.00% | M148: Successful | N148: 2017-01-05
A149: 37 | B149: 2015-09-04 | D149: TCI | E149: Accu | F149: 226.00 | H149: 292 | I149: 292.00 | J149: Target Achieved | K149: 66.00 | L149: 29.20% | M149: Successful | N149: 2015-10-09
A150: 38 | B150: 2015-09-07 | D150: Kalpataru Power Transmission Ltd | E150: Accu | F150: 232.50 | H150: 312.5 | I150: 310.00 | J150: Target Achieved | K150: 80.00 | L150: 34.41% | M150: Successful | N150: 2017-03-29
A151: 39 | B151: 2015-09-21 | D151: LLOYD ELECTRIC & ENG LTD | E151: Accu | F151: 196.50 | H151: 238 | I151: 238.00 | J151: Target Achieved | K151: 41.50 | L151: 21.12% | M151: Successful | N151: 2015-10-14
A152: 40 | B152: 2015-09-24 | D152: L&T Finance Holding | E152: Accu | F152: 65.00 | H152: 82 | I152: 82.00 | J152: Target Achieved | K152: 17.00 | L152: 26.15% | M152: Successful | N152: 2016-07-27
A153: 41 | B153: 2015-10-14 | D153: KEC International ltd | E153: Accu | F153: 144.00 | H153: 182.5 | I153: 181.00 | J153: Target Achieved | K153: 38.50 | L153: 26.74% | M153: Successful | N153: 2017-03-23
A154: 42 | B154: 2015-10-14 | D154: Gruh Finance | E154: Accu | F154: 264.00 | H154: 311 | I154: 311.00 | J154: Target Achieved | K154: 47.00 | L154: 17.80% | M154: Successful | N154: 2016-08-22
A155: 43 | B155: 2015-11-10 | D155: Pidilitind | E155: Buy | F155: 549.50 | H155: 630 | I155: 630.00 | J155: Target Achieved | K155: 80.50 | L155: 14.65% | M155: Successful | N155: 2016-02-19
A156: 44 | B156: 2015-12-04 | D156: Zensar Technology | E156: Accu | F156: 1027.50 | H156: 1315 | I156: 1250.00 | J156: Target Achieved | K156: 287.50 | L156: 27.98% | M156: Successful | N156: 2018-05-24
A157: 45 | B157: 2015-12-29 | D157: Vinati Organics Ltd | E157: Accu | F157: 465.00 | H157: 540 | I157: 540.00 | J157: Target Achieved | K157: 75.00 | L157: 16.13% | M157: Successful | N157: 2016-06-09
A158: 46 | B158: 2016-01-11 | D158: GSFC | E158: Buy | F158: 81.00 | H158: 110 | I158: 110.00 | J158: Target Achieved | K158: 29.00 | L158: 35.80% | M158: Successful | N158: 2017-01-10
A159: 47 | B159: 2016-01-13 | D159: SSWL | E159: Buy | F159: 417.50 | H159: 547 | I159: 535.00 | J159: Target Achieved | K159: 129.50 | L159: 31.02% | M159: Successful | N159: 2016-07-27
A160: 48 | B160: 2016-02-08 | D160: Persistent System Ltd | E160: Accu | F160: 650.00 | H160: 800 | I160: 800.00 | J160: Target Achieved | K160: 150.00 | L160: 23.08% | M160: Successful | N160: 2018-02-23
A161: 49 | B161: 2016-03-04 | D161: UPL | E161: Accu | F161: 437.50 | H161: 504.5 | I161: 522.00 | J161: Profit of Rs.67/- | K161: 67.00 | L161: 15.31% | M161: Successful | N161: 2016-04-20
A162: 50 | B162: 2016-03-09 | D162: Ashoka Buildcon Ltd | E162: Accu | F162: 189.50 | H162: 218 | I162: 218.00 | J162: Target Achieved | K162: 28.50 | L162: 15.04% | M162: Successful | N162: 2017-10-26
A163: 51 | B163: 2016-04-11 | D163: PTC INDIA FIN SERV LTD | E163: Accu | F163: 36.5 | H163: 15.85 | I163: 60.00 | J163: Loss of Rs.20.65/- | K163: -20.65 | L163: -56.58% | M163: Unsuccessful | N163: 2019-06-11
A164: 52 | B164: 2016-04-12 | D164: CAMLINFINE $ | E164: Accu | F164: 93.00 | H164: 149 | I164: 140.00 | J164: Profit of Rs 56/- | K164: 56.00 | L164: 60.22% | M164: Successful | N164: 2017-01-05
A165: 53 | B165: 2016-04-12 | D165: Greaves Cotton Ltd. | E165: Accu | F165: 130.00 | H165: 150 | I165: 150-155 | J165: Target Achieved | K165: 20.00 | L165: 15.38% | M165: Successful | N165: 2016-07-13
A166: 54 | B166: 2016-04-13 | D166: DHFL | E166: Accu | F166: 196.00 | H166: 299 | I166: 299.00 | J166: Target Achieved | K166: 103.00 | L166: 52.55% | M166: Successful | N166: 2016-09-07
A167: 55 | B167: 2016-04-13 | D167: Magma | E167: Accu | F167: 88.00 | H167: 103 | I167: 103.00 | J167: Target Achieved | K167: 15.00 | L167: 17.05% | M167: Successful | N167: 2016-06-09
A168: 56 | B168: 2016-05-02 | D168: KEC International ltd $ | E168: Accu | F168: 127.50 | H168: 148 | I168: 148-150 | J168: Target Achieved | K168: =H168-F168 -> 20.50 | L168: =K168/F168 -> 16.08% | M168: Successful | N168: 2016-07-13
A169: 57 | B169: 2016-05-03 | D169: Mindtree | E169: Accu | F169: 675.00 | H169: 815 | I169: 790-800 | J169: Target Achieved | K169: =H169-F169 -> 140.00 | L169: =K169/F169 -> 20.74% | M169: Successful | N169: 2018-02-23
A170: 58 | B170: 2016-06-01 | D170: Atulauto | E170: Accu | F170: 500 | H170: 232.50 | I170: 565-570 | J170: Loss of Rs.267.50 /- | K170: =H170-F170 -> -267.50 | L170: =K170/F170 -> -53.50% | M170: Unsuccessful | N170: 2019-09-27
A171: 59 | B171: 2016-06-06 | D171: TRITURBINE | E171: Accu | F171: 110.00 | H171: 126.5 | I171: 125.00 | J171: Profit of Rs.16.50/- | K171: =H171-F171 -> 16.50 | L171: =K171/F171 -> 15.00% | M171: Successful | N171: 2016-07-01
A172: 60 | B172: 2016-06-17 | D172: Pennar Industries Ltd | E172: Accu | F172: 44.00 | H172: 69.5 | I172: 69.50 | J172: Profit of Rs.25.50/- | K172: =H172-F172 -> 25.50 | L172: =K172/F172 -> 57.95% | M172: Successful | N172: 2017-08-30
A173: 61 | B173: 2016-06-28 | D173: EVEREADY | E173: Accu | F173: 262.50 | H173: 340 | I173: 333.00 | J173: Profit of Rs.77.50/- | K173: 77.50 | L173: 29.52% | M173: Successful | N173: 2017-10-09
A174: 62 | B174: 2016-06-28 | D174: FIEMIND | E174: Accu | F174: 840.00 | H174: 1230 | I174: 1230.00 | J174: Target Achieved | K174: 390.00 | L174: 46.43% | M174: Successful | N174: 2016-10-06
A175: 63 | B175: 2016-07-05 | D175: Bajaj Corp Ltd | E175: Accu | F175: 395 | H175: =(468.5+342.5)/2 -> 405.50 | I175: 510.00 | J175: Profit of Rs.10.50/- | K175: =H175-F175 -> 10.50 | L175: =K175/F175 -> 3% | M175: Neutral | N175: 2019-05-21
A176: 64 | B176: 2016-08-02 | D176: GPPL $ | E176: Buy | F176: =169.5-12.8 -> 156.7 | H176: 77.00 | I176: 198-200 | J176: Loss of Rs.79.7/- | K176: -79.70 | L176: -50.86% | M176: Unsuccessful | N176: 2019-02-26
A177: 65 | B177: 2016-08-04 | D177: WONDERLA HOLIDAYS LTD | E177: Accu | F177: 400 | H177: 305.00 | I177: 475.00 | J177: Loss of Rs.95/- | K177: -95.00 | L177: -23.75% | M177: Unsuccessful | N177: 2019-05-21
A178: 66 | B178: 2016-08-11 | D178: CAMLINFINE | E178: Accu | F178: 86.50 | H178: 130 | I178: 130.00 | J178: Profit of Rs.43.50/- | K178: 43.50 | L178: 50.29% | M178: Successful | N178: 2017-12-22
A179: 67 | B179: 2016-08-18 | D179: GRANULES | E179: Accu | F179: 133.5 | H179: 126.50 | I179: 178.00 | J179: Exit | K179: -7.00 | L179: -5.24% | M179: Unsuccessful | N179: 2016-09-02
A180: 68 | B180: 2016-08-31 | D180: VA TECH WABAG | E180: Accu | F180: 560.00 | H180: 725 | I180: 725.00 | J180: Target Achieved | K180: 165.00 | L180: 29.46% | M180: Successful | N180: 2016-03-27
A181: 69 | B181: 2016-09-01 | D181: SKIPPER LIMITED | E181: Accu | F181: 160.50 | H181: 210 | I181: 210.00 | J181: Target Achieved | K181: 49.50 | L181: 30.84% | M181: Successful | N181: 2017-05-16
A182: 70 | B182: 2016-10-03 | D182: IFBIND | E182: Accu | F182: 430.00 | H182: 596 | I182: 575.00 | J182: Profit of Rs.166/- | K182: 166.00 | L182: 38.60% | M182: Successful | N182: 2017-02-03
A183: 71 | B183: 2016-10-14 | D183: ASIANTILES | E183: Accu | F183: 280.00 | H183: 345 | I183: 345.00 | J183: Target Achieved | K183: =H183-F183 -> 65.00 | L183: =K183/F183 -> 23.21% | M183: Successful | N183: 2017-03-20
A184: 72 | B184: 2016-10-14 | D184: DEEPIND | E184: Accu | F184: 245.00 | H184: 325.5 | I184: 330.00 | J184: Profit of Rs.80.5/- | K184: 80.50 | L184: =K184/F184 -> 32.86% | M184: Successful | N184: 2017-02-03
A185: 73 | B185: 2016-10-17 | D185: DCBBANK | E185: Accu | F185: 125.00 | H185: 160 | I185: 160.00 | J185: Target Achieved | K185: 35.00 | L185: 28.00% | M185: Successful | N185: 2017-03-09
A186: 74 | B186: 2016-10-17 | D186: ORIENTREF | E186: Accu | F186: 114.00 | H186: 145 | I186: 145.00 | J186: Target Achieved | K186: 31.00 | L186: =K186/F186 -> 27.19% | M186: Successful | N186: 2017-05-04
A187: 75 | B187: 2016-10-17 | D187: GANECOS | E187: Accu | F187: 212.00 | H187: 280 | I187: 276.00 | J187: Profit of Rs.68/- | K187: 68.00 | L187: =K187/F187 -> 32.08% | M187: Successful | N187: 2017-05-03
A188: 76 | B188: 2016-11-04 | D188: NBCC | E188: Accu | F188: 155.00 | H188: 210 | I188: 210.00 | J188: Profit of Rs.55/- | K188: 55.00 | L188: =K188/F188 -> 35.48% | M188: Successful | N188: 2017-07-28
A189: 77 | B189: 2016-12-06 | D189: PRECAM | E189: Accu | F189: 150.5 | H189: 72.50 | I189: 174.00 | J189: Loss of Rs.78/- | K189: -78.00 | L189: -51.83% | M189: Unsuccessful | N189: 2018-08-21
A190: 78 | B190: 2016-12-08 | D190: INFRATEL | E190: Accu | F190: 380.00 | H190: 478 | I190: 468.00 | J190: Target Achieved | K190: =H190-F190 -> 98.00 | L190: =K190/F190 -> 25.79% | M190: Successful | N190: 2017-10-17
A191: 79 | B191: 2016-12-30 | D191: GODREJPROP | E191: Accu | F191: 305.00 | H191: 375 | I191: 375.00 | J191: Target Achieved | K191: =H191-F191 -> 70.00 | L191: =K191/F191 -> 22.95% | M191: Successful | N191: 2017-02-02
A192: 80 | B192: 2017-01-04 | D192: DEEPAKNTR | E192: Accu | F192: 99.50 | H192: 158 | I192: 158.00 | J192: Target Achieved | K192: =H192-F192 -> 58.50 | L192: =K192/F192 -> 58.79% | M192: Successful | N192: 2017-06-12
A193: 81 | B193: 2017-01-04 | D193: DEEPAKNTR | E193: Accu | F193: 99.50 | H193: 158 | I193: 158.00 | J193: Target Achieved | K193: 58.50 | L193: 58.79% | M193: Successful | N193: 2017-06-12
A194: 82 | B194: 2017-02-20 | D194: RECLTD | E194: Accu | F194: 140.50 | H194: 220 | I194: 220.00 | J194: Target Achieved | K194: =H194-F194 -> 79.50 | L194: =K194/F194 -> 56.58% | M194: Successful | N194: 2017-05-09
A195: 83 | B195: 2017-02-20 | D195: SUBROS | E195: Accu | F195: 202.50 | H195: 234 | I195: 234.00 | J195: Target Achieved | K195: 31.50 | L195: 15.56% | M195: Successful | N195: 2017-04-11
A196: 84 | B196: 2017-03-24 | D196: VRLLOG | E196: Accu | F196: 300.50 | H196: 417.5 | I196: 420.00 | J196: Profit of Rs.117/- | K196: =H196-F196 -> 117.00 | L196: =K196/F196 -> 38.94% | M196: Successful | N196: 2017-12-01
A197: 85 | B197: 2017-03-24 | D197: FIEMIND | E197: Accu | F197: 850.00 | H197: 1042.5 | I197: 1023.00 | J197: Profit of Rs 192.50/- | K197: 192.50 | L197: 22.65% | M197: Successful | N197: 2017-04-05
A198: 86 | B198: 2017-04-05 | D198: RATNAMANI | E198: Accu | F198: 785.00 | H198: 930 | I198: 920.00 | J198: Profit of Rs.145/- | K198: =H198-F198 -> 145.00 | L198: =K198/F198 -> 18.47% | M198: Successful | N198: 2017-08-29
A199: 87 | B199: 2017-04-06 | D199: ZEEMEDIA | E199: Accu | F199: 40 | H199: 13.10 | I199: 60.00 | J199: Loss of Rs.26.9/- | K199: -26.90 | L199: -67.25% | M199: Unsuccessful | N199: 2018-02-07
A200: 88 | B200: 2017-04-12 | D200: DABUR | E200: Accu | F200: 289.50 | H200: 354 | I200: 360.00 | J200: Profit of Rs.64.5/- | K200: =H200-F200 -> 64.50 | L200: =K200/F200 -> 22.28% | M200: Successful | N200: 2017-11-01
A201: 89 | B201: 2017-04-20 | D201: KPRMILL | E201: Accu | F201: 700.00 | H201: 840 | I201: 840.00 | J201: Profit of Rs.140/- | K201: 140.00 | L201: 20.00% | M201: Successful | N201: 2017-06-07
A202: 90 | B202: 2017-06-01 | D202: ESSELPACK | E202: Accu | F202: 130.00 | H202: 144.25 | I202: 170.00 | J202: Profit of Rs.14.25/- | K202: 14.25 | L202: 10.96% | M202: Successful | N202: 2019-07-29
A203: 91 | B203: 2017-06-15 | D203: KEI | E203: Accu | F203: 214.50 | H203: 262 | I203: 262.00 | J203: Profit of Rs.47.5/- | K203: 47.50 | L203: 22.14% | M203: Successful | N203: 2017-08-30
A204: 92 | B204: 2017-07-17 | D204: MAYURUNIQ | E204: Accu | F204: 370.00 | H204: 447.5 | I204: 450.00 | J204: Target Achieved | K204: 77.50 | L204: 20.95% | M204: Successful | N204: 2017-10-27
A205: 93 | B205: 2017-07-27 | D205: RAMCOCEM | E205: Accu | F205: 657.50 | H205: 825 | I205: 820.00 | J205: Target Achieved | K205: 167.50 | L205: 25.48% | M205: Successful | N205: 2017-12-21
A206: 94 | B206: 2017-08-17 | D206: FINPIPE | E206: Accu | F206: 605.00 | H206: 750 | I206: 750.00 | J206: Profit of Rs.145/- | K206: 145.00 | L206: 23.97% | M206: Successful | N206: 2017-10-19
A207: 95 | B207: 2017-09-01 | D207: SHK | E207: Accu | F207: 255 | H207: 217.25 | I207: 320.00 | J207: Loss of Rs.37.75/- | K207: -37.75 | L207: -15% | M207: Unsuccessful | N207: 2019-07-15
A208: 96 | B208: 2017-09-19 | D208: SKIPPER | E208: Accu | F208: 215.00 | H208: 258 | I208: 258.00 | J208: Target Achieved | K208: 43.00 | L208: 20.00% | M208: Successful | N208: 2017-11-01
A209: 97 | B209: 2017-09-19 | D209: SKIPPER | E209: Accu | F209: 215.00 | H209: 258 | I209: 258.00 | J209: Target Achieved | K209: 43.00 | L209: 20.00% | M209: Successful | N209: 2017-11-01
A210: 98 | B210: 2017-09-20 | D210: CAMLINFINE$ | E210: Accu | F210: 75.00 | H210: 90 | I210: 90.00 | J210: Profit of Rs.15.00/- | K210: =H210-F210 -> 15.00 | L210: =K210/F210 -> 20.00% | M210: Successful | N210: 2017-10-11
A211: 99 | B211: 2017-10-03 | D211: GNA | E211: Accu | F211: 315.00 | H211: 392 | I211: 384.00 | J211: Profit of Rs.77/- | K211: 77.00 | L211: 24.44% | M211: Successful | N211: 2017-10-09
A212: 100 | B212: 2017-10-05 | D212: NOCIL | E212: Accu | F212: 145.00 | H212: 179 | I212: 180.00 | J212: Profit of Rs.34/- | K212: 34.00 | L212: 23.45% | M212: Successful | N212: 2017-10-17
A213: 101 | B213: 2017-10-06 | D213: CENTURYPLY | E213: Accu | F213: 256.00 | H213: 323 | I213: 320.00 | J213: Target Achieved | K213: 67.00 | L213: 26.17% | M213: Successful | N213: 2017-11-28
A214: 102 | B214: 2017-10-09 | D214: EIHOTEL | E214: Accu | F214: 137.50 | H214: 184 | I214: 183.00 | J214: Profit of Rs.46.5/- | K214: 46.50 | L214: 33.82% | M214: Successful | N214: 2018-01-08
A215: 103 | B215: 2017-10-10 | D215: NRBBEARING | E215: Accu | F215: 125.50 | H215: 158 | I215: 155.00 | J215: Profit of Rs.32.5/- | K215: 32.50 | L215: 25.90% | M215: Successful | N215: 2017-11-28
A216: 104 | B216: 2017-10-10 | D216: BOROSIL | E216: Accu | F216: 895.00 | H216: 1122.5 | I216: 1078.00 | J216: Profit of Rs.227.5/- | K216: 227.50 | L216: 25.42% | M216: Successful | N216: 2018-01-17
A217: 105 | B217: 2017-10-12 | D217: CYIENT | E217: Accu | F217: 525.00 | H217: 629 | I217: 629.00 | J217: Target Achieved | K217: 104.00 | L217: 19.81% | M217: Successful | N217: 2018-01-19
A218: 106 | B218: 2017-11-07 | D218: HATSUN | E218: Accu | F218: 740.00 | H218: 892.5 | I218: 900.00 | J218: Profit of Rs.152.5/- | K218: =H218-F218 -> 152.50 | L218: =K218/F218 -> 20.61% | M218: Successful | N218: 2017-11-13
A219: 107 | B219: 2017-12-04 | D219: SANGHIIND | E219: Accu | F219: 118.50 | H219: 143.5 | I219: 145.00 | J219: Profit of Rs.25/- | K219: =H219-F219 -> 25.00 | L219: =K219/F219 -> 21.10% | M219: Successful | N219: 2017-12-28
A220: 108 | B220: 2017-12-21 | D220: KAJARIACER | E220: Accu | F220: 715 | H220: 500.00 | I220: 872.00 | J220: Loss of Rs.215/- | K220: =H220-F220 -> -215.00 | L220: =K220/F220 -> -30.07% | M220: Unsuccessful | N220: 2019-07-24
A221: 109 | B221: 2017-12-29 | D221: GNA | E221: Accu | F221: 435.00 | H221: 542.5 | I221: 539.00 | J221: Target Achieved | K221: 107.50 | L221: 24.71% | M221: Successful | N221: 2018-04-16
A222: 110 | B222: 2017-12-29 | D222: ZENSARTECH | E222: Accu | F222: 885.00 | H222: 1090 | I222: 1084.00 | J222: Target Achieved | K222: 205.00 | L222: 23.16% | M222: Successful | N222: 2018-04-23
A223: 111 | B223: 2018-04-02 | D223: EVERESTIND | E223: Accu | F223: 478.50 | H223: 442 | I223: 613.00 | J223: Loss of Rs.36.50 /- | K223: =H223-F223 -> -36.50 | L223: =K223/F223 -> -7.63% | M223: Unsuccessful | N223: 2019-10-24
A224: 112 | B224: 2018-04-04 | D224: GPPL$ | E224: Accu | F224: =141.5-7.3 -> 134.2 | H224: 77.00 | I224: 180.00 | J224: Loss of Rs.57.2/- | K224: =H224-F224 -> -57.20 | L224: =K224/F224 -> -42.62% | M224: Unsuccessful | N224: 2019-02-26
A225: 113 | B225: 2018-04-19 | D225: MANPASAND | E225: Accu | F225: 430 | H225: 220.00 | I225: 537.00 | J225: Loss of Rs.210/- | K225: =H225-F225 -> -210.00 | L225: =K225/F225 -> -48.84% | M225: Unsuccessful | N225: 2018-06-01
A226: 114 | B226: 2018-04-30 | D226: HEIDELBERG | E226: Accu | F226: 153.5 | H226: 196 | I226: 196.00 | J226: Profit of Rs.42.50/- | K226: =H226-F226 -> 42.50 | L226: =K226/F226 -> 27.69% | M226: Successful | N226: 2019-05-20
A227: 115 | B227: 2018-07-25 | D227: ZEEMEDIA | E227: Accu | F227: 27.5 | H227: 13.10 | I227: 60.00 | J227: Loss of Rs.14.40/- | K227: -14.40 | L227: -52.36% | M227: Unsuccessful | N227: 2018-02-07
A228: 116 | B228: 2018-08-06 | D228: GABRIEL | E228: Accu | F228: 148.5 | H228: 102 | I228: 182.00 | J228: Loss of Rs.46.50/- | K228: =H228-F228 -> -46.50 | L228: =K228/F228 -> -31.31% | M228: Unsuccessful | N228: 2019-07-15
A229: 117 | B229: 2018-08-23 | D229: INDIANHUME | E229: Accu | F229: 285 | H229: 355 | I229: 364.00 | J229: Profit of Rs.70/- | K229: 70.00 | L229: 24.56% | M229: Successful | N229: 2018-12-21
A230: 118 | B230: 2018-08-29 | D230: GRINDWELL | E230: Accu | F230: 525 | H230: 585 | I230: 635.00 | J230: Profit of Rs.60- | K230: =H230-F230 -> 60.00 | L230: =K230/F230 -> 11.43% | M230: Successful | N230: 2019-07-16
A231: 119 | B231: 2018-10-22 | D231: FINPIPE | E231: Accu | F231: 475 | H231: 574 | I231: 570.00 | J231: Target Achieved | K231: 99.00 | L231: 20.84% | M231: Successful | N231: 2018-10-30
A232: 120 | B232: 2018-10-24 | D232: GULFOILLUB | E232: Accu | F232: 707.5 | H232: 872 | I232: 872.00 | J232: Target Achieved | K232: 164.50 | L232: 23.25% | M232: Successful | N232: 2019-01-17
A233: 121 | B233: 2018-10-25 | D233: DBCORP | E233: Accu | F233: 162 | H233: 204 | I233: 209.00 | J233: Profit of Rs.42/- | K233: 42.00 | L233: 25.93% | M233: Successful | N233: 2019-03-15
A234: 122 | B234: 2018-10-26 | D234: RITES | E234: Accu | F234: 240 | H234: 297 | I234: 297.00 | J234: Target Achieved | K234: 57.00 | L234: 23.75% | M234: Successful | N234: 2018-11-13
A235: 123 | B235: 2018-12-05 | D235: BRIGADE | E235: Accu | F235: 202.5 | H235: 255 | I235: 252.00 | J235: Target Achieved | K235: 52.50 | L235: 25.93% | M235: Successful | N235: 2019-03-18 | R235: V
A236: 124 | B236: 2018-12-31 | D236: JKCEMENT | E236: Accu | F236: 710 | H236: 866 | I236: 866.00 | J236: Target Achieved | K236: 156.00 | L236: 21.97% | M236: Successful | N236: 2019-03-29 | R236: V
A237: 125 | B237: 2019-02-26 | D237: MARICO | E237: Accu | F237: 337.25 | H237: 398.5 | I237: 411.00 | J237: Profit of Rs.61.25/- | K237: 61.25 | L237: 18.16% | M237: Successful | N237: 2019-10-22 | R237: V
A238: 126 | B238: 2019-04-04 | D238: ITDCEM | E238: Accu | F238: 130 | H238: 65 | I238: 158.00 | J238: Loss of Rs.65 /- | K238: -65.00 | L238: -50.00% | M238: Unsuccessful | N238: 2019-09-18 | R238: K
A239: 127 | B239: 2017-10-09 | D239: RECLTD | E239: Accu | F239: 141.5 | H239: 183.50 | I239: 210.00 | J239: Part Profit of Rs.42/- | K239: 42.00 | L239: 30% | M239: Successful | N239: 2017-11-03 | R239: K
A240: 128 | B240: 2017-12-05 | D240: ALLCARGO | E240: Accu | F240: 172.00 | H240: 155.25 | I240: 230.00 | J240: Loss of Rs.16.75/- | K240: =H240-F240 -> -16.75 | L240: =K240/F240 -> -9.74% | M240: Unsuccessful | N240: 2019-11-18 | R240: K
A241: 129 | B241: 2018-10-25 | D241: GODREJCP | E241: Accu | F241: 698.5 | H241: 890 | I241: 890.00 | J241: Part Profit of Rs.191.50/- | K241: 191.50 | L241: 27.42% | M241: Successful | N241: 2021-05-12 | R241: V
A242: 130 | B242: 2017-05-22 | D242: GREAVESCOT | E242: Accu | F242: 127.6 | H242: 138 | I242: 190.00 | J242: Profit of Rs.10.40 | K242: 10.40 | L242: 8.15% | M242: Successful | N242: 2019-11-05 | R242: K
A243: 131 | B243: 2018-02-27 | D243: MOLDTKPAC | E243: Accu | F243: 317 | H243: 382.5 | I243: 398.00 | J243: Profit of Rs.65.5 | K243: =H243-F243 -> 65.50 | L243: =K243/F243 -> 20.66% | M243: Successful | N243: 2021-02-11 | R243: K
A244: 132 | B244: 2018-03-05 | D244: LICHSGFIN | E244: Accu | F244: =510-14.4 -> 495.60 | H244: 350 | I244: 672.00 | J244: Loss of Rs.145.60/- | K244: =H244-F244 -> -145.60 | L244: =K244/F244 -> -29.38% | M244: Unsuccessful | N244: 2020-02-26 | R244: V
A245: 133 | B245: 2018-05-17 | D245: PHILIPCARB | E245: Accu | F245: 230.30 | H245: 102.5 | I245: 348.00 | J245: Loss of Rs.127.80/- | K245: =H245-F245 -> -127.80 | L245: =K245/F245 -> -55.49% | M245: Unsuccessful | N245: 2020-03-06 | R245: V
A246: 134 | B246: 2018-06-07 | D246: KEC | E246: Accu | F246: =342.5-5.1 -> 337.4 | H246: 412.5 | I246: 439.00 | J246: Profit of Rs.75.10 | K246: 75.10 | L246: 22.26% | M246: Successful | N246: 2021-02-03 | R246: K
A247: 135 | B247: 2018-07-04 | D247: ASHOKLEY | E247: Accu | F247: =127.5-5.53 -> 121.97 | I247: 170.00 | J247: Open | M247: Open | R247: V
A248: 136 | B248: 2018-07-13 | D248: FCONSUMER | E248: Accu | F248: 46.50 | H248: 17 | I248: 59.00 | J248: Loss of Rs.29.50/- | K248: =H248-F248 -> -29.50 | L248: =K248/F248 -> -63.44% | M248: Unsuccessful | N248: 2020-02-26 | R248: V
A249: 137 | B249: 2018-10-23 | D249: JKPAPER | E249: Accu | F249: 156.50 | I249: 191.00 | J249: Open | M249: Open | R249: V
A250: 138 | B250: 2018-12-05 | D250: CCL | E250: Accu | F250: 259.5 | H250: 320 | I250: 320.00 | J250: Target Achieved | K250: =H250-F250 -> 60.50 | L250: =K250/F250 -> 23.31% | M250: Successful | N250: 2021-05-07 | R250: V
A251: 139 | B251: 2018-12-05 | D251: VARROC | E251: Accu | F251: 715 | H251: 445 | I251: 840.00 | J251: Loss of Rs.270/- | K251: =H251-F251 -> -270.00 | L251: =K251/F251 -> -37.76% | M251: Unsuccessful | N251: 2019-12-01 | R251: V
A252: 140 | B252: 2019-01-04 | D252: MGL | E252: Accu | F252: 875 | H252: 1165 | I252: 1185.00 | J252: Profit of Rs.290/- | K252: 290.00 | L252: 33.14% | M252: Successful | N252: 2020-01-17 | R252: V
A253: 141 | B253: 2019-04-04 | D253: COCHINSHIP | E253: Accu | F253: =387-14.63 -> 372.37 | H253: 490 | I253: 490.00 | J253: Target Achieved | K253: 117.63 | L253: 31.59% | M253: Successful | N253: 2020-01-20 | R253: V
A254: 142 | B254: 2019-04-23 | D254: MAHINDCIE | E254: Buy | F254: 220 | H254: 127.5 | I254: 284.00 | J254: Loss of Rs.92.50/- | K254: -92.50 | L254: -42.05% | M254: Unsuccessful | N254: 2020-03-06 | R254: V
A255: 143 | B255: 2019-06-06 | D255: RADICO | E255: Buy | F255: 332.8 | H255: 405 | I255: 419.00 | J255: Profit of Rs.72.20/- | K255: =H255-F255 -> 72.20 | L255: =K255/F255 -> 21.69% | M255: Successful | N255: 2020-01-30 | R255: K
A256: 144 | B256: 2019-06-25 | D256: M&MFIN | E256: Accu | F256: 386 | H256: 395.00 | I256: 452.00 | J256: Profit of Rs.9/- | K256: =H256-F256 -> 9.00 | L256: =K256/F256 -> 2% | M256: Neutral | N256: 2020-02-07 | R256: K
A257: 145 | B257: 2019-08-30 | D257: INDHOTEL | E257: Accu | F257: 135-140 | I257: 190.00 | J257: Open | M257: Open | R257: V
A258: 146 | B258: 2019-09-23 | D258: KNRCON | E258: Accu | F258: 235 | H258: 295 | I258: 296.00 | J258: Profit of Rs.60/- | K258: =H258-F258 -> 60.00 | L258: =K258/F258 -> 25.53% | M258: Successful | N258: 2020-01-14 | R258: K
A259: 147 | B259: 2019-10-14 | D259: KEC$ | E259: Accu | F259: 277.5 | H259: 333 | I259: 333.00 | J259: Profit of Rs.55.50/- | K259: =H259-F259 -> 55.50 | L259: =K259/F259 -> 20.00% | M259: Successful | N259: 2020-01-16 | R259: V
A260: 148 | B260: 2019-10-14 | D260: MGL$ | E260: Accu | F260: 930 | H260: 1165 | I260: 1200.00 | J260: Profit of Rs.235/- | K260: =H260-F260 -> 235.00 | L260: =K260/F260 -> 25.27% | M260: Successful | N260: 2020-01-17 | R260: K
A261: 149 | B261: 2019-10-15 | D261: JKPAPER$ | E261: Accu | F261: 111.00 | H261: 141 | I261: 141.00 | J261: Profit of Rs.30/- | K261: 30.00 | L261: 27.03% | M261: Successful | N261: 2021-05-12 | R261: K
A262: 150 | B262: 2019-10-15 | D262: RADICO$ | E262: Accu | F262: 296.00 | H262: 370 | I262: 370.00 | J262: Target Achieved | K262: =H262-F262 -> 74.00 | L262: =K262/F262 -> 25.00% | M262: Successful | N262: 2020-01-23 | R262: K
A263: 151 | B263: 2019-10-16 | D263: MOLDTKPAC$ | E263: Accu | F263: 300.00 | H263: 382.5 | I263: 344.00 | J263: Profit of Rs.82.5 | K263: 82.50 | L263: 27.50% | M263: Successful | N263: 2021-02-11 | R263: K
A264: 152 | B264: 2020-01-02 | D264: PSPPROJECT | E264: Accu | F264: 490-500 | I264: 590.00 | J264: Open | M264: Open | R264: K
A265: 153 | B265: 2020-05-15 | D265: BEL | E265: Accu | F265: 67.50 | H265: 86 | I265: 86.00 | J265: Profit of Rs.18.50/- | K265: =H265-F265 -> 18.50 | L265: =K265/F265 -> 27.41% | M265: Successful | N265: 2020-06-26 | R265: K
A266: 154 | B266: 2020-07-23 | D266: RITES | E266: Accu | F266: 244-249 | I266: 296.00 | J266: Open | R266: K
A267: 155 | B267: 2020-09-18 | D267: IEX | E267: Accu | F267: 206 | H267: 248 | I267: 248.00 | J267: Target Achieved | K267: =H267-F267 -> 42.00 | L267: =K267/F267 -> 20.39% | M267: Successful | N267: 2021-01-18 | R267: K
A268: 156 | B268: 2020-11-05 | D268: IEX | E268: Accu | F268: 182.5 | H268: 248 | I268: 248.00 | J268: Target Achieved | K268: 65.50 | L268: 35.89% | M268: Successful | N268: 2021-01-18 | R268: K
A269: 157 | B269: 2020-11-05 | D269: CCL | E269: Accu | F269: 247.5 | H269: 320 | I269: 320.00 | J269: Target Achieved | K269: =H269-F269 -> 72.50 | L269: =K269/F269 -> 29.29% | M269: Successful | N269: 2021-05-07 | R269: K
A270: 158 | B270: 2020-11-05 | D270: POLYCAB | E270: Accu | F270: 925.00 | H270: 1095 | I270: 1093.00 | J270: Profit of Rs.170/- | K270: =H270-F270 -> 170.00 | L270: =K270/F270 -> 18.38% | M270: Successful | N270: 2021-01-05 | R270: K
A271: 159 | B271: 2020-11-05 | D271: COCHINSHIP | E271: Accu | F271: 332.50 | H271: 393 | I271: 406.00 | J271: Profit of Rs.60.50/- | K271: =H271-F271 -> 60.50 | L271: =K271/F271 -> 18.20% | M271: Successful | N271: 2021-03-01 | R271: K
A272: 160 | B272: 2020-11-06 | D272: RITES | E272: Accu | F272: 237.5-242.5 | I272: 290.00 | J272: Open | R272: K
A273: 161 | B273: 2020-12-22 | D273: MIDHANI | E273: Accu | F273: 187-193 | I273: 239.00 | J273: Open | R273: K
... 5 more rows
